Workbook

Sheet plot
G1: suction side | I1: pressure side | L1: suction side | N1: pressure side | Q1: setting | BG1: -
B2: x | C2: y | D2: dy/dx | E2: Cp | G2: x | H2: y | I2: x | J2: y | L2: x | M2: y | N2: x | O2: y | Q2: alpha | R2: 23 | S2: deg
B3: =(dat!A2-0.25)*COS(RADIANS($R$2))+dat!B2*SIN(RADIANS($R$2))+0.25 -> 0.9408709613 | C3: =-(dat!A2-0.25)*SIN(RADIANS($R$2))+dat!B2*COS(RADIANS($R$2)) -> -0.2918885103 | D3: =dat!C2-RADIANS($R$2) -> 1.030855942 | E3: =interpolation1D($R$2,aXFOIL,XFOIL!D6:AT6) -> -0.471708566 | G3: 0.9408709613 | H3: -0.2918885103 | I3: 0.02480350775 | J3: 0.07405434017 | L3: 1.062120077 | M3: -0.08958701559 | Q3: scale | R3: 0.5 | S3: -
B4: =(dat!A3-0.25)*COS(RADIANS($R$2))+dat!B3*SIN(RADIANS($R$2))+0.25 -> 0.9318047972 | C4: =-(dat!A3-0.25)*SIN(RADIANS($R$2))+dat!B3*COS(RADIANS($R$2)) -> -0.2864547176 | D4: =dat!C3-RADIANS($R$2) -> 1.032604079 | E4: =interpolation1D($R$2,aXFOIL,XFOIL!D7:AT7) -> -0.4739095867 | G4: 1.062120077 | H4: -0.08958701559 | I4: -0.04566242701 | J4: 0.0281419111 | L4: 1.053264182 | M4: -0.0829966334
B5: =(dat!A4-0.25)*COS(RADIANS($R$2))+dat!B4*SIN(RADIANS($R$2))+0.25 -> 0.9146873545 | C5: =-(dat!A4-0.25)*SIN(RADIANS($R$2))+dat!B4*COS(RADIANS($R$2)) -> -0.2762535571 | D5: =dat!C4-RADIANS($R$2) -> 1.035300065 | E5: =interpolation1D($R$2,aXFOIL,XFOIL!D8:AT8) -> -0.4781146646 | L5: 1.036670636 | M5: -0.07066054384
B6: =(dat!A5-0.25)*COS(RADIANS($R$2))+dat!B5*SIN(RADIANS($R$2))+0.25 -> 0.8941831129 | C6: =-(dat!A5-0.25)*SIN(RADIANS($R$2))+dat!B5*COS(RADIANS($R$2)) -> -0.2641302691 | D6: =dat!C5-RADIANS($R$2) -> 1.038818871 | E6: =interpolation1D($R$2,aXFOIL,XFOIL!D9:AT9) -> -0.4832380116 | G6: 0.9318047972 | H6: -0.2864547176 | I6: 0.02826931917 | J6: 0.06916452304 | L6: 1.016741579 | M6: -0.05590162922
B7: =(dat!A6-0.25)*COS(RADIANS($R$2))+dat!B6*SIN(RADIANS($R$2))+0.25 -> 0.8718964111 | C7: =-(dat!A6-0.25)*SIN(RADIANS($R$2))+dat!B6*COS(RADIANS($R$2)) -> -0.2510663422 | D7: =dat!C6-RADIANS($R$2) -> 1.042554988 | E7: =interpolation1D($R$2,aXFOIL,XFOIL!D10:AT10) -> -0.4889371395 | G7: 1.053264182 | H7: -0.0829966334 | I7: -0.1848825569 | J7: -0.09594145935 | L7: 0.9951122801 | M7: -0.03992011033
B8: =(dat!A7-0.25)*COS(RADIANS($R$2))+dat!B7*SIN(RADIANS($R$2))+0.25 -> 0.8489034192 | C8: =-(dat!A7-0.25)*SIN(RADIANS($R$2))+dat!B7*COS(RADIANS($R$2)) -> -0.2377064152 | D8: =dat!C7-RADIANS($R$2) -> 1.046322266 | E8: =interpolation1D($R$2,aXFOIL,XFOIL!D11:AT11) -> -0.4949734509 | L8: 0.9728343343 | M8: -0.02348501666
B9: =(dat!A8-0.25)*COS(RADIANS($R$2))+dat!B8*SIN(RADIANS($R$2))+0.25 -> 0.8256429251 | C9: =-(dat!A8-0.25)*SIN(RADIANS($R$2))+dat!B8*COS(RADIANS($R$2)) -> -0.2243076818 | D9: =dat!C8-RADIANS($R$2) -> 1.05002186 | E9: =interpolation1D($R$2,aXFOIL,XFOIL!D12:AT12) -> -0.5012588501 | G9: 0.9146873545 | H9: -0.2762535571 | I9: 0.03282071603 | J9: 0.06367528263 | L9: 0.9503441184 | M9: -0.006903171466 | Q9: Polar
B10: =(dat!A9-0.25)*COS(RADIANS($R$2))+dat!B9*SIN(RADIANS($R$2))+0.25 -> 0.8022608999 | C10: =-(dat!A9-0.25)*SIN(RADIANS($R$2))+dat!B9*COS(RADIANS($R$2)) -> -0.2109526353 | D10: =dat!C9-RADIANS($R$2) -> 1.053644761 | E10: =interpolation1D($R$2,aXFOIL,XFOIL!D13:AT13) -> -0.5077738166 | G10: 1.036670636 | H10: -0.07066054384 | I10: -0.256359667 | J10: -0.195123375 | L10: 0.9277841615 | M10: 0.009733732675 | Q10: alpha
B11: =(dat!A10-0.25)*COS(RADIANS($R$2))+dat!B10*SIN(RADIANS($R$2))+0.25 -> 0.7788051895 | C11: =-(dat!A10-0.25)*SIN(RADIANS($R$2))+dat!B10*COS(RADIANS($R$2)) -> -0.1976670169 | D11: =dat!C10-RADIANS($R$2) -> 1.057209235 | E11: =interpolation1D($R$2,aXFOIL,XFOIL!D14:AT14) -> -0.5145254731 | L11: 0.9051995846 | M11: 0.02640567776 | Q11: CL | R11: =interpolation1D($R$2,aXFOIL,XFOIL!D2:AT2) -> 1.076124668
B12: =(dat!A11-0.25)*COS(RADIANS($R$2))+dat!B11*SIN(RADIANS($R$2))+0.25 -> 0.7552932077 | C12: =-(dat!A11-0.25)*SIN(RADIANS($R$2))+dat!B11*COS(RADIANS($R$2)) -> -0.1844591961 | D12: =dat!C11-RADIANS($R$2) -> 1.060740648 | E12: =interpolation1D($R$2,aXFOIL,XFOIL!D15:AT15) -> -0.5215291381 | G12: 0.8941831129 | H12: -0.2641302691 | I12: 0.03877625723 | J12: 0.05739501663 | L12: 0.8826052084 | M12: 0.04311456106 | Q12: CD | R12: =interpolation1D($R$2,aXFOIL,XFOIL!D3:AT3) -> 0.2136665732
B13: =(dat!A12-0.25)*COS(RADIANS($R$2))+dat!B12*SIN(RADIANS($R$2))+0.25 -> 0.7317331499 | C13: =-(dat!A12-0.25)*SIN(RADIANS($R$2))+dat!B12*COS(RADIANS($R$2)) -> -0.171333412 | D13: =dat!C12-RADIANS($R$2) -> 1.064271584 | E13: =interpolation1D($R$2,aXFOIL,XFOIL!D16:AT16) -> -0.5288036466 | G13: 1.016741579 | H13: -0.05590162922 | I13: -0.282788437 | J13: -0.2690712314 | L13: 0.8600053924 | M13: 0.05986900143 | Q13: Cm | R13: =interpolation1D($R$2,aXFOIL,XFOIL!D4:AT4) -> -0.06533332914
B14: =(dat!A13-0.25)*COS(RADIANS($R$2))+dat!B13*SIN(RADIANS($R$2))+0.25 -> 0.7081304245 | C14: =-(dat!A13-0.25)*SIN(RADIANS($R$2))+dat!B13*COS(RADIANS($R$2)) -> -0.1582930467 | D14: =dat!C13-RADIANS($R$2) -> 1.06783835 | E14: =interpolation1D($R$2,aXFOIL,XFOIL!D17:AT17) -> -0.5363721848 | L14: 0.8374012986 | M14: 0.07668103965
B15: =(dat!A14-0.25)*COS(RADIANS($R$2))+dat!B14*SIN(RADIANS($R$2))+0.25 -> 0.6844889974 | C15: =-(dat!A14-0.25)*SIN(RADIANS($R$2))+dat!B14*COS(RADIANS($R$2)) -> -0.145342065 | D15: =dat!C14-RADIANS($R$2) -> 1.071478616 | E15: =interpolation1D($R$2,aXFOIL,XFOIL!D18:AT18) -> -0.5442599058 | G15: 0.8718964111 | H15: -0.2510663422 | I15: 0.0465755873 | J15: 0.05009593395 | L15: 0.8147920745 | M15: 0.09356339614 | Q15: αCL=0 | R15: =interpolation1D(0,XFOIL!D2:AT2,aXFOIL) -> 5.504327229e-14
B16: =(dat!A15-0.25)*COS(RADIANS($R$2))+dat!B15*SIN(RADIANS($R$2))+0.25 -> 0.6608124694 | C16: =-(dat!A15-0.25)*SIN(RADIANS($R$2))+dat!B15*COS(RADIANS($R$2)) -> -0.1324850372 | D16: =dat!C15-RADIANS($R$2) -> 1.075226149 | E16: =interpolation1D($R$2,aXFOIL,XFOIL!D19:AT19) -> -0.5524962544 | G16: 0.9951122801 | H16: -0.03992011033 | I16: -0.2786107288 | J16: -0.3196680912 | L16: 0.7921776565 | M16: 0.1105298088 | Q16: αCL=0.5 | R16: =interpolation1D(0.5,XFOIL!D2:AT2,aXFOIL) -> 4.465854984
B17: =(dat!A16-0.25)*COS(RADIANS($R$2))+dat!B16*SIN(RADIANS($R$2))+0.25 -> 0.6371040501 | C17: =-(dat!A16-0.25)*SIN(RADIANS($R$2))+dat!B16*COS(RADIANS($R$2)) -> -0.1197274538 | D17: =dat!C16-RADIANS($R$2) -> 1.079120134 | E17: =interpolation1D($R$2,aXFOIL,XFOIL!D20:AT20) -> -0.5611137152 | L17: 0.769556117 | M17: 0.1275954127 | Q17: αs-2 | R17: =interpolation1D(1,XFOIL!D2:AT2,aXFOIL) -> 9.05300991
B18: =(dat!A17-0.25)*COS(RADIANS($R$2))+dat!B17*SIN(RADIANS($R$2))+0.25 -> 0.6133666506 | C18: =-(dat!A17-0.25)*SIN(RADIANS($R$2))+dat!B17*COS(RADIANS($R$2)) -> -0.1070757651 | D18: =dat!C17-RADIANS($R$2) -> 1.083204861 | E18: =interpolation1D($R$2,aXFOIL,XFOIL!D21:AT21) -> -0.5701500773 | G18: 0.8489034192 | H18: -0.2377064152 | I18: 0.05672461854 | J18: 0.0415776275 | L18: 0.7469241341 | M18: 0.1447777167 | Q18: αs | R18: =INDEX(aXFOIL,1,MATCH(MAX(XFOIL!D2:AT2),XFOIL!D2:AT2,0)) -> 19
B19: =(dat!A18-0.25)*COS(RADIANS($R$2))+dat!B18*SIN(RADIANS($R$2))+0.25 -> 0.5896031345 | C19: =-(dat!A18-0.25)*SIN(RADIANS($R$2))+dat!B18*COS(RADIANS($R$2)) -> -0.09453781329 | D19: =dat!C18-RADIANS($R$2) -> 1.087520141 | E19: =interpolation1D($R$2,aXFOIL,XFOIL!D22:AT22) -> -0.5796481967 | G19: 0.9728343343 | H19: -0.02348501666 | I19: -0.2537638914 | J19: -0.3498934065 | L19: 0.7242793651 | M19: 0.1620948442 | Q19: α+2 | R19: =R18+4 -> 23
B20: =(dat!A19-0.25)*COS(RADIANS($R$2))+dat!B19*SIN(RADIANS($R$2))+0.25 -> 0.5658159074 | C20: =-(dat!A19-0.25)*SIN(RADIANS($R$2))+dat!B19*COS(RADIANS($R$2)) -> -0.08212200687 | D20: =dat!C19-RADIANS($R$2) -> 1.092108074 | E20: =interpolation1D($R$2,aXFOIL,XFOIL!D23:AT23) -> -0.5896579623 | L20: 0.7016186369 | M20: 0.1795681664
B21: =(dat!A20-0.25)*COS(RADIANS($R$2))+dat!B20*SIN(RADIANS($R$2))+0.25 -> 0.5420073806 | C21: =-(dat!A20-0.25)*SIN(RADIANS($R$2))+dat!B20*COS(RADIANS($R$2)) -> -0.06983827743 | D21: =dat!C20-RADIANS($R$2) -> 1.097018021 | E21: =interpolation1D($R$2,aXFOIL,XFOIL!D24:AT24) -> -0.600237608 | G21: 0.8256429251 | H21: -0.2243076818 | I21: 0.06960747046 | J21: 0.03179654787 | L21: 0.6789370838 | M21: 0.197222676
B22: =(dat!A21-0.25)*COS(RADIANS($R$2))+dat!B21*SIN(RADIANS($R$2))+0.25 -> 0.5181799954 | C22: =-(dat!A21-0.25)*SIN(RADIANS($R$2))+dat!B21*COS(RADIANS($R$2)) -> -0.05769776449 | D22: =dat!C21-RADIANS($R$2) -> 1.102302524 | E22: =interpolation1D($R$2,aXFOIL,XFOIL!D25:AT25) -> -0.6114552617 | G22: 0.9503441184 | H22: -0.006903171466 | I22: -0.2156770777 | J22: -0.3633795295 | L22: 0.6562291348 | M22: 0.2150875346
B23: =(dat!A22-0.25)*COS(RADIANS($R$2))+dat!B22*SIN(RADIANS($R$2))+0.25 -> 0.4943360677 | C23: =-(dat!A22-0.25)*SIN(RADIANS($R$2))+dat!B22*COS(RADIANS($R$2)) -> -0.04571318368 | D23: =dat!C22-RADIANS($R$2) -> 1.108011744 | E23: =interpolation1D($R$2,aXFOIL,XFOIL!D26:AT26) -> -0.6233915091 | L23: 0.6334899925 | M23: 0.2331961719
B24: =(dat!A23-0.25)*COS(RADIANS($R$2))+dat!B23*SIN(RADIANS($R$2))+0.25 -> 0.4704780216 | C24: =-(dat!A23-0.25)*SIN(RADIANS($R$2))+dat!B23*COS(RADIANS($R$2)) -> -0.03389827448 | D24: =dat!C23-RADIANS($R$2) -> 1.114202145 | E24: =interpolation1D($R$2,aXFOIL,XFOIL!D27:AT27) -> -0.6361421943 | G24: 0.8022608999 | H24: -0.2109526353 | I24: 0.08521547918 | J24: 0.02098309608 | L24: 0.6107135792 | M24: 0.2515893981
B25: =(dat!A24-0.25)*COS(RADIANS($R$2))+dat!B24*SIN(RADIANS($R$2))+0.25 -> 0.4466087748 | C25: =-(dat!A24-0.25)*SIN(RADIANS($R$2))+dat!B24*COS(RADIANS($R$2)) -> -0.02226894121 | D25: =dat!C24-RADIANS($R$2) -> 1.120943541 | E25: =interpolation1D($R$2,aXFOIL,XFOIL!D28:AT28) -> -0.6498227119 | G25: 0.9277841615 | H25: 0.009733732675 | I25: -0.1705811509 | J25: -0.3647780298 | L25: 0.5878909451 | M25: 0.2703173497
B26: =(dat!A25-0.25)*COS(RADIANS($R$2))+dat!B25*SIN(RADIANS($R$2))+0.25 -> 0.4227313033 | C26: =-(dat!A25-0.25)*SIN(RADIANS($R$2))+dat!B25*COS(RADIANS($R$2)) -> -0.01084274245 | D26: =dat!C25-RADIANS($R$2) -> 1.128302378 | E26: =interpolation1D($R$2,aXFOIL,XFOIL!D29:AT29) -> -0.6645736098 | L26: 0.5650146998 | M26: 0.2894403836
B27: =(dat!A26-0.25)*COS(RADIANS($R$2))+dat!B26*SIN(RADIANS($R$2))+0.25 -> 0.3988497456 | C27: =-(dat!A26-0.25)*SIN(RADIANS($R$2))+dat!B26*COS(RADIANS($R$2)) -> 0.000360640046 | D27: =dat!C26-RADIANS($R$2) -> 1.136357503 | E27: =interpolation1D($R$2,aXFOIL,XFOIL!D30:AT30) -> -0.6805679202 | G27: 0.7788051895 | H27: -0.1976670169 | I27: 0.1031023869 | J27: 0.009568303863 | L27: 0.5420757482 | M27: 0.3090343929
B28: =(dat!A27-0.25)*COS(RADIANS($R$2))+dat!B27*SIN(RADIANS($R$2))+0.25 -> 0.3749690241 | C28: =-(dat!A27-0.25)*SIN(RADIANS($R$2))+dat!B27*COS(RADIANS($R$2)) -> 0.0113190193 | D28: =dat!C27-RADIANS($R$2) -> 1.14520561 | E28: =interpolation1D($R$2,aXFOIL,XFOIL!D31:AT31) -> -0.6980216503 | G28: 0.9051995846 | H28: 0.02640567776 | I28: -0.1232879366 | J28: -0.3588264532 | L28: 0.5190612409 | M28: 0.329196337
B29: =(dat!A28-0.25)*COS(RADIANS($R$2))+dat!B28*SIN(RADIANS($R$2))+0.25 -> 0.3510956865 | C29: =-(dat!A28-0.25)*SIN(RADIANS($R$2))+dat!B28*COS(RADIANS($R$2)) -> 0.02200712823 | D29: =dat!C28-RADIANS($R$2) -> 1.154949519 | E29: =interpolation1D($R$2,aXFOIL,XFOIL!D32:AT32) -> -0.717207551 | L29: 0.4959589579 | M29: 0.3500487421
B30: =(dat!A29-0.25)*COS(RADIANS($R$2))+dat!B29*SIN(RADIANS($R$2))+0.25 -> 0.327238629 | C30: =-(dat!A29-0.25)*SIN(RADIANS($R$2))+dat!B29*COS(RADIANS($R$2)) -> 0.03239653027 | D30: =dat!C29-RADIANS($R$2) -> 1.165714492 | E30: =interpolation1D($R$2,aXFOIL,XFOIL!D33:AT33) -> -0.7384761572 | G30: 0.7552932077 | H30: -0.1844591961 | I30: 0.1226634767 | J30: -0.002040246229 | L30: 0.4727531305 | M30: 0.3717522264
B31: =(dat!A30-0.25)*COS(RADIANS($R$2))+dat!B30*SIN(RADIANS($R$2))+0.25 -> 0.3034102171 | C31: =-(dat!A30-0.25)*SIN(RADIANS($R$2))+dat!B30*COS(RADIANS($R$2)) -> 0.04245416572 | D31: =dat!C30-RADIANS($R$2) -> 1.177657144 | E31: =interpolation1D($R$2,aXFOIL,XFOIL!D34:AT34) -> -0.7622873783 | G31: 0.8826052084 | H31: 0.04311456106 | I31: -0.07681759775 | J31: -0.3493322388 | L31: 0.4494225512 | M31: 0.394520793
B32: =(dat!A31-0.25)*COS(RADIANS($R$2))+dat!B31*SIN(RADIANS($R$2))+0.25 -> 0.2796276666 | C32: =-(dat!A31-0.25)*SIN(RADIANS($R$2))+dat!B31*COS(RADIANS($R$2)) -> 0.05214176568 | D32: =dat!C31-RADIANS($R$2) -> 1.190965901 | E32: =interpolation1D($R$2,aXFOIL,XFOIL!D35:AT35) -> -0.7892565131 | L32: 0.4259412176 | M32: 0.418643888
B33: =(dat!A32-0.25)*COS(RADIANS($R$2))+dat!B32*SIN(RADIANS($R$2))+0.25 -> 0.2559162539 | C33: =-(dat!A32-0.25)*SIN(RADIANS($R$2))+dat!B32*COS(RADIANS($R$2)) -> 0.06141394607 | D33: =dat!C32-RADIANS($R$2) -> 1.205882568 | E33: =interpolation1D($R$2,aXFOIL,XFOIL!D36:AT36) -> -0.8202250004 | G33: 0.7317331499 | H33: -0.171333412 | I33: 0.1434008428 | J33: -0.01358438359 | L33: 0.4022725822 | M33: 0.4445224007
B34: =(dat!A33-0.25)*COS(RADIANS($R$2))+dat!B33*SIN(RADIANS($R$2))+0.25 -> 0.2323142615 | C34: =-(dat!A33-0.25)*SIN(RADIANS($R$2))+dat!B33*COS(RADIANS($R$2)) -> 0.07021578246 | D34: =dat!C33-RADIANS($R$2) -> 1.222715393 | E34: =interpolation1D($R$2,aXFOIL,XFOIL!D37:AT37) -> -0.8563734293 | G34: 0.8600053924 | H34: 0.05986900143 | I34: -0.03240015995 | J34: -0.3385413399 | L34: 0.3783663773 | M34: 0.4727237229
B35: =(dat!A34-0.25)*COS(RADIANS($R$2))+dat!B34*SIN(RADIANS($R$2))+0.25 -> 0.2088821556 | C35: =-(dat!A34-0.25)*SIN(RADIANS($R$2))+dat!B34*COS(RADIANS($R$2)) -> 0.07847934911 | D35: =dat!C34-RADIANS($R$2) -> 1.241863817 | E35: =interpolation1D($R$2,aXFOIL,XFOIL!D38:AT38) -> -0.8994016647 | L35: 0.3541503434 | M35: 0.5040706933
B36: =(dat!A35-0.25)*COS(RADIANS($R$2))+dat!B35*SIN(RADIANS($R$2))+0.25 -> 0.185721791 | C36: =-(dat!A35-0.25)*SIN(RADIANS($R$2))+dat!B35*COS(RADIANS($R$2)) -> 0.08611752219 | D36: =dat!C35-RADIANS($R$2) -> 1.263850353 | E36: =interpolation1D($R$2,aXFOIL,XFOIL!D39:AT39) -> -0.9518015981 | G36: 0.7081304245 | H36: -0.1582930467 | I36: 0.1649838259 | J36: -0.02493863477 | L36: 0.3295146307 | M36: 0.5397750911
B37: =(dat!A36-0.25)*COS(RADIANS($R$2))+dat!B36*SIN(RADIANS($R$2))+0.25 -> 0.1630122485 | C37: =-(dat!A36-0.25)*SIN(RADIANS($R$2))+dat!B36*COS(RADIANS($R$2)) -> 0.09301550336 | D37: =dat!C36-RADIANS($R$2) -> 1.289320657 | E37: =interpolation1D($R$2,aXFOIL,XFOIL!D40:AT40) -> -1.017219424 | G37: 0.8374012986 | H37: 0.07668103965 | I37: 0.009651585601 | J37: -0.3277860743 | L37: 0.3042905728 | M37: 0.581609685
B38: =(dat!A37-0.25)*COS(RADIANS($R$2))+dat!B37*SIN(RADIANS($R$2))+0.25 -> 0.1410734817 | C38: =-(dat!A37-0.25)*SIN(RADIANS($R$2))+dat!B37*COS(RADIANS($R$2)) -> 0.09902259732 | D38: =dat!C37-RADIANS($R$2) -> 1.318981112 | E38: =interpolation1D($R$2,aXFOIL,XFOIL!D41:AT41) -> -1.100658059 | L38: 0.2781947476 | M38: 0.6319952038
B39: =(dat!A38-0.25)*COS(RADIANS($R$2))+dat!B38*SIN(RADIANS($R$2))+0.25 -> 0.1204370771 | C39: =-(dat!A38-0.25)*SIN(RADIANS($R$2))+dat!B38*COS(RADIANS($R$2)) -> 0.103959981 | D39: =dat!C38-RADIANS($R$2) -> 1.353471346 | E39: =interpolation1D($R$2,aXFOIL,XFOIL!D42:AT42) -> -1.207351685 | G39: 0.6844889974 | H39: -0.145342065 | I39: 0.1872054468 | J39: -0.03605392546 | L39: 0.2506006366 | M39: 0.6934359943
B40: =(dat!A39-0.25)*COS(RADIANS($R$2))+dat!B39*SIN(RADIANS($R$2))+0.25 -> 0.101816297 | C40: =-(dat!A39-0.25)*SIN(RADIANS($R$2))+dat!B39*COS(RADIANS($R$2)) -> 0.1076757881 | D40: =dat!C39-RADIANS($R$2) -> 1.393229656 | E40: =interpolation1D($R$2,aXFOIL,XFOIL!D43:AT43) -> -1.338225126 | G40: 0.8147920745 | H40: 0.09356339614 | I40: 0.04954553428 | J40: -0.3175944525 | L40: 0.220005015 | M40: 0.7662675046
B41: =(dat!A40-0.25)*COS(RADIANS($R$2))+dat!B40*SIN(RADIANS($R$2))+0.25 -> 0.0858311962 | C41: =-(dat!A40-0.25)*SIN(RADIANS($R$2))+dat!B40*COS(RADIANS($R$2)) -> 0.1101484273 | D41: =dat!C40-RADIANS($R$2) -> 1.438484435 | E41: =interpolation1D($R$2,aXFOIL,XFOIL!D44:AT44) -> -1.484784365 | L41: 0.1837721593 | M41: 0.8460517635
B42: =(dat!A41-0.25)*COS(RADIANS($R$2))+dat!B41*SIN(RADIANS($R$2))+0.25 -> 0.07265352984 | C42: =-(dat!A41-0.25)*SIN(RADIANS($R$2))+dat!B41*COS(RADIANS($R$2)) -> 0.1115317166 | D42: =dat!C41-RADIANS($R$2) -> 1.489285623 | E42: =interpolation1D($R$2,aXFOIL,XFOIL!D45:AT45) -> -1.631979704 | G42: 0.6608124694 | H42: -0.1324850372 | I42: 0.2099322796 | J42: -0.04691750862 | L42: 0.1390918104 | M42: 0.9248123529
B43: =(dat!A42-0.25)*COS(RADIANS($R$2))+dat!B42*SIN(RADIANS($R$2))+0.25 -> 0.06198513924 | C43: =-(dat!A42-0.25)*SIN(RADIANS($R$2))+dat!B42*COS(RADIANS($R$2)) -> 0.1120717162 | D43: =dat!C42-RADIANS($R$2) -> 1.545779413 | E43: =interpolation1D($R$2,aXFOIL,XFOIL!D46:AT46) -> -2.278501987 | G43: 0.7921776565 | H43: 0.1105298088 | I43: 0.08754817586 | J43: -0.3082748017 | L43: 0.09048270997 | M43: 1.250966231
B44: =(dat!A43-0.25)*COS(RADIANS($R$2))+dat!B43*SIN(RADIANS($R$2))+0.25 -> 0.05333042741 | C44: =-(dat!A43-0.25)*SIN(RADIANS($R$2))+dat!B43*COS(RADIANS($R$2)) -> 0.1119931347 | D44: =dat!C43-RADIANS($R$2) -> 1.608729554 | E44: =interpolation1D($R$2,aXFOIL,XFOIL!D47:AT47) -> -3.115278959 | L44: -0.005741696156 | M44: 1.668512082
B45: =(dat!A44-0.25)*COS(RADIANS($R$2))+dat!B44*SIN(RADIANS($R$2))+0.25 -> 0.04622013238 | C45: =-(dat!A44-0.25)*SIN(RADIANS($R$2))+dat!B44*COS(RADIANS($R$2)) -> 0.1114539888 | D45: =dat!C44-RADIANS($R$2) -> 1.679685363 | E45: =interpolation1D($R$2,aXFOIL,XFOIL!D48:AT48) -> -3.947217703 | G45: 0.6371040501 | H45: -0.1197274538 | I45: 0.2330734593 | J45: -0.05753307379 | L45: -0.1682598054 | M45: 2.073374032
B46: =(dat!A45-0.25)*COS(RADIANS($R$2))+dat!B45*SIN(RADIANS($R$2))+0.25 -> 0.04029513739 | C46: =-(dat!A45-0.25)*SIN(RADIANS($R$2))+dat!B45*COS(RADIANS($R$2)) -> 0.1105503325 | D46: =dat!C45-RADIANS($R$2) -> 1.761273638 | E46: =interpolation1D($R$2,aXFOIL,XFOIL!D49:AT49) -> -4.814454079 | G46: 0.769556117 | H46: 0.1275954127 | I46: 0.1239713123 | J46: -0.2998740665 | L46: -0.4154593694 | M46: 2.474240212
B47: =(dat!A46-0.25)*COS(RADIANS($R$2))+dat!B46*SIN(RADIANS($R$2))+0.25 -> 0.03529610167 | C47: =-(dat!A46-0.25)*SIN(RADIANS($R$2))+dat!B46*COS(RADIANS($R$2)) -> 0.1093302182 | D47: =dat!C46-RADIANS($R$2) -> 1.85707031 | E47: =interpolation1D($R$2,aXFOIL,XFOIL!D50:AT50) -> -5.742569923 | L47: -0.7754968154 | M47: 2.863761589
B48: =(dat!A47-0.25)*COS(RADIANS($R$2))+dat!B47*SIN(RADIANS($R$2))+0.25 -> 0.03105928535 | C48: =-(dat!A47-0.25)*SIN(RADIANS($R$2))+dat!B47*COS(RADIANS($R$2)) -> 0.107812525 | D48: =dat!C47-RADIANS($R$2) -> 1.970908991 | E48: =interpolation1D($R$2,aXFOIL,XFOIL!D51:AT51) -> -6.704479218 | G48: 0.6133666506 | H48: -0.1070757651 | I48: 0.2565628833 | J48: -0.06791123649 | L48: -1.274712163 | M48: 3.195282577
B49: =(dat!A48-0.25)*COS(RADIANS($R$2))+dat!B48*SIN(RADIANS($R$2))+0.25 -> 0.02749376471 | C49: =-(dat!A48-0.25)*SIN(RADIANS($R$2))+dat!B48*COS(RADIANS($R$2)) -> 0.1060067332 | D49: =dat!C48-RADIANS($R$2) -> 2.107156086 | E49: =interpolation1D($R$2,aXFOIL,XFOIL!D52:AT52) -> -7.630800247 | G49: 0.7469241341 | H49: 0.1447777167 | I49: 0.1590748756 | J49: -0.2923884163 | L49: -1.922215095 | M49: 3.385627666
B50: =(dat!A49-0.25)*COS(RADIANS($R$2))+dat!B49*SIN(RADIANS($R$2))+0.25 -> 0.02453874029 | C50: =-(dat!A49-0.25)*SIN(RADIANS($R$2))+dat!B49*COS(RADIANS($R$2)) -> 0.1039026922 | D50: =dat!C49-RADIANS($R$2) -> 2.266504539 | E50: =interpolation1D($R$2,aXFOIL,XFOIL!D53:AT53) -> -8.293109894 | L50: -2.633109503 | M50: 3.286798189
B51: =(dat!A50-0.25)*COS(RADIANS($R$2))+dat!B50*SIN(RADIANS($R$2))+0.25 -> 0.02220128714 | C51: =-(dat!A50-0.25)*SIN(RADIANS($R$2))+dat!B50*COS(RADIANS($R$2)) -> 0.1015314018 | D51: =dat!C50-RADIANS($R$2) -> 2.442142459 | E51: =interpolation1D($R$2,aXFOIL,XFOIL!D54:AT54) -> -8.432855606 | G51: 0.5896031345 | H51: -0.09453781329 | I51: 0.2803503465 | J51: -0.07806534086 | L51: -3.204193522 | M51: 2.816055292
B52: =(dat!A51-0.25)*COS(RADIANS($R$2))+dat!B51*SIN(RADIANS($R$2))+0.25 -> 0.02050656892 | C52: =-(dat!A51-0.25)*SIN(RADIANS($R$2))+dat!B51*COS(RADIANS($R$2)) -> 0.09899744359 | D52: =dat!C51-RADIANS($R$2) -> 2.65481201 | E52: =interpolation1D($R$2,aXFOIL,XFOIL!D55:AT55) -> -7.911246777 | G52: 0.7242793651 | H52: 0.1620948442 | I52: 0.1930867483 | J52: -0.2857534185 | L52: -3.475645041 | M52: 1.949370462
B53: =(dat!A52-0.25)*COS(RADIANS($R$2))+dat!B52*SIN(RADIANS($R$2))+0.25 -> 0.01936766582 | C53: =-(dat!A52-0.25)*SIN(RADIANS($R$2))+dat!B52*COS(RADIANS($R$2)) -> 0.09631435605 | D53: =dat!C52-RADIANS($R$2) -> 2.867481562 | E53: =interpolation1D($R$2,aXFOIL,XFOIL!D56:AT56) -> -6.871387005 | L53: -3.288058335 | M53: 1.02632677
B54: =(dat!A53-0.25)*COS(RADIANS($R$2))+dat!B53*SIN(RADIANS($R$2))+0.25 -> 0.01872213903 | C54: =-(dat!A53-0.25)*SIN(RADIANS($R$2))+dat!B53*COS(RADIANS($R$2)) -> 0.09333504249 | D54: =dat!C53-RADIANS($R$2) -> 3.038191393 | E54: =interpolation1D($R$2,aXFOIL,XFOIL!D57:AT57) -> -5.440302372 | G54: 0.5658159074 | H54: -0.08212200687 | I54: 0.3043963616 | J54: -0.08800958675 | L54: -2.686900314 | M54: 0.3741011632
B55: =(dat!A54-0.25)*COS(RADIANS($R$2))+dat!B54*SIN(RADIANS($R$2))+0.25 -> 0.01864010688 | C55: =-(dat!A54-0.25)*SIN(RADIANS($R$2))+dat!B54*COS(RADIANS($R$2)) -> 0.09000638271 | D55: =dat!C54-RADIANS($R$2) -> 3.213829312 | E55: =interpolation1D($R$2,aXFOIL,XFOIL!D58:AT58) -> -3.800178528 | G55: 0.7016186369 | H55: 0.1795681664 | I55: 0.2261932587 | J55: -0.2798918507 | L55: -1.876493851 | M55: -0.04713037807
B56: =(dat!A55-0.25)*COS(RADIANS($R$2))+dat!B55*SIN(RADIANS($R$2))+0.25 -> 0.01917931888 | C56: =-(dat!A55-0.25)*SIN(RADIANS($R$2))+dat!B55*COS(RADIANS($R$2)) -> 0.08641912632 | D56: =dat!C55-RADIANS($R$2) -> 3.373177765 | E56: =interpolation1D($R$2,aXFOIL,XFOIL!D59:AT59) -> -2.337965012 | L56: -1.118595799 | M56: -0.1818864475
B57: =(dat!A56-0.25)*COS(RADIANS($R$2))+dat!B56*SIN(RADIANS($R$2))+0.25 -> 0.02035715974 | C57: =-(dat!A56-0.25)*SIN(RADIANS($R$2))+dat!B56*COS(RADIANS($R$2)) -> 0.08259989704 | D57: =dat!C56-RADIANS($R$2) -> 3.50942486 | E57: =interpolation1D($R$2,aXFOIL,XFOIL!D60:AT60) -> -1.202282667 | G57: 0.5420073806 | H57: -0.06983827743 | I57: 0.3286685575 | J57: -0.09775804432 | L57: -0.5405732661 | M57: -0.1335666135
B58: =(dat!A57-0.25)*COS(RADIANS($R$2))+dat!B57*SIN(RADIANS($R$2))+0.25 -> 0.02220856253 | C58: =-(dat!A57-0.25)*SIN(RADIANS($R$2))+dat!B57*COS(RADIANS($R$2)) -> 0.07849790814 | D58: =dat!C57-RADIANS($R$2) -> 3.623263542 | E58: =interpolation1D($R$2,aXFOIL,XFOIL!D61:AT61) -> -0.3900355101 | G58: 0.6789370838 | H58: 0.197222676 | I58: 0.2585533683 | J58: -0.2747093919 | L58: -0.1506204826 | M58: -0.01184613396
B59: =(dat!A58-0.25)*COS(RADIANS($R$2))+dat!B58*SIN(RADIANS($R$2))+0.25 -> 0.02480350775 | C59: =-(dat!A58-0.25)*SIN(RADIANS($R$2))+dat!B58*COS(RADIANS($R$2)) -> 0.07405434017 | D59: =dat!C58-RADIANS($R$2) -> 3.719060213 | E59: =interpolation1D($R$2,aXFOIL,XFOIL!D62:AT62) -> 0.1682070047 | N59: -0.04566242701 | O59: 0.0281419111
B60: =(dat!A59-0.25)*COS(RADIANS($R$2))+dat!B59*SIN(RADIANS($R$2))+0.25 -> 0.02826931917 | C60: =-(dat!A59-0.25)*SIN(RADIANS($R$2))+dat!B59*COS(RADIANS($R$2)) -> 0.06916452304 | D60: =dat!C59-RADIANS($R$2) -> 3.800648488 | E60: =interpolation1D($R$2,aXFOIL,XFOIL!D63:AT63) -> 0.5392354131 | G60: 0.5181799954 | H60: -0.05769776449 | I60: 0.353140299 | J60: -0.1073240679 | N60: -0.1848825569 | O60: -0.09594145935
B61: =(dat!A60-0.25)*COS(RADIANS($R$2))+dat!B60*SIN(RADIANS($R$2))+0.25 -> 0.03282071603 | C61: =-(dat!A60-0.25)*SIN(RADIANS($R$2))+dat!B60*COS(RADIANS($R$2)) -> 0.06367528263 | D61: =dat!C60-RADIANS($R$2) -> 3.871604297 | E61: =interpolation1D($R$2,aXFOIL,XFOIL!D64:AT64) -> 0.7761495709 | G61: 0.6562291348 | H61: 0.2150875346 | I61: 0.2902925438 | J61: -0.2701260108 | N61: -0.256359667 | O61: -0.195123375
B62: =(dat!A61-0.25)*COS(RADIANS($R$2))+dat!B61*SIN(RADIANS($R$2))+0.25 -> 0.03877625723 | C62: =-(dat!A61-0.25)*SIN(RADIANS($R$2))+dat!B61*COS(RADIANS($R$2)) -> 0.05739501663 | D62: =dat!C61-RADIANS($R$2) -> 3.934554438 | E62: =interpolation1D($R$2,aXFOIL,XFOIL!D65:AT65) -> 0.9164803624 | N62: -0.282788437 | O62: -0.2690712314
B63: =(dat!A62-0.25)*COS(RADIANS($R$2))+dat!B62*SIN(RADIANS($R$2))+0.25 -> 0.0465755873 | C63: =-(dat!A62-0.25)*SIN(RADIANS($R$2))+dat!B62*COS(RADIANS($R$2)) -> 0.05009593395 | D63: =dat!C62-RADIANS($R$2) -> 3.991048228 | E63: =interpolation1D($R$2,aXFOIL,XFOIL!D66:AT66) -> 0.9848280549 | G63: 0.4943360677 | H63: -0.04571318368 | I63: 0.3777888618 | J63: -0.1167204994 | N63: -0.2786107288 | O63: -0.3196680912
B64: =(dat!A63-0.25)*COS(RADIANS($R$2))+dat!B63*SIN(RADIANS($R$2))+0.25 -> 0.05672461854 | C64: =-(dat!A63-0.25)*SIN(RADIANS($R$2))+dat!B63*COS(RADIANS($R$2)) -> 0.0415776275 | D64: =dat!C63-RADIANS($R$2) -> 4.041849416 | E64: =interpolation1D($R$2,aXFOIL,XFOIL!D67:AT67) -> 0.9993051291 | G64: 0.6334899925 | H64: 0.2331961719 | I64: 0.3215214701 | J64: -0.2660457106 | N64: -0.2537638914 | O64: -0.3498934065
B65: =(dat!A64-0.25)*COS(RADIANS($R$2))+dat!B64*SIN(RADIANS($R$2))+0.25 -> 0.06960747046 | C65: =-(dat!A64-0.25)*SIN(RADIANS($R$2))+dat!B64*COS(RADIANS($R$2)) -> 0.03179654787 | D65: =dat!C64-RADIANS($R$2) -> 4.087104196 | E65: =interpolation1D($R$2,aXFOIL,XFOIL!D68:AT68) -> 0.9747849107 | N65: -0.2156770777 | O65: -0.3633795295
B66: =(dat!A65-0.25)*COS(RADIANS($R$2))+dat!B65*SIN(RADIANS($R$2))+0.25 -> 0.08521547918 | C66: =-(dat!A65-0.25)*SIN(RADIANS($R$2))+dat!B65*COS(RADIANS($R$2)) -> 0.02098309608 | D66: =dat!C65-RADIANS($R$2) -> 4.126862505 | E66: =interpolation1D($R$2,aXFOIL,XFOIL!D69:AT69) -> 0.9257290363 | G66: 0.4704780216 | H66: -0.03389827448 | I66: 0.4025948669 | J66: -0.1259592104 | N66: -0.1705811509 | O66: -0.3647780298
B67: =(dat!A66-0.25)*COS(RADIANS($R$2))+dat!B66*SIN(RADIANS($R$2))+0.25 -> 0.1031023869 | C67: =-(dat!A66-0.25)*SIN(RADIANS($R$2))+dat!B66*COS(RADIANS($R$2)) -> 0.009568303863 | D67: =dat!C66-RADIANS($R$2) -> 4.161352739 | E67: =interpolation1D($R$2,aXFOIL,XFOIL!D70:AT70) -> 0.8647942543 | G67: 0.6107135792 | H67: 0.2515893981 | I67: 0.3523322156 | J67: -0.2623829236 | N67: -0.1232879366 | O67: -0.3588264532
B68: =(dat!A67-0.25)*COS(RADIANS($R$2))+dat!B67*SIN(RADIANS($R$2))+0.25 -> 0.1226634767 | C68: =-(dat!A67-0.25)*SIN(RADIANS($R$2))+dat!B67*COS(RADIANS($R$2)) -> -0.002040246229 | D68: =dat!C67-RADIANS($R$2) -> 4.191013195 | E68: =interpolation1D($R$2,aXFOIL,XFOIL!D71:AT71) -> 0.8010104299 | N68: -0.07681759775 | O68: -0.3493322388
B69: =(dat!A68-0.25)*COS(RADIANS($R$2))+dat!B68*SIN(RADIANS($R$2))+0.25 -> 0.1434008428 | C69: =-(dat!A68-0.25)*SIN(RADIANS($R$2))+dat!B68*COS(RADIANS($R$2)) -> -0.01358438359 | D69: =dat!C68-RADIANS($R$2) -> 4.216483499 | E69: =interpolation1D($R$2,aXFOIL,XFOIL!D72:AT72) -> 0.7389262915 | G69: 0.4466087748 | H69: -0.02226894121 | I69: 0.4275412812 | J69: -0.1350508959 | N69: -0.03240015995 | O69: -0.3385413399
B70: =(dat!A69-0.25)*COS(RADIANS($R$2))+dat!B69*SIN(RADIANS($R$2))+0.25 -> 0.1649838259 | C70: =-(dat!A69-0.25)*SIN(RADIANS($R$2))+dat!B69*COS(RADIANS($R$2)) -> -0.02493863477 | D70: =dat!C69-RADIANS($R$2) -> 4.238470034 | E70: =interpolation1D($R$2,aXFOIL,XFOIL!D73:AT73) -> 0.6807192564 | G70: 0.5878909451 | H70: 0.2703173497 | I70: 0.3827986159 | J70: -0.2590629638 | N70: 0.009651585601 | O70: -0.3277860743
B71: =(dat!A70-0.25)*COS(RADIANS($R$2))+dat!B70*SIN(RADIANS($R$2))+0.25 -> 0.1872054468 | C71: =-(dat!A70-0.25)*SIN(RADIANS($R$2))+dat!B70*COS(RADIANS($R$2)) -> -0.03605392546 | D71: =dat!C70-RADIANS($R$2) -> 4.257618458 | E71: =interpolation1D($R$2,aXFOIL,XFOIL!D74:AT74) -> 0.6267864704 | N71: 0.04954553428 | O71: -0.3175944525
B72: =(dat!A71-0.25)*COS(RADIANS($R$2))+dat!B71*SIN(RADIANS($R$2))+0.25 -> 0.2099322796 | C72: =-(dat!A71-0.25)*SIN(RADIANS($R$2))+dat!B71*COS(RADIANS($R$2)) -> -0.04691750862 | D72: =dat!C71-RADIANS($R$2) -> 4.274451283 | E72: =interpolation1D($R$2,aXFOIL,XFOIL!D75:AT75) -> 0.5771845579 | G72: 0.4227313033 | H72: -0.01084274245 | I72: 0.452613407 | J72: -0.1440056124 | N72: 0.08754817586 | O72: -0.3082748017
B73: =(dat!A72-0.25)*COS(RADIANS($R$2))+dat!B72*SIN(RADIANS($R$2))+0.25 -> 0.2330734593 | C73: =-(dat!A72-0.25)*SIN(RADIANS($R$2))+dat!B72*COS(RADIANS($R$2)) -> -0.05753307379 | D73: =dat!C72-RADIANS($R$2) -> 4.28936795 | E73: =interpolation1D($R$2,aXFOIL,XFOIL!D76:AT76) -> 0.5315352678 | G73: 0.5650146998 | H73: 0.2894403836 | I73: 0.4129864606 | J73: -0.2560055809 | N73: 0.1239713123 | O73: -0.2998740665
B74: =(dat!A73-0.25)*COS(RADIANS($R$2))+dat!B73*SIN(RADIANS($R$2))+0.25 -> 0.2565628833 | C74: =-(dat!A73-0.25)*SIN(RADIANS($R$2))+dat!B73*COS(RADIANS($R$2)) -> -0.06791123649 | D74: =dat!C73-RADIANS($R$2) -> 4.302676707 | E74: =interpolation1D($R$2,aXFOIL,XFOIL!D77:AT77) -> 0.4894646704 | N74: 0.1590748756 | O74: -0.2923884163
B75: =(dat!A74-0.25)*COS(RADIANS($R$2))+dat!B74*SIN(RADIANS($R$2))+0.25 -> 0.2803503465 | C75: =-(dat!A74-0.25)*SIN(RADIANS($R$2))+dat!B74*COS(RADIANS($R$2)) -> -0.07806534086 | D75: =dat!C74-RADIANS($R$2) -> 4.314619359 | E75: =interpolation1D($R$2,aXFOIL,XFOIL!D78:AT78) -> 0.4505519867 | G75: 0.3988497456 | H75: 0.000360640046 | I75: 0.477797777 | J75: -0.1528323093 | N75: 0.1930867483 | O75: -0.2857534185
B76: =(dat!A75-0.25)*COS(RADIANS($R$2))+dat!B75*SIN(RADIANS($R$2))+0.25 -> 0.3043963616 | C76: =-(dat!A75-0.25)*SIN(RADIANS($R$2))+dat!B75*COS(RADIANS($R$2)) -> -0.08800958675 | D76: =dat!C75-RADIANS($R$2) -> 4.325384332 | E76: =interpolation1D($R$2,aXFOIL,XFOIL!D79:AT79) -> 0.4144129753 | G76: 0.5420757482 | H76: 0.3090343929 | I76: 0.4429549692 | J76: -0.2531279312 | N76: 0.2261932587 | O76: -0.2798918507
B77: =(dat!A76-0.25)*COS(RADIANS($R$2))+dat!B76*SIN(RADIANS($R$2))+0.25 -> 0.3286685575 | C77: =-(dat!A76-0.25)*SIN(RADIANS($R$2))+dat!B76*COS(RADIANS($R$2)) -> -0.09775804432 | D77: =dat!C76-RADIANS($R$2) -> 4.335128241 | E77: =interpolation1D($R$2,aXFOIL,XFOIL!D80:AT80) -> 0.3806726635 | N77: 0.2585533683 | O77: -0.2747093919
B78: =(dat!A77-0.25)*COS(RADIANS($R$2))+dat!B77*SIN(RADIANS($R$2))+0.25 -> 0.353140299 | C78: =-(dat!A77-0.25)*SIN(RADIANS($R$2))+dat!B77*COS(RADIANS($R$2)) -> -0.1073240679 | D78: =dat!C77-RADIANS($R$2) -> 4.343976349 | E78: =interpolation1D($R$2,aXFOIL,XFOIL!D81:AT81) -> 0.3490232825 | G78: 0.3749690241 | H78: 0.0113190193 | I78: 0.5030828237 | J78: -0.1615387868 | N78: 0.2902925438 | O78: -0.2701260108
B79: =(dat!A78-0.25)*COS(RADIANS($R$2))+dat!B78*SIN(RADIANS($R$2))+0.25 -> 0.3777888618 | C79: =-(dat!A78-0.25)*SIN(RADIANS($R$2))+dat!B78*COS(RADIANS($R$2)) -> -0.1167204994 | D79: =dat!C78-RADIANS($R$2) -> 4.352031474 | E79: =interpolation1D($R$2,aXFOIL,XFOIL!D82:AT82) -> 0.3191491067 | G79: 0.5190612409 | H79: 0.329196337 | I79: 0.472746153 | J79: -0.2503750801 | N79: 0.3215214701 | O79: -0.2660457106
B80: =(dat!A79-0.25)*COS(RADIANS($R$2))+dat!B79*SIN(RADIANS($R$2))+0.25 -> 0.4025948669 | C80: =-(dat!A79-0.25)*SIN(RADIANS($R$2))+dat!B79*COS(RADIANS($R$2)) -> -0.1259592104 | D80: =dat!C79-RADIANS($R$2) -> 4.35939031 | E80: =interpolation1D($R$2,aXFOIL,XFOIL!D83:AT83) -> 0.2907766402 | N80: 0.3523322156 | O80: -0.2623829236
B81: =(dat!A80-0.25)*COS(RADIANS($R$2))+dat!B80*SIN(RADIANS($R$2))+0.25 -> 0.4275412812 | C81: =-(dat!A80-0.25)*SIN(RADIANS($R$2))+dat!B80*COS(RADIANS($R$2)) -> -0.1350508959 | D81: =dat!C80-RADIANS($R$2) -> 4.366131706 | E81: =interpolation1D($R$2,aXFOIL,XFOIL!D84:AT84) -> 0.2636732757 | G81: 0.3510956865 | H81: 0.02200712823 | I81: 0.5284577916 | J81: -0.1701322123 | N81: 0.3827986159 | O81: -0.2590629638
B82: =(dat!A81-0.25)*COS(RADIANS($R$2))+dat!B81*SIN(RADIANS($R$2))+0.25 -> 0.452613407 | C82: =-(dat!A81-0.25)*SIN(RADIANS($R$2))+dat!B81*COS(RADIANS($R$2)) -> -0.1440056124 | D82: =dat!C81-RADIANS($R$2) -> 4.372322107 | E82: =interpolation1D($R$2,aXFOIL,XFOIL!D85:AT85) -> 0.2376071364 | G82: 0.4959589579 | H82: 0.3500487421 | I82: 0.5024063607 | J82: -0.2476624912 | N82: 0.4129864606 | O82: -0.2560055809
B83: =(dat!A82-0.25)*COS(RADIANS($R$2))+dat!B82*SIN(RADIANS($R$2))+0.25 -> 0.477797777 | C83: =-(dat!A82-0.25)*SIN(RADIANS($R$2))+dat!B82*COS(RADIANS($R$2)) -> -0.1528323093 | D83: =dat!C82-RADIANS($R$2) -> 4.378031327 | E83: =interpolation1D($R$2,aXFOIL,XFOIL!D86:AT86) -> 0.2123509645 | N83: 0.4429549692 | O83: -0.2531279312
B84: =(dat!A83-0.25)*COS(RADIANS($R$2))+dat!B83*SIN(RADIANS($R$2))+0.25 -> 0.5030828237 | C84: =-(dat!A83-0.25)*SIN(RADIANS($R$2))+dat!B83*COS(RADIANS($R$2)) -> -0.1615387868 | D84: =dat!C83-RADIANS($R$2) -> 4.38331583 | E84: =interpolation1D($R$2,aXFOIL,XFOIL!D87:AT87) -> 0.187746644 | G84: 0.327238629 | H84: 0.03239653027 | I84: 0.5539129717 | J84: -0.1786185676 | N84: 0.472746153 | O84: -0.2503750801
B85: =(dat!A84-0.25)*COS(RADIANS($R$2))+dat!B84*SIN(RADIANS($R$2))+0.25 -> 0.5284577916 | C85: =-(dat!A84-0.25)*SIN(RADIANS($R$2))+dat!B84*COS(RADIANS($R$2)) -> -0.1701322123 | D85: =dat!C84-RADIANS($R$2) -> 4.388225777 | E85: =interpolation1D($R$2,aXFOIL,XFOIL!D88:AT88) -> 0.163580209 | G85: 0.4727531305 | H85: 0.3717522264 | I85: 0.5319697569 | J85: -0.2449286755 | N85: 0.5024063607 | O85: -0.2476624912
B86: =(dat!A85-0.25)*COS(RADIANS($R$2))+dat!B85*SIN(RADIANS($R$2))+0.25 -> 0.5539129717 | C86: =-(dat!A85-0.25)*SIN(RADIANS($R$2))+dat!B85*COS(RADIANS($R$2)) -> -0.1786185676 | D86: =dat!C85-RADIANS($R$2) -> 4.39281371 | E86: =interpolation1D($R$2,aXFOIL,XFOIL!D89:AT89) -> 0.1396930218 | N86: 0.5319697569 | O86: -0.2449286755
B87: =(dat!A86-0.25)*COS(RADIANS($R$2))+dat!B86*SIN(RADIANS($R$2))+0.25 -> 0.5794395449 | C87: =-(dat!A86-0.25)*SIN(RADIANS($R$2))+dat!B86*COS(RADIANS($R$2)) -> -0.1870030174 | D87: =dat!C86-RADIANS($R$2) -> 4.39712899 | E87: =interpolation1D($R$2,aXFOIL,XFOIL!D90:AT90) -> 0.1158998087 | G87: 0.3034102171 | H87: 0.04245416572 | I87: 0.5794395449 | J87: -0.1870030174 | N87: 0.5614713855 | O87: -0.2420969069
B88: =(dat!A87-0.25)*COS(RADIANS($R$2))+dat!B87*SIN(RADIANS($R$2))+0.25 -> 0.6050297913 | C88: =-(dat!A87-0.25)*SIN(RADIANS($R$2))+dat!B87*COS(RADIANS($R$2)) -> -0.1952896721 | D88: =dat!C87-RADIANS($R$2) -> 4.401213717 | E88: =interpolation1D($R$2,aXFOIL,XFOIL!D91:AT91) -> 0.09206023812 | G88: 0.4494225512 | H88: 0.394520793 | I88: 0.5614713855 | J88: -0.2420969069 | N88: 0.5909363968 | O88: -0.2391091665
B89: =(dat!A88-0.25)*COS(RADIANS($R$2))+dat!B88*SIN(RADIANS($R$2))+0.25 -> 0.6306760807 | C89: =-(dat!A88-0.25)*SIN(RADIANS($R$2))+dat!B88*COS(RADIANS($R$2)) -> -0.2034819196 | D89: =dat!C88-RADIANS($R$2) -> 4.405107703 | E89: =interpolation1D($R$2,aXFOIL,XFOIL!D92:AT92) -> 0.06797628105 | N89: 0.6203957429 | O89: -0.2358780359
B90: =(dat!A89-0.25)*COS(RADIANS($R$2))+dat!B89*SIN(RADIANS($R$2))+0.25 -> 0.656371751 | C90: =-(dat!A89-0.25)*SIN(RADIANS($R$2))+dat!B89*COS(RADIANS($R$2)) -> -0.2115821466 | D90: =dat!C89-RADIANS($R$2) -> 4.408855236 | E90: =interpolation1D($R$2,aXFOIL,XFOIL!D93:AT93) -> 0.04348322377 | G90: 0.2796276666 | H90: 0.05214176568 | I90: 0.6050297913 | J90: -0.1952896721 | N90: 0.6498733078 | O90: -0.2323298675
B91: =(dat!A90-0.25)*COS(RADIANS($R$2))+dat!B90*SIN(RADIANS($R$2))+0.25 -> 0.6821106227 | C91: =-(dat!A90-0.25)*SIN(RADIANS($R$2))+dat!B90*COS(RADIANS($R$2)) -> -0.2195918582 | D91: =dat!C90-RADIANS($R$2) -> 4.412495501 | E91: =interpolation1D($R$2,aXFOIL,XFOIL!D94:AT94) -> 0.01838286594 | G91: 0.4259412176 | H91: 0.418643888 | I91: 0.5909363968 | J91: -0.2391091665 | N91: 0.6793953039 | O91: -0.2283730588
B92: =(dat!A91-0.25)*COS(RADIANS($R$2))+dat!B91*SIN(RADIANS($R$2))+0.25 -> 0.7078869073 | C92: =-(dat!A91-0.25)*SIN(RADIANS($R$2))+dat!B91*COS(RADIANS($R$2)) -> -0.2275116391 | D92: =dat!C91-RADIANS($R$2) -> 4.416062267 | E92: =interpolation1D($R$2,aXFOIL,XFOIL!D95:AT95) -> -0.007522332016 | L92: 0.706788613 | M92: -0.2311088768
B93: =(dat!A92-0.25)*COS(RADIANS($R$2))+dat!B92*SIN(RADIANS($R$2))+0.25 -> 0.7336949976 | C93: =-(dat!A92-0.25)*SIN(RADIANS($R$2))+dat!B92*COS(RADIANS($R$2)) -> -0.2353413906 | D93: =dat!C92-RADIANS($R$2) -> 4.419593203 | E93: =interpolation1D($R$2,aXFOIL,XFOIL!D96:AT96) -> -0.03451646864 | G93: 0.2559162539 | H93: 0.06141394607 | I93: 0.6306760807 | J93: -0.2034819196 | L93: 0.728713751 | M93: -0.2518651261
B94: =(dat!A93-0.25)*COS(RADIANS($R$2))+dat!B93*SIN(RADIANS($R$2))+0.25 -> 0.7595287037 | C94: =-(dat!A93-0.25)*SIN(RADIANS($R$2))+dat!B93*COS(RADIANS($R$2)) -> -0.2430795715 | D94: =dat!C93-RADIANS($R$2) -> 4.423124616 | E94: =interpolation1D($R$2,aXFOIL,XFOIL!D97:AT97) -> -0.06287855655 | G94: 0.4022725822 | H94: 0.4445224007 | I94: 0.6203957429 | J94: -0.2358780359 | L94: 0.7505607366 | M94: -0.2732126727
B95: =(dat!A94-0.25)*COS(RADIANS($R$2))+dat!B94*SIN(RADIANS($R$2))+0.25 -> 0.7853792834 | C95: =-(dat!A94-0.25)*SIN(RADIANS($R$2))+dat!B94*COS(RADIANS($R$2)) -> -0.2507232316 | D95: =dat!C94-RADIANS($R$2) -> 4.426689091 | E95: =interpolation1D($R$2,aXFOIL,XFOIL!D98:AT98) -> -0.09303279966 | L95: 0.7722696111 | M95: -0.2953540723
B96: =(dat!A95-0.25)*COS(RADIANS($R$2))+dat!B95*SIN(RADIANS($R$2))+0.25 -> 0.8112286193 | C96: =-(dat!A95-0.25)*SIN(RADIANS($R$2))+dat!B95*COS(RADIANS($R$2)) -> -0.2582656581 | D96: =dat!C95-RADIANS($R$2) -> 4.430311992 | E96: =interpolation1D($R$2,aXFOIL,XFOIL!D99:AT99) -> -0.1254786402 | G96: 0.2323142615 | H96: 0.07021578246 | I96: 0.656371751 | J96: -0.2115821466 | L96: 0.7937650572 | M96: -0.3185254813
B97: =(dat!A96-0.25)*COS(RADIANS($R$2))+dat!B96*SIN(RADIANS($R$2))+0.25 -> 0.8370249585 | C97: =-(dat!A96-0.25)*SIN(RADIANS($R$2))+dat!B96*COS(RADIANS($R$2)) -> -0.265690315 | D97: =dat!C96-RADIANS($R$2) -> 4.434011585 | E97: =interpolation1D($R$2,aXFOIL,XFOIL!D100:AT100) -> -0.1610086709 | G97: 0.3783663773 | H97: 0.4727237229 | I97: 0.6498733078 | J97: -0.2323298675 | L97: 0.8149026994 | M97: -0.343095442
B98: =(dat!A97-0.25)*COS(RADIANS($R$2))+dat!B97*SIN(RADIANS($R$2))+0.25 -> 0.86260756 | C98: =-(dat!A97-0.25)*SIN(RADIANS($R$2))+dat!B97*COS(RADIANS($R$2)) -> -0.2729495041 | D98: =dat!C97-RADIANS($R$2) -> 4.437778864 | E98: =interpolation1D($R$2,aXFOIL,XFOIL!D101:AT101) -> -0.2007135004 | L98: 0.8353936512 | M98: -0.3695459868
B99: =(dat!A98-0.25)*COS(RADIANS($R$2))+dat!B98*SIN(RADIANS($R$2))+0.25 -> 0.8874866065 | C99: =-(dat!A98-0.25)*SIN(RADIANS($R$2))+dat!B98*COS(RADIANS($R$2)) -> -0.2799062495 | D99: =dat!C98-RADIANS($R$2) -> 4.441514981 | E99: =interpolation1D($R$2,aXFOIL,XFOIL!D102:AT102) -> -0.2453237474 | G99: 0.2088821556 | H99: 0.07847934911 | I99: 0.6821106227 | J99: -0.2195918582 | L99: 0.8546655187 | M99: -0.398095553
B100: =(dat!A99-0.25)*COS(RADIANS($R$2))+dat!B99*SIN(RADIANS($R$2))+0.25 -> 0.9104508132 | C100: =-(dat!A99-0.25)*SIN(RADIANS($R$2))+dat!B99*COS(RADIANS($R$2)) -> -0.2862342231 | D100: =dat!C99-RADIANS($R$2) -> 4.445033786 | E100: =interpolation1D($R$2,aXFOIL,XFOIL!D103:AT103) -> -0.2986980379 | G100: 0.3541503434 | H100: 0.5040706933 | I100: 0.6793953039 | J100: -0.2283730588 | L100: 0.8709955623 | M100: -0.430277316
B101: =(dat!A100-0.25)*COS(RADIANS($R$2))+dat!B100*SIN(RADIANS($R$2))+0.25 -> 0.9296796887 | C101: =-(dat!A100-0.25)*SIN(RADIANS($R$2))+dat!B100*COS(RADIANS($R$2)) -> -0.2914611594 | D101: =dat!C100-RADIANS($R$2) -> 4.447729772 | E101: =interpolation1D($R$2,aXFOIL,XFOIL!D104:AT104) -> -0.3438438475 | L101: 0.8847082904 | M101: -0.4573970542
B102: =(dat!A101-0.25)*COS(RADIANS($R$2))+dat!B101*SIN(RADIANS($R$2))+0.25 -> 0.9398863189 | C102: =-(dat!A101-0.25)*SIN(RADIANS($R$2))+dat!B101*COS(RADIANS($R$2)) -> -0.2942081825 | D102: =dat!C101-RADIANS($R$2) -> 4.44947791 | E102: =interpolation1D($R$2,aXFOIL,XFOIL!D105:AT105) -> -0.471708566 | G102: 0.185721791 | H102: 0.08611752219 | L102: 0.8785895152 | M102: -0.5219579238
G103: 0.3295146307 | H103: 0.5397750911
G105: 0.1630122485 | H105: 0.09301550336
G106: 0.3042905728 | H106: 0.581609685
G108: 0.1410734817 | H108: 0.09902259732
G109: 0.2781947476 | H109: 0.6319952038
G111: 0.1204370771 | H111: 0.103959981
G112: 0.2506006366 | H112: 0.6934359943
G114: 0.101816297 | H114: 0.1076757881
G115: 0.220005015 | H115: 0.7662675046
G117: 0.0858311962 | H117: 0.1101484273
G118: 0.1837721593 | H118: 0.8460517635
G120: 0.07265352984 | H120: 0.1115317166
G121: 0.1390918104 | H121: 0.9248123529
G123: 0.06198513924 | H123: 0.1120717162
G124: 0.09048270997 | H124: 1.250966231
G126: 0.05333042741 | H126: 0.1119931347
G127: -0.005741696156 | H127: 1.668512082
G129: 0.04622013238 | H129: 0.1114539888
G130: -0.1682598054 | H130: 2.073374032
G132: 0.04029513739 | H132: 0.1105503325
G133: -0.4154593694 | H133: 2.474240212
G135: 0.03529610167 | H135: 0.1093302182
G136: -0.7754968154 | H136: 2.863761589
G138: 0.03105928535 | H138: 0.107812525
G139: -1.274712163 | H139: 3.195282577
G141: 0.02749376471 | H141: 0.1060067332
G142: -1.922215095 | H142: 3.385627666
G144: 0.02453874029 | H144: 0.1039026922
G145: -2.633109503 | H145: 3.286798189
G147: 0.02220128714 | H147: 0.1015314018
G148: -3.204193522 | H148: 2.816055292
G150: 0.02050656892 | H150: 0.09899744359
G151: -3.475645041 | H151: 1.949370462
G153: 0.01936766582 | H153: 0.09631435605
G154: -3.288058335 | H154: 1.02632677
G156: 0.01872213903 | H156: 0.09333504249
G157: -2.686900314 | H157: 0.3741011632
G159: 0.01864010688 | H159: 0.09000638271
G160: -1.876493851 | H160: -0.04713037807
G162: 0.01917931888 | H162: 0.08641912632
G163: -1.118595799 | H163: -0.1818864475
G165: 0.02035715974 | H165: 0.08259989704
G166: -0.5405732661 | H166: -0.1335666135
G168: 0.02220856253 | H168: 0.07849790814
G169: -0.1506204826 | H169: -0.01184613396
G171: 0.7078869073 | H171: -0.2275116391
G172: 0.706788613 | H172: -0.2311088768
G174: 0.7336949976 | H174: -0.2353413906
G175: 0.728713751 | H175: -0.2518651261
G177: 0.7595287037 | H177: -0.2430795715
G178: 0.7505607366 | H178: -0.2732126727
G180: 0.7853792834 | H180: -0.2507232316
G181: 0.7722696111 | H181: -0.2953540723
G183: 0.8112286193 | H183: -0.2582656581
G184: 0.7937650572 | H184: -0.3185254813
G186: 0.8370249585 | H186: -0.265690315
G187: 0.8149026994 | H187: -0.343095442
G189: 0.86260756 | H189: -0.2729495041
G190: 0.8353936512 | H190: -0.3695459868
G192: 0.8874866065 | H192: -0.2799062495
G193: 0.8546655187 | H193: -0.398095553
G195: 0.9104508132 | H195: -0.2862342231
G196: 0.8709955623 | H196: -0.430277316
G198: 0.9296796887 | H198: -0.2914611594
G199: 0.8847082904 | H199: -0.4573970542
G201: 0.9398863189 | H201: -0.2942081825
G202: 0.8785895152 | H202: -0.5219579238

Sheet dat
A1: NACA0012
A2: 1 | B2: 0.00126 | C2: =ATAN(SLOPE(B2:B3,A2:A3))+IF(A3-A2<0,PI()/2,3*PI()/2) -> 1.43228167
A3: 0.9895314 | B3: 0.0027194 | C3: =ATAN(SLOPE(B2:B4,A2:A4))+IF(A4-A2<0,PI()/2,3*PI()/2) -> 1.434029807
A4: 0.9697888 | B4: 0.0054213 | C4: =ATAN(SLOPE(B3:B5,A3:A5))+IF(A5-A3<0,PI()/2,3*PI()/2) -> 1.436725793
A5: 0.9461776 | B5: 0.0085692 | C5: =ATAN(SLOPE(B4:B6,A4:A6))+IF(A6-A4<0,PI()/2,3*PI()/2) -> 1.440244599
A6: 0.9205581 | B6: 0.0118865 | C6: 1.443980716
A7: 0.8941728 | B7: 0.0152003 | C7: 1.447747994
A8: 0.8675261 | B8: 0.0184453 | C8: 1.451447588
A9: 0.8407846 | B9: 0.0216026 | C9: 1.455070489
A10: 0.8140024 | B10: 0.0246672 | C10: 1.458634963
A11: 0.7871988 | B11: 0.0276382 | C11: 1.462166376
A12: 0.760383 | B12: 0.0305149 | C12: 1.465697312
A13: 0.7335613 | B13: 0.0332963 | C13: 1.469264078
A14: 0.7067389 | B14: 0.0359803 | C14: 1.472904344
A15: 0.6799209 | B15: 0.0385641 | C15: 1.476651877
A16: 0.6531124 | B16: 0.0410439 | C16: 1.480545862
A17: 0.6263186 | B17: 0.0434149 | C17: 1.484630589
A18: 0.5995452 | B18: 0.045671 | C18: 1.488945869
A19: 0.5727977 | B19: 0.0478054 | C19: 1.493533802
A20: 0.5460822 | B20: 0.0498099 | C20: 1.498443749
A21: 0.5194053 | B21: 0.0516752 | C21: 1.503728252
A22: 0.4927741 | B22: 0.0533905 | C22: 1.509437472
A23: 0.4661962 | B23: 0.0549441 | C23: 1.515627873
A24: 0.4396805 | B24: 0.0563225 | C24: 1.522369269
A25: 0.4132366 | B25: 0.0575107 | C25: 1.529728106
A26: 0.386876 | B26: 0.0584922 | C26: 1.537783231
A27: 0.3606119 | B27: 0.0592485 | C27: 1.546631338
A28: 0.3344602 | B28: 0.0597589 | C28: 1.556375247
A29: 0.3084402 | B29: 0.0600007 | C29: 1.56714022
A30: 0.2825762 | B30: 0.0599483 | C30: 1.579082872
A31: 0.256899 | B31: 0.0595732 | C31: 1.592391629
A32: 0.2314496 | B32: 0.0588435 | C32: 1.607308296
A33: 0.2062847 | B33: 0.0577236 | C33: 1.624141121
A34: 0.1814865 | B34: 0.0561746 | C34: 1.643289545
A35: 0.1571828 | B35: 0.0541561 | C35: 1.665276081
A36: 0.1335833 | B36: 0.0516324 | C36: 1.690746385
A37: 0.1110414 | B37: 0.0485898 | C37: 1.72040684
A38: 0.0901163 | B38: 0.0450714 | C38: 1.754897074
A39: 0.0715239 | B39: 0.0412161 | C39: 1.794655384
A40: 0.0558434 | B40: 0.0372463 | C40: 1.839910163
A41: 0.0431728 | B41: 0.0333707 | C41: 1.890711351
A42: 0.0331415 | B42: 0.0296993 | C42: 1.947205141
A43: 0.0252055 | B43: 0.0262453 | C43: 2.010155282
A44: 0.0188711 | B44: 0.0229708 | C44: 2.081111091
A45: 0.0137702 | B45: 0.0198239 | C45: 2.162699366
A46: 0.0096453 | B46: 0.0167475 | C46: 2.258496038
A47: 0.0063383 | B47: 0.013695 | C47: 2.372334719
A48: 0.0037618 | B48: 0.0106396 | C48: 2.508581814
A49: 0.0018638 | B49: 0.0075482 | C49: 2.667930267
A50: 0.0006387 | B50: 0.0044521 | C50: 2.843568186
A51: 6.88e-05 | B51: 0.0014574 | C51: =AVERAGE(C50,C52) -> 3.056237738
A52: 6.88e-05 | B52: -0.0014574 | C52: =ATAN(SLOPE(B51:B53,A51:A53))+IF(A53-A51<0,PI()/2,3*PI()/2) -> 3.26890729
A53: 0.0006387 | B53: -0.0044521 | C53: 3.439617121
A54: 0.0018638 | B54: -0.0075482 | C54: 3.61525504
A55: 0.0037618 | B55: -0.0106396 | C55: 3.774603493
A56: 0.0063383 | B56: -0.013695 | C56: 3.910850588
A57: 0.0096453 | B57: -0.0167475 | C57: 4.02468927
A58: 0.0137702 | B58: -0.0198239 | C58: 4.120485941
A59: 0.0188711 | B59: -0.0229708 | C59: 4.202074216
A60: 0.0252055 | B60: -0.0262453 | C60: 4.273030025
A61: 0.0331415 | B61: -0.0296993 | C61: 4.335980166
A62: 0.0431728 | B62: -0.0333707 | C62: 4.392473956
A63: 0.0558434 | B63: -0.0372463 | C63: 4.443275144
A64: 0.0715239 | B64: -0.0412161 | C64: 4.488529924
A65: 0.0901163 | B65: -0.0450714 | C65: 4.528288233
A66: 0.1110414 | B66: -0.0485898 | C66: 4.562778467
A67: 0.1335833 | B67: -0.0516324 | C67: 4.592438922
A68: 0.1571828 | B68: -0.0541561 | C68: 4.617909227
A69: 0.1814865 | B69: -0.0561746 | C69: 4.639895762
A70: 0.2062847 | B70: -0.0577236 | C70: 4.659044186
A71: 0.2314496 | B71: -0.0588435 | C71: 4.675877011
A72: 0.256899 | B72: -0.0595732 | C72: 4.690793678
A73: 0.2825762 | B73: -0.0599483 | C73: 4.704102435
A74: 0.3084402 | B74: -0.0600007 | C74: 4.716045087
A75: 0.3344602 | B75: -0.0597589 | C75: 4.72681006
A76: 0.3606119 | B76: -0.0592485 | C76: 4.736553969
A77: 0.386876 | B77: -0.0584922 | C77: 4.745402077
A78: 0.4132366 | B78: -0.0575107 | C78: 4.753457202
A79: 0.4396805 | B79: -0.0563225 | C79: 4.760816038
A80: 0.4661962 | B80: -0.0549441 | C80: 4.767557434
A81: 0.4927741 | B81: -0.0533905 | C81: 4.773747835
A82: 0.5194053 | B82: -0.0516752 | C82: 4.779457055
A83: 0.5460822 | B83: -0.0498099 | C83: 4.784741558
A84: 0.5727977 | B84: -0.0478054 | C84: =ATAN(SLOPE(B83:B85,A83:A85))+IF(A85-A83<0,PI()/2,3*PI()/2) -> 4.789651505
A85: 0.5995452 | B85: -0.045671 | C85: 4.794239438
A86: 0.6263186 | B86: -0.0434149 | C86: 4.798554718
A87: 0.6531124 | B87: -0.0410439 | C87: 4.802639445
A88: 0.6799209 | B88: -0.0385641 | C88: 4.806533431
A89: 0.7067389 | B89: -0.0359803 | C89: 4.810280963
A90: 0.7335613 | B90: -0.0332963 | C90: 4.813921229
A91: 0.760383 | B91: -0.0305149 | C91: 4.817487995
A92: 0.7871988 | B92: -0.0276382 | C92: 4.821018931
A93: 0.8140024 | B93: -0.0246672 | C93: 4.824550344
A94: 0.8407846 | B94: -0.0216026 | C94: 4.828114819
A95: 0.8675261 | B95: -0.0184453 | C95: 4.83173772
A96: 0.8941728 | B96: -0.0152003 | C96: 4.835437313
A97: 0.9205581 | B97: -0.0118865 | C97: 4.839204591
A98: 0.9461776 | B98: -0.0085692 | C98: 4.842940709
A99: 0.9697888 | B99: -0.0054213 | C99: 4.846459514
A100: 0.9895314 | B100: -0.0027194 | C100: 4.8491555
A101: 1 | B101: -0.00126 | C101: =ATAN(SLOPE(B100:B101,A100:A101))+IF(A101-A100<0,PI()/2,3*PI()/2) -> 4.850903637

Sheet XFOIL
C1: alpha | D1: -15 | E1: -14 | F1: -13 | G1: -12 | H1: -11 | I1: -10 | J1: -9 | K1: -8 | L1: -7 | M1: -6 | N1: -5 | O1: -4 | P1: -3 | Q1: -2 | R1: -1 | S1: 0 | T1: 1 | U1: 2 | V1: 3 | W1: 4 | X1: 4.46633078 | Y1: 5 | Z1: 6 | AA1: 7 | AB1: 8 | AC1: 9 | AD1: 9.049388951 | AE1: 10 | AF1: 11 | AG1: 12 | AH1: 13 | AI1: 14 | AJ1: 15 | AK1: 16 | AL1: 17 | AM1: 18 | AN1: 19 | AO1: 20 | AP1: 21 | AQ1: 22 | AR1: 23 | AS1: 24 | AT1: 25
C2: cl | D2: -1.584089041 | E2: -1.501542449 | F2: -1.411324739 | G2: -1.316706777 | H2: -1.221709251 | I2: -1.107089996 | J2: -0.9942874312 | K2: -0.8894063234 | L2: -0.7815746665 | M2: -0.6714713573 | N2: -0.5600010157 | O2: -0.44750911 | P2: -0.3342323899 | Q2: -0.2204365879 | R2: -0.1063310355 | S2: -5.852957008e-15 | T2: 0.1063337401 | U2: 0.2204442918 | V2: 0.3342476487 | W2: 0.4475349188 | X2: 0.5000535846 | Y2: 0.56004107 | Z2: 0.6715303063 | AA2: 0.781657517 | AB2: 0.889519155 | AC2: 0.9944279194 | AD2: 0.99958992 | AE2: 1.107248306 | AF2: 1.221899033 | AG2: 1.31688869 | AH2: 1.411651254 | AI2: 1.502018332 | AJ2: 1.584791422 | AK2: 1.650981069 | AL2: 1.692040086 | AM2: 1.720768213 | AN2: 1.729290485 | AO2: 1.703729153 | AP2: 1.607890368 | AQ2: 1.349419117 | AR2: 1.076124668 | AS2: 1.024075031 | AT2: 1.029587269
C3: cd | D3: 0.01711365953 | E3: 0.01523664594 | F3: 0.01363150682 | G3: 0.01224298403 | H3: 0.01104796026 | I3: 0.009918610565 | J3: 0.008955647238 | K3: 0.008195200004 | L3: 0.007588746026 | M3: 0.007119468879 | N3: 0.006779454648 | O3: 0.006537301 | P3: 0.006367452908 | Q3: 0.006270088255 | R3: 0.006245840807 | S3: 0.006245840807 | T3: 0.006245823577 | U3: 0.006270061247 | V3: 0.00636741519 | W3: 0.00653724838 | X3: 0.006633775309 | Y3: 0.006779404357 | Z3: 0.007119424175 | AA3: 0.00758871343 | AB3: 0.008195063099 | AC3: 0.008955278434 | AD3: 0.008997364901 | AE3: 0.009917943738 | AF3: 0.01104694605 | AG3: 0.01224142406 | AH3: 0.01363006514 | AI3: 0.0152350096 | AJ3: 0.01711075753 | AK3: 0.01933273301 | AL3: 0.02241420932 | AM3: 0.02737578377 | AN3: 0.03587032855 | AO3: 0.05066230893 | AP3: 0.07777420431 | AQ3: 0.135717541 | AR3: 0.2136665732 | AS3: 0.2519807816 | AT3: 0.2733074427
C4: cm | D4: -0.01159829646 | E4: -0.008062378503 | F4: -0.005397370085 | G4: -0.003134472528 | H4: -0.0005336723989 | I4: -0.001991541358 | J4: -0.002759409137 | K4: -0.001436810941 | L4: -0.0006315381033 | M4: -0.0002447406296 | N4: -0.0001047850019 | O4: -0.0001404270006 | P4: -0.0003003858728 | Q4: -0.0005392471794 | R4: -0.0008253201377 | S4: 1.546644257e-15 | T4: 0.0008246991201 | U4: 0.0005374772009 | V4: 0.0002968824701 | W4: 0.0001345038909 | X4: 0.0001082378076 | Y4: 9.561914339e-05 | Z4: 0.0002313034784 | AA4: 0.0006127522793 | AB4: 0.001411374542 | AC4: 0.002728041727 | AD4: 0.002791512525 | AE4: 0.00195671455 | AF4: 0.0004924683599 | AG4: 0.003096304135 | AH4: 0.005328989588 | AI4: 0.007964462973 | AJ4: 0.01145829167 | AK4: 0.01721456274 | AL4: 0.02517805062 | AM4: 0.03061608784 | AN4: 0.0320244357 | AO4: 0.0275336355 | AP4: 0.01470367983 | AQ4: -0.01641200669 | AR4: -0.06533332914 | AS4: -0.08967314661 | AT4: -0.1040065289
A5: x | B5: y | C5: z | D5: Cp | E5: Cp | F5: Cp | G5: Cp | H5: Cp | I5: Cp | J5: Cp | K5: Cp | L5: Cp | M5: Cp | N5: Cp | O5: Cp | P5: Cp | Q5: Cp | R5: Cp | S5: Cp | T5: Cp | U5: Cp | V5: Cp | W5: Cp | X5: Cp | Y5: Cp | Z5: Cp | AA5: Cp | AB5: Cp | AC5: Cp | AD5: Cp | AE5: Cp | AF5: Cp | AG5: Cp | AH5: Cp | AI5: Cp | AJ5: Cp | AK5: Cp | AL5: Cp | AM5: Cp | AN5: Cp | AO5: Cp | AP5: Cp | AQ5: Cp | AR5: Cp | AS5: Cp | AT5: Cp
A6: 1 | D6: 0.1320978999 | E6: 0.1527232975 | F6: 0.1671590805 | G6: 0.1772644371 | H6: 0.1826021522 | I6: 0.1953292936 | J6: 0.2047239691 | K6: 0.2069994807 | L6: 0.2095019668 | M6: 0.211865887 | N6: 0.2137584835 | O6: 0.2151642442 | P6: 0.2161766142 | Q6: 0.2168276161 | R6: 0.2171470672 | S6: 0.4088020921 | T6: 0.2171247005 | U6: 0.216782406 | V6: 0.2161080539 | W6: 0.215071708 | X6: 0.214487493 | Y6: 0.2136411816 | Z6: 0.2117232233 | AA6: 0.2093336731 | AB6: 0.2068062872 | AC6: 0.2045100182 | AD6: 0.2043599784 | AE6: 0.1951054484 | AF6: 0.1823667288 | AG6: 0.177055344 | AH6: 0.1669158936 | AI6: 0.1524796188 | AJ6: 0.1319029182 | AK6: 0.09368094802 | AL6: 0.03535860032 | AM6: -0.01793194935 | AN6: -0.07480990142 | AO6: -0.1350778043 | AP6: -0.2048867196 | AQ6: -0.311319828 | AR6: -0.471708566 | AS6: -0.5643370748 | AT6: -0.6193514466
A7: 0.9895313978 | D7: 0.148621887 | E7: 0.1602244824 | F7: 0.1677563637 | G7: 0.1733321398 | H7: 0.1758745462 | I7: 0.1595585346 | J7: 0.1630010605 | K7: 0.1860912144 | L7: 0.1831481904 | M7: 0.1817565262 | N7: 0.1812395453 | O7: 0.1809699535 | P7: 0.1807789803 | Q7: 0.1806561351 | R7: 0.1806055158 | S7: 0.2195715308 | T7: 0.1852947026 | U7: 0.1851440221 | V7: 0.1849586368 | W7: 0.1847013235 | X7: 0.1845769286 | Y7: 0.1843306273 | Z7: 0.183746621 | AA7: 0.1829334646 | AB7: 0.1821795404 | AC7: 0.1817770451 | AD7: 0.1817230284 | AE7: 0.1745611429 | AF7: 0.1641183197 | AG7: 0.1613603383 | AH7: 0.1539225131 | AI7: 0.1423902065 | AJ7: 0.1250419468 | AK7: 0.09625529498 | AL7: 0.03321577236 | AM7: -0.02092355117 | AN7: -0.07830110192 | AO7: -0.1387394816 | AP7: -0.2082650661 | AQ7: -0.3139799833 | AR7: -0.4739095867 | AS7: -0.5664466619 | AT7: -0.6214242578
A8: 0.9697887897 | D8: 0.1441222876 | E8: 0.1509949267 | F8: 0.1547386795 | G8: 0.1577960253 | H8: 0.1648087204 | I8: 0.1488534361 | J8: 0.1336995363 | K8: 0.1508820355 | L8: 0.1452111602 | M8: 0.1398659647 | N8: 0.1364800781 | O8: 0.1337956935 | P8: 0.131453976 | Q8: 0.1294531077 | R8: 0.1278298348 | S8: 0.1497706622 | T8: 0.1339669675 | U8: 0.1332362443 | V8: 0.1328609735 | W8: 0.1328363866 | X8: 0.1329729557 | Y8: 0.1331526786 | Z8: 0.1337468922 | AA8: 0.1346081197 | AB8: 0.1360203177 | AC8: 0.1382170022 | AD8: 0.1382959336 | AE8: 0.1341973692 | AF8: 0.1273647547 | AG8: 0.128874138 | AH8: 0.1262181699 | AI8: 0.1200804412 | AJ8: 0.1089778319 | AK8: 0.08968134969 | AL8: 0.02979944646 | AM8: -0.02649569511 | AN8: -0.08491881937 | AO8: -0.1457476765 | AP8: -0.2147535533 | AQ8: -0.3190794289 | AR8: -0.4781146646 | AS8: -0.5704711676 | AT8: -0.6253765225
A9: 0.9461776018 | D9: 0.1469661891 | E9: 0.1493306607 | F9: 0.1489578038 | G9: 0.1478211582 | H9: 0.1496210694 | I9: 0.1353632212 | J9: 0.1226805001 | K9: 0.1106564403 | L9: 0.1231962219 | M9: 0.1135250181 | N9: 0.1067353413 | O9: 0.1011841744 | P9: 0.09614865482 | Q9: 0.09157605469 | R9: 0.08750718087 | S9: 0.09907007217 | T9: 0.08969920129 | U9: 0.08721627295 | V9: 0.08532384038 | W9: 0.0840633288 | X9: 0.08373280615 | Y9: 0.08347965777 | Z9: 0.08357917517 | AA9: 0.08439910412 | AB9: 0.08635490388 | AC9: 0.08955844492 | AD9: 0.08971728384 | AE9: 0.08754730225 | AF9: 0.08331451565 | AG9: 0.08815129846 | AH9: 0.08985048532 | AI9: 0.08918227255 | AJ9: 0.08497539163 | AK9: 0.07517243922 | AL9: 0.02765699476 | AM9: -0.03307288513 | AN9: -0.09293420613 | AO9: -0.154344812 | AP9: -0.2227434516 | AQ9: -0.3253323138 | AR9: -0.4832380116 | AS9: -0.5753646493 | AT9: -0.6301776767
A10: 0.920558095 | D10: 0.1512679756 | E10: 0.1501368582 | F10: 0.1465191096 | G10: 0.142077744 | H10: 0.1395669132 | I10: 0.1250098795 | J10: 0.1120978147 | K10: 0.1025415659 | L10: 0.1063926965 | M10: 0.09461527318 | N10: 0.08430988342 | O10: 0.07614114136 | P10: 0.06864570081 | Q10: 0.06166841462 | R10: 0.05523836613 | S10: 0.0613181591 | T10: 0.05250978842 | U10: 0.04795959219 | V10: 0.04410337284 | W10: 0.04101268947 | X10: 0.03988327086 | Y10: 0.03877239302 | Z10: 0.03744382039 | AA10: 0.03712316975 | AB10: 0.03825036064 | AC10: 0.04111214355 | AD10: 0.04126680642 | AE10: 0.039635472 | AF10: 0.03665456921 | AG10: 0.04329623282 | AH10: 0.04802880436 | AI10: 0.05180590972 | AJ10: 0.05388880149 | AK10: 0.05348720402 | AL10: 0.0317662023 | AM10: -0.04005775228 | AN10: -0.1017865762 | AO10: -0.1639835536 | AP10: -0.2317423522 | AQ10: -0.3323404789 | AR10: -0.4889371395 | AS10: -0.5807947516 | AT10: -0.6354998946
A11: 0.8941727877 | D11: 0.1569810212 | E11: 0.1529677063 | F11: 0.1466561854 | G11: 0.139513731 | H11: 0.1337797195 | I11: 0.1180819422 | J11: 0.1039620861 | K11: 0.09377589822 | L11: 0.07805109769 | M11: 0.08144318312 | N11: 0.06718665361 | O11: 0.05652611703 | P11: 0.04677917436 | Q11: 0.03759351373 | R11: 0.02897359245 | S11: 0.03101507016 | T11: 0.02139377408 | U11: 0.01476781815 | V11: 0.008872092701 | W11: 0.003792650998 | X11: 0.001757188817 | Y11: -0.0003647699195 | Z11: -0.003512307769 | AA11: -0.005472823046 | AB11: -0.005871383473 | AC11: -0.004271475598 | AD11: -0.00416890718 | AE11: -0.006302021444 | AF11: -0.009253525175 | AG11: -0.00227650255 | AH11: 0.003925511613 | AI11: 0.01057944074 | AJ11: 0.0175061617 | AK11: 0.02526339516 | AL11: 0.02410600521 | AM11: -0.04686084762 | AN11: -0.1110708117 | AO11: -0.1742734909 | AP11: -0.2414045185 | AQ11: -0.3398266733 | AR11: -0.4949734509 | AS11: -0.5865314007 | AT11: -0.6411161423
A12: 0.867526114 | D12: 0.1635486484 | E12: 0.1570811272 | F12: 0.1484565437 | G12: 0.1390091628 | H12: 0.1306807697 | I12: 0.1136272103 | J12: 0.09804113954 | K12: 0.08636514843 | L12: 0.07257601619 | M12: 0.07125040144 | N12: 0.05376782641 | O12: 0.04055024311 | P12: 0.02869122103 | Q12: 0.01744695567 | R12: 0.006779747549 | S12: 0.005564901046 | T12: -0.005364416167 | U12: -0.01399622671 | V12: -0.02189037763 | W12: -0.02895471454 | X12: -0.03190989792 | Y12: -0.03507442772 | Z12: -0.04014876485 | AA12: -0.04398140684 | AB12: -0.04616619274 | AC12: -0.04626476392 | AD12: -0.0462406911 | AE12: -0.04949624091 | AF12: -0.05323354527 | AG12: -0.04696210846 | AH12: -0.04058886319 | AI12: -0.03258614987 | AJ12: -0.0225156825 | AK12: -0.008447878063 | AL12: 0.004541159142 | AM12: -0.05267232284 | AN12: -0.1206058264 | AO12: -0.1850623488 | AP12: -0.2516076863 | AQ12: -0.3476917148 | AR12: -0.5012588501 | AS12: -0.5924871564 | AT12: -0.6469399333
A13: 0.8407846093 | D13: 0.170751676 | E13: 0.1621201783 | F13: 0.1514381915 | G13: 0.1399428695 | H13: 0.129382804 | I13: 0.1109122559 | J13: 0.09380527586 | K13: 0.08046224713 | L13: 0.06602503359 | M13: 0.05378432944 | N13: 0.04327138141 | O13: 0.02711662464 | P13: 0.01320725679 | Q13: 4.674287197e-07 | R13: -0.01261777617 | S13: -0.01667387784 | T13: -0.02907096408 | U13: -0.03964243084 | V13: -0.04948128387 | W13: -0.05849295482 | X13: -0.06235714257 | Y13: -0.06656018645 | Z13: -0.07356451452 | AA13: -0.07933225483 | AB13: -0.08341761678 | AC13: -0.08539862931 | AD13: -0.08546490222 | AE13: -0.09017799795 | AF13: -0.09519352764 | AG13: -0.09026958793 | AH13: -0.08464132994 | AI13: -0.07651947439 | AJ13: -0.06488799304 | AK13: -0.04653518274 | AL13: -0.02211986668 | AM13: -0.05516770855 | AN13: -0.1303025633 | AO13: -0.1963085383 | AP13: -0.2623378634 | AQ13: -0.3559226692 | AR13: -0.5077738166 | AS13: -0.598641932 | AT13: -0.6529507637
A14: 0.8140023947 | D14: 0.1785076261 | E14: 0.1679169834 | F14: 0.1553557217 | G14: 0.1419864297 | H14: 0.12942186 | I14: 0.1095206589 | J14: 0.09088909626 | K14: 0.07585458457 | L14: 0.06006707624 | M14: 0.04083735868 | N14: 0.03542014956 | O14: 0.0156204626 | P14: -0.0003659323265 | Q14: -0.01548392512 | R14: -0.02999619208 | S14: -0.03663498536 | T14: -0.05058202893 | U14: -0.06304881722 | V14: -0.07479415089 | W14: -0.08572249115 | X14: -0.0904847458 | Y14: -0.09571808577 | Z14: -0.1046485454 | AA14: -0.1123548597 | AB14: -0.1183840558 | AC14: -0.1223215386 | AD14: -0.1224834248 | AE14: -0.1288342923 | AF14: -0.1354160458 | AG14: -0.1322070509 | AH14: -0.1279152036 | AI14: -0.1205611229 | AJ14: -0.1086613461 | AK14: -0.08792967349 | AL14: -0.05509481952 | AM14: -0.05102574825 | AN14: -0.1400782168 | AO14: -0.2080057561 | AP14: -0.2736207843 | AQ14: -0.364538461 | AR14: -0.5145254731 | AS14: -0.6049993634 | AT14: -0.6591514349
A15: 0.787198782 | D15: 0.1867243946 | E15: 0.1743228585 | F15: 0.1600093991 | G15: 0.144887358 | H15: 0.1304686964 | I15: 0.1091346815 | J15: 0.08898552507 | K15: 0.0722758323 | L15: 0.05496044457 | M15: 0.03632699326 | N15: 0.02870312333 | O15: 0.005672643892 | P15: -0.01254764013 | Q15: -0.02956261113 | R15: -0.04594069719 | S15: -0.05501267686 | T15: -0.07054266334 | U15: -0.08488163352 | V15: -0.09851374477 | W15: -0.1113430783 | X15: -0.116998136 | Y15: -0.1232541054 | Z15: -0.1341128796 | AA15: -0.1437560916 | AB15: -0.1517438591 | AC15: -0.1576672494 | AD15: -0.1579270214 | AE15: -0.1660167724 | AF15: -0.1743352115 | AG15: -0.1730403304 | AH15: -0.1704430729 | AI15: -0.1644466966 | AJ15: -0.1532352418 | AK15: -0.1317232251 | AL15: -0.09343619645 | AM15: -0.06901482493 | AN15: -0.1497886777 | AO15: -0.2201540619 | AP15: -0.2854968905 | AQ15: -0.3735708892 | AR15: -0.5215291381 | AS15: -0.6115713716 | AT15: -0.6655524969
A16: 0.7603830099 | D16: 0.1953887045 | E16: 0.1812855154 | F16: 0.1653116643 | G16: 0.1485223025 | H16: 0.1323517263 | I16: 0.1095828861 | J16: 0.08792068064 | K16: 0.06955480576 | L16: 0.05064575374 | M16: 0.0310402941 | N16: 0.01490556542 | O16: -0.002774742898 | P16: -0.02363342978 | Q16: -0.0425722152 | R16: -0.06081276387 | S16: -0.07222500443 | T16: -0.08937308937 | U16: -0.1055808067 | V16: -0.1210988089 | W16: -0.1358313113 | X16: -0.1423808634 | Y16: -0.1496576816 | Z16: -0.1624552608 | AA16: -0.1740474552 | AB16: -0.1840090156 | AC16: -0.1919382364 | AD16: -0.1922973096 | AE16: -0.2021941394 | AF16: -0.2123614848 | AG16: -0.2130913287 | AH16: -0.2124030888 | AI16: -0.2081407458 | AJ16: -0.1982799321 | AK16: -0.1772149205 | AL16: -0.1361272633 | AM16: -0.09581707418 | AN16: -0.159093529 | AO16: -0.23274979 | AP16: -0.2980136573 | AQ16: -0.3830589652 | AR16: -0.5288036466 | AS16: -0.6183733344 | AT16: -0.6721681356
A17: 0.7335612774 | D17: 0.2044688165 | E17: 0.1887449324 | F17: 0.1711768806 | G17: 0.1527799517 | H17: 0.134927094 | I17: 0.1107172668 | J17: 0.08754041046 | K17: 0.06753092259 | L17: 0.04700068384 | M17: 0.0259863697 | N17: 0.001674157334 | O17: -0.009574243799 | P17: -0.03385375813 | Q17: -0.05480004102 | R17: -0.07492121309 | S17: -0.08863271028 | T17: -0.1074234396 | U17: -0.1255131364 | V17: -0.1429324597 | W17: -0.1595861018 | X17: -0.167035833 | Y17: -0.1753469706 | Z17: -0.1901021302 | AA17: -0.203666985 | AB17: -0.2156252563 | AC17: -0.2255830914 | AD17: -0.2260427773 | AE17: -0.2378027737 | AF17: -0.2499032915 | AG17: -0.2527238727 | AH17: -0.2540745139 | AI17: -0.2517795861 | AJ17: -0.2437030673 | AK17: -0.2239554971 | AL17: -0.1822202504 | AM17: -0.1306294203 | AN17: -0.1669816971 | AO17: -0.2457803339 | AP17: -0.3112231195 | AQ17: -0.3930477202 | AR17: -0.5363721848 | AS17: -0.6254230738 | AT17: -0.6790143251
A18: 0.7067388892 | D18: 0.2139965743 | E18: 0.196712032 | F18: 0.1775968969 | G18: 0.1576330811 | H18: 0.1381441802 | I18: 0.1124818996 | J18: 0.0877815336 | K18: 0.06613145769 | L18: 0.04395991936 | M18: 0.02138740011 | N18: -0.002248271368 | O18: -0.01542597543 | P18: -0.04325853288 | Q18: -0.06639921665 | R18: -0.08844282478 | S18: -0.1044403985 | T18: -0.1249147505 | U18: -0.1449152082 | V18: -0.1642671078 | W18: -0.1828744411 | X18: -0.1912385225 | Y18: -0.2006076127 | Z18: -0.2173534632 | AA18: -0.2329283506 | AB18: -0.2469198108 | AC18: -0.2589407861 | AD18: -0.2595029175 | AE18: -0.2731842399 | AF18: -0.2872955203 | AG18: -0.2922585905 | AH18: -0.2957376838 | AI18: -0.2955611348 | AJ18: -0.2895483673 | AK18: -0.2717013359 | AL18: -0.2309242487 | AM18: -0.1724267155 | AN18: -0.1694868207 | AO18: -0.2592202127 | AP18: -0.3251816332 | AQ18: -0.403588891 | AR18: -0.5442599058 | AS18: -0.6327406168 | AT18: -0.686109364
A19: 0.6799209118 | D19: 0.2239863127 | E19: 0.2051847279 | F19: 0.1845545471 | G19: 0.1630494297 | H19: 0.1419528723 | I19: 0.1148205101 | J19: 0.08858019859 | K19: 0.06528280675 | L19: 0.0414481312 | M19: 0.01723652147 | N19: -0.007420646492 | O19: -0.02476990595 | P19: -0.05177343637 | Q19: -0.07750988752 | R19: -0.1015473008 | S19: -0.1198500916 | T19: -0.142051369 | U19: -0.1640055478 | V19: -0.1853357702 | W19: -0.205942288 | X19: -0.2152469456 | Y19: -0.225699082 | Z19: -0.2444856912 | AA19: -0.262121886 | AB19: -0.2781968415 | AC19: -0.2923285961 | AD19: -0.2929955125 | AE19: -0.3086633086 | AF19: -0.3248646855 | AG19: -0.332020849 | AH19: -0.3377003372 | AI19: -0.3397473693 | AJ19: -0.3359784484 | AK19: -0.320402056 | AL19: -0.2816816568 | AM19: -0.2200539559 | AN19: -0.1723898351 | AO19: -0.2730237246 | AP19: -0.3399496675 | AQ19: -0.4147417545 | AR19: -0.5524962544 | AS19: -0.6403484941 | AT19: -0.6934734583
A20: 0.6531124115 | D20: 0.2344806641 | E20: 0.2141927332 | F20: 0.1920674443 | G20: 0.1690344661 | H20: 0.1463444084 | I20: 0.1177181453 | J20: 0.08991397172 | K20: 0.06495288014 | L20: 0.03942734748 | M20: 0.01351838186 | N20: -0.01264550351 | O20: -0.04282200336 | P20: -0.05908282474 | Q20: -0.08819622546 | R20: -0.1143469885 | S20: -0.1349999309 | T20: -0.1589829475 | U20: -0.1829477698 | V20: -0.2063162923 | W20: -0.2289832681 | X20: -0.2392600477 | Y20: -0.2508277595 | Z20: -0.2717212737 | AA20: -0.29148525 | AB20: -0.3097093701 | AC20: -0.3260150254 | AD20: -0.326789856 | AE20: -0.3445205986 | AF20: -0.3629003763 | AG20: -0.3723088205 | AH20: -0.3802594543 | AI20: -0.384616226 | AJ20: -0.3832158744 | AK20: -0.3701393008 | AL20: -0.3341677487 | AM20: -0.2723797262 | AN20: -0.2004152834 | AO20: -0.2871077061 | AP20: -0.3555921316 | AQ20: -0.4265747666 | AR20: -0.5611137152 | AS20: -0.6482719779 | AT20: -0.7011295557
A21: 0.626318574 | D21: 0.2455256134 | E21: 0.223771289 | F21: 0.2001606673 | G21: 0.1756028384 | H21: 0.1513215452 | I21: 0.1211711466 | J21: 0.09177164733 | K21: 0.0651210919 | L21: 0.03786945343 | M21: 0.010209064 | N21: -0.01764446311 | O21: -0.04673434421 | P21: -0.06543682516 | Q21: -0.09846317023 | R21: -0.12693955 | S21: -0.1500192881 | T21: -0.1758444458 | U21: -0.201890856 | V21: -0.2273713946 | W21: -0.2521770895 | X21: -0.2634610832 | Y21: -0.2761867344 | Z21: -0.2992683053 | AA21: -0.321242094 | AB21: -0.341696918 | AC21: -0.3602557182 | AD21: -0.3611424267 | AE21: -0.3810259402 | AF21: -0.4016847908 | AG21: -0.4134176373 | AH21: -0.4237173796 | AI21: -0.4304666519 | AJ21: -0.431532681 | AK21: -0.4210989177 | AL21: -0.3882734776 | AM21: -0.3284484148 | AN21: -0.240260601 | AO21: -0.3012982011 | AP21: -0.3721788824 | AQ21: -0.4391672313 | AR21: -0.5701500773 | AS21: -0.6565397978 | AT21: -0.7091033459
A22: 0.5995451808 | D22: 0.2572135031 | E22: 0.2340046018 | F22: 0.2089105248 | G22: 0.1828227192 | H22: 0.1569428742 | I22: 0.1252325028 | J22: 0.09419941157 | K22: 0.0658249259 | L22: 0.0368039161 | M22: 0.007335207891 | N22: -0.02232414484 | O22: -0.05249106139 | P22: -0.07315132022 | Q22: -0.1081193015 | R22: -0.1393396109 | S22: -0.1649523675 | T22: -0.1927022487 | U22: -0.2209155411 | V22: -0.248595804 | W22: -0.2756340802 | X22: -0.2879682481 | Y22: -0.301903218 | Z22: -0.3272705078 | AA22: -0.3515534103 | AB22: -0.3743383884 | AC22: -0.3952482343 | AD22: -0.3962516785 | AE22: -0.4183946848 | AF22: -0.4414502978 | AG22: -0.4555981159 | AH22: -0.4683406055 | AI22: -0.4775748849 | AJ22: -0.481200844 | AK22: -0.473510921 | AL22: -0.4440400302 | AM22: -0.3875589073 | AN22: -0.2905075252 | AO22: -0.3151348233 | AP22: -0.3897794485 | AQ22: -0.452611506 | AR22: -0.5796481967 | AS22: -0.6651845574 | AT22: -0.7174239755
A23: 0.5727977157 | D23: 0.2696056068 | E23: 0.2449463159 | F23: 0.2183630168 | G23: 0.1907319725 | H23: 0.1632370651 | I23: 0.1299241483 | J23: 0.09721149504 | K23: 0.06706944853 | L23: 0.03622687981 | M23: 0.004886616021 | N23: -0.02667250857 | O23: -0.0585389398 | P23: -0.09481240809 | Q23: -0.1168123484 | R23: -0.1515948325 | S23: -0.1799082458 | T23: -0.2096679807 | U23: -0.2401486933 | V23: -0.2701326311 | W23: -0.2995122671 | X23: -0.3129482865 | Y23: -0.3281528354 | Z23: -0.3559205532 | AA23: -0.3826293051 | AB23: -0.407861799 | AC23: -0.4312389493 | AD23: -0.4323648512 | AE23: -0.4568910003 | AF23: -0.4824786484 | AG23: -0.4991503656 | AH23: -0.5144459009 | AI23: -0.5262708068 | AJ23: -0.5325548053 | AK23: -0.527690649 | AL23: -0.5016668439 | AM23: -0.4493275583 | AN23: -0.3494664133 | AO23: -0.3269765079 | AP23: -0.4084513187 | AQ23: -0.4670160711 | AR23: -0.5896579623 | AS23: -0.6742437482 | AT23: -0.7261248827
A24: 0.5460821986 | D24: 0.2828169167 | E24: 0.2567058206 | F24: 0.2286217958 | G24: 0.1994279772 | H24: 0.170293957 | I24: 0.13533023 | J24: 0.1008850709 | K24: 0.06892324984 | L24: 0.03619801998 | M24: 0.002914850367 | N24: -0.0306351129 | O24: -0.0644383803 | P24: -0.09960778803 | Q24: -0.1244549826 | R24: -0.1636263579 | S24: -0.1949090064 | T24: -0.2267850935 | U24: -0.2596497238 | V24: -0.2920598686 | W24: -0.3239063919 | X24: -0.3385047317 | Y24: -0.3550491035 | Z24: -0.3853513002 | AA24: -0.4146228731 | AB24: -0.4424411952 | AC24: -0.4684235156 | AD24: -0.4696787894 | AE24: -0.4967326224 | AF24: -0.5250098705 | AG24: -0.5443376899 | AH24: -0.5623193383 | AI24: -0.5768619776 | AJ24: -0.5859191418 | AK24: -0.583966732 | AL24: -0.5614290237 | AM24: -0.5136310458 | AN24: -0.4154224992 | AO24: -0.3284523785 | AP24: -0.4282331765 | AQ24: -0.4825087488 | AR24: -0.600237608 | AS24: -0.6837604642 | AT24: -0.735244453
A25: 0.5194053054 | D25: 0.2969522476 | E25: 0.269382894 | F25: 0.2397811413 | G25: 0.2089987397 | H25: 0.1781941354 | I25: 0.1415247768 | J25: 0.105286479 | K25: 0.07144349068 | L25: 0.0367647633 | M25: 0.001457722276 | N25: -0.03417882696 | O25: -0.0700821504 | P25: -0.1065889969 | Q25: -0.1326054037 | R25: -0.1752566844 | S25: -0.2100162208 | T25: -0.2441239804 | U25: -0.279506743 | V25: -0.3144848943 | W25: -0.3489437699 | X25: -0.3647742569 | Y25: -0.3827396333 | Z25: -0.4157315195 | AA25: -0.4477246702 | AB25: -0.4782894552 | AC25: -0.5070379376 | AD25: -0.5084305406 | AE25: -0.5381790996 | AF25: -0.5693274736 | AG25: -0.5914679766 | AH25: -0.612293303 | AI25: -0.6297044158 | AJ25: -0.6416712403 | AK25: -0.6427300572 | AL25: -0.6236985922 | AM25: -0.5805909634 | AN25: -0.4869426191 | AO25: -0.3501566648 | AP25: -0.449138999 | AQ25: -0.4992409348 | AR25: -0.6114552617 | AS25: -0.6937847137 | AT25: -0.7448267937
A26: 0.4927740991 | D26: 0.3121774793 | E26: 0.2831407487 | F26: 0.2520010769 | G26: 0.2196001709 | H26: 0.1870880276 | I26: 0.1486533433 | J26: 0.1105548441 | K26: 0.07476109266 | L26: 0.03804880753 | M26: 0.0006270110607 | N26: -0.03720019758 | O26: -0.07534320652 | P26: -0.1139069647 | Q26: -0.1570944935 | R26: -0.1859624982 | S26: -0.2251901627 | T26: -0.2616749406 | U26: -0.2997298837 | V26: -0.3374378681 | W26: -0.3746770024 | X26: -0.3918200433 | Y26: -0.4113000333 | Z26: -0.447160989 | AA26: -0.4820596874 | AB26: -0.5155579448 | AC26: -0.5472609401 | AD26: -0.5488003492 | AE26: -0.5814378262 | AF26: -0.6156685948 | AG26: -0.6408086419 | AH26: -0.6646661162 | AI26: -0.6851278543 | AJ26: -0.7001713514 | AK26: -0.7043685317 | AL26: -0.6888757944 | AM26: -0.6504794955 | AN26: -0.563036859 | AO26: -0.4011099637 | AP26: -0.4711457491 | AQ26: -0.5173932314 | AR26: -0.6233915091 | AS26: -0.7043750286 | AT26: -0.7549234629
A27: 0.4661962092 | D27: 0.3286196589 | E27: 0.2981031537 | F27: 0.2654010653 | G27: 0.2313463241 | H27: 0.1970828474 | I27: 0.1568158716 | J27: 0.1167813763 | K27: 0.07895698398 | L27: 0.04011965171 | M27: 0.0004798927112 | N27: -0.03965394199 | O27: -0.08017622679 | P27: -0.1210895926 | Q27: -0.1634721458 | R27: -0.1956228018 | S27: -0.2404996306 | T27: -0.2795141041 | U27: -0.3204195797 | V27: -0.3610429466 | W27: -0.4012560844 | X27: -0.4198043048 | Y27: -0.4409068823 | Z27: -0.4798437655 | AA27: -0.517860353 | AB27: -0.5545082688 | AC27: -0.5893838406 | AD27: -0.5910808444 | AE27: -0.6268311143 | AF27: -0.6643875837 | AG27: -0.6927452087 | AH27: -0.7198551297 | AI27: -0.743581295 | AJ27: -0.7618995905 | AK27: -0.7693908215 | AL27: -0.7574900985 | AM27: -0.7237665653 | AN27: -0.6432667375 | AO27: -0.470744133 | AP27: -0.4941706657 | AQ27: -0.5371815562 | AR27: -0.6361421943 | AS27: -0.7156001329 | AT27: -0.7655946612
A28: 0.4396804869 | D28: 0.3464798927 | E28: 0.3144709468 | F28: 0.2801806629 | G28: 0.2444339693 | H28: 0.2083708197 | I28: 0.16619955 | J28: 0.1241461858 | K28: 0.08420212567 | L28: 0.04313746095 | M28: 0.00116419408 | N28: -0.04140549526 | O28: -0.08445551246 | P28: -0.1279397607 | Q28: -0.1721402854 | R28: -0.2057868838 | S28: -0.2559001446 | T28: -0.2976267636 | U28: -0.3415873349 | V28: -0.3853391409 | W28: -0.4287490249 | X28: -0.4488091469 | Y28: -0.4716587663 | Z28: -0.5139105916 | AA28: -0.555290997 | AB28: -0.5953393579 | AC28: -0.6336416602 | AD28: -0.6355090141 | AE28: -0.6746323109 | AF28: -0.7157973647 | AG28: -0.7476299405 | AH28: -0.7782530189 | AI28: -0.8054986596 | AJ28: -0.8273313642 | AK28: -0.8383129835 | AL28: -0.8300964832 | AM28: -0.8010079265 | AN28: -0.727637291 | AO28: -0.5554694533 | AP28: -0.5180110335 | AQ28: -0.5588652492 | AR28: -0.6498227119 | AS28: -0.7275416851 | AT28: -0.7769116163
A29: 0.4132365882 | D29: 0.3659746349 | E29: 0.3324618936 | F29: 0.2965573668 | G29: 0.2590786815 | H29: 0.2211636007 | I29: 0.1770108342 | J29: 0.1328482479 | K29: 0.09068571776 | L29: 0.04727964476 | M29: 0.002843542024 | N29: -0.04230660573 | O29: -0.08804721385 | P29: -0.1343054473 | Q29: -0.1811332256 | R29: -0.2327196151 | S29: -0.2713527083 | T29: -0.3160029054 | U29: -0.363252908 | V29: -0.4103786945 | W29: -0.4572420418 | X29: -0.4789372683 | Y29: -0.5036776662 | Z29: -0.5495209694 | AA29: -0.5945501924 | AB29: -0.6382906437 | AC29: -0.680315733 | AD29: -0.6823682189 | AE29: -0.7251671553 | AF29: -0.7702704072 | AG29: -0.8058807254 | AH29: -0.8403245211 | AI29: -0.8713921905 | AJ29: -0.8970267177 | AK29: -0.911741972 | AL29: -0.9073486328 | AM29: -0.8828887939 | AN29: -0.8165431619 | AO29: -0.651696682 | AP29: -0.5420514345 | AQ29: -0.5827565193 | AR29: -0.6645736098 | AS29: -0.7402975559 | AT29: -0.7889591455
A30: 0.3868759871 | D30: 0.3873339593 | E30: 0.35230878 | F30: 0.3147649467 | G30: 0.2755129337 | H30: 0.2356898487 | I30: 0.1894727051 | J30: 0.1431021094 | K30: 0.09861121327 | L30: 0.0527360104 | M30: 0.005691612139 | N30: -0.04220198095 | O30: -0.09081526101 | P30: -0.1400592327 | Q30: -0.1898846477 | R30: -0.2413278371 | S30: -0.2868417799 | T30: -0.3346552849 | U30: -0.3854649067 | V30: -0.4362491667 | W30: -0.4868636727 | X30: -0.5103370547 | Y30: -0.5371353626 | Z30: -0.5868917704 | AA30: -0.6359018683 | AB30: -0.6836746931 | AC30: -0.7297688127 | AD30: -0.7320237756 | AE30: -0.7788519859 | AF30: -0.8282786608 | AG30: -0.8680232167 | AH30: -0.9066504836 | AI30: -0.9418987632 | AJ30: -0.971678257 | AK30: -0.9904243946 | AL30: -0.9900460839 | AM30: -0.970258534 | AN30: -0.9107164145 | AO30: -0.7567332983 | AP30: -0.5631848574 | AQ30: -0.6092301011 | AR30: -0.6805679202 | AS30: -0.7539860606 | AT30: -0.8018390536
A31: 0.3606118858 | D31: 0.4108389914 | E31: 0.3742992878 | F31: 0.335095197 | G31: 0.2940298319 | H31: 0.2522410154 | I31: 0.2038724422 | J31: 0.1551873535 | K31: 0.1082471013 | L31: 0.05976076052 | M31: 0.009945053607 | N31: -0.04087565467 | O31: -0.09256675839 | P31: -0.1450283378 | Q31: -0.1981631219 | R31: -0.2522208691 | S31: -0.3023058176 | T31: -0.3535605073 | U31: -0.4082431197 | V31: -0.4630165994 | W31: -0.5177291036 | X31: -0.5431475043 | Y31: -0.5721988678 | Z31: -0.6262446046 | AA31: -0.6796248555 | AB31: -0.7318296432 | AC31: -0.78240031 | AD31: -0.7848781347 | AE31: -0.8361517191 | AF31: -0.8903556466 | AG31: -0.9346570969 | AH31: -0.9778987765 | AI31: -1.017755032 | AJ31: -1.052091599 | AK31: -1.075232625 | AL31: -1.07912612 | AM31: -1.0641222 | AN31: -1.011158347 | AO31: -0.8692215085 | AP31: -0.5716341138 | AQ31: -0.6387342215 | AR31: -0.6980216503 | AS31: -0.7687521577 | AT31: -0.8156752586
A32: 0.3344601989 | D32: 0.4368261695 | E32: 0.3987815976 | F32: 0.3579051793 | G32: 0.3149919808 | H32: 0.2711812854 | I32: 0.2205726504 | J32: 0.1694605649 | K32: 0.1199397147 | L32: 0.06868578494 | M32: 0.01591711864 | N32: -0.03803716972 | O32: -0.09303782135 | P32: -0.1489767432 | Q32: -0.2057299614 | R32: -0.2633262277 | S32: -0.3176211417 | T32: -0.3726460338 | U32: -0.4315665364 | V32: -0.4907151163 | W32: -0.5499314666 | X32: -0.5774905682 | Y32: -0.6090239882 | Z32: -0.6678016782 | AA32: -0.7260107994 | AB32: -0.7831196189 | AC32: -0.8386494517 | AD32: -0.8413744569 | AE32: -0.8975865245 | AF32: -0.9571064115 | AG32: -1.006469131 | AH32: -1.054840803 | AI32: -1.099818587 | AJ32: -1.139210343 | AK32: -1.167193055 | AL32: -1.175694108 | AM32: -1.165669203 | AN32: -1.119122148 | AO32: -0.9890887737 | AP32: -0.6479765773 | AQ32: -0.6717992425 | AR32: -0.717207551 | AS32: -0.7847753763 | AT32: -0.8306202292
A33: 0.3084402084 | D33: 0.4656429887 | E33: 0.4261192977 | F33: 0.3835706115 | G33: 0.3387826383 | H33: 0.2928966582 | I33: 0.2399574518 | J33: 0.1862983704 | K33: 0.134052828 | L33: 0.0798567459 | M33: 0.02392994985 | N33: -0.03339322284 | O33: -0.09196901321 | P33: -0.1516825557 | Q33: -0.2123930752 | R33: -0.2740323246 | S33: -0.3327299356 | T33: -0.3919035792 | U33: -0.4554927647 | V33: -0.5194729567 | W33: -0.5836744308 | X33: -0.6136066318 | Y33: -0.6478944421 | Z33: -0.7119306922 | AA33: -0.7755157351 | AB33: -0.8380925059 | AC33: -0.8991589546 | AD33: -0.9021600485 | AE33: -0.9639008045 | AF33: -1.02938199 | AG33: -1.084412575 | AH33: -1.138534784 | AI33: -1.18925333 | AJ33: -1.234303355 | AK33: -1.267674327 | AL33: -1.281210065 | AM33: -1.276453495 | AN33: -1.236255765 | AO33: -1.11738193 | AP33: -0.7692351341 | AQ33: -0.7090421319 | AR33: -0.7384761572 | AS33: -0.8022816181 | AT33: -0.846863687
A34: 0.2825762033 | D34: 0.4977217913 | E34: 0.4567715824 | F34: 0.4125726521 | G34: 0.3658995032 | H34: 0.3178949356 | I34: 0.2625392377 | J34: 0.2062101662 | K34: 0.1510857493 | L34: 0.0937557891 | M34: 0.03444140404 | N34: -0.02651742846 | O34: -0.0889724791 | P34: -0.152802825 | Q34: -0.2178556621 | R34: -0.2840164602 | S34: -0.3474619985 | T34: -0.411236912 | U34: -0.4800056219 | V34: -0.5493606925 | W34: -0.6191216707 | X34: -0.6517049074 | Y34: -0.6890732646 | Z34: -0.7590002418 | AA34: -0.8286193013 | AB34: -0.8973439932 | AC34: -0.9646448493 | AD34: -0.9679570794 | AE34: -1.035940766 | AF34: -1.108165622 | AG34: -1.169601679 | AH34: -1.230230927 | AI34: -1.287447333 | AJ34: -1.338895798 | AK34: -1.378331542 | AL34: -1.397447586 | AM34: -1.398368001 | AN34: -1.364579678 | AO34: -1.255976081 | AP34: -0.9225979447 | AQ34: -0.751170814 | AR34: -0.7622873783 | AS34: -0.8215593696 | AT34: -0.8646457791
A35: 0.2568989992 | D35: 0.5335310698 | E35: 0.4912480116 | F35: 0.4454570413 | G35: 0.3969140053 | H35: 0.3467646241 | I35: 0.2889164686 | J35: 0.2297944278 | K35: 0.1716273725 | L35: 0.1109529063 | M35: 0.0479930304 | N35: -0.01690625213 | O35: -0.08359221369 | P35: -0.1519381553 | Q35: -0.221781522 | R35: -0.2929812074 | S35: -0.3616467714 | T35: -0.4305625558 | U35: -0.5051248074 | V35: -0.5805101395 | W35: -0.6565258503 | X35: -0.6920972466 | Y35: -0.7329421043 | Z35: -0.8095289469 | AA35: -0.8859844804 | AB35: -0.9616880417 | AC35: -1.036077857 | AD35: -1.039744258 | AE35: -1.114846826 | AF35: -1.194776058 | AG35: -1.263526201 | AH35: -1.331595421 | AI35: -1.39624536 | AJ35: -1.455009937 | AK35: -1.501354694 | AL35: -1.526745915 | AM35: -1.5338974 | AN35: -1.506727457 | AO35: -1.407580376 | AP35: -1.097286463 | AQ35: -0.7989383936 | AR35: -0.7892565131 | AS35: -0.8429841995 | AT35: -0.8842754364
A36: 0.231449604 | D36: 0.573607862 | E36: 0.5301454663 | F36: 0.4828613997 | G36: 0.4325079024 | H36: 0.3802221715 | I36: 0.3198261559 | J36: 0.2577961683 | K36: 0.196417436 | L36: 0.1321698427 | M36: 0.06527553499 | N36: -0.003913158551 | O36: -0.0752389729 | P36: -0.1485695243 | Q36: -0.2237333804 | R36: -0.3005717993 | S36: -0.3750528395 | T36: -0.4497624338 | U36: -0.5308659077 | V36: -0.6130827069 | W36: -0.6962059736 | X36: -0.7351800799 | Y36: -0.7799891829 | Z36: -0.864185214 | AA36: -0.9484703541 | AB36: -1.032183528 | AC36: -1.114724636 | AD36: -1.118798614 | AE36: -1.20211041 | AF36: -1.29094255 | AG36: -1.368142962 | AH36: -1.444820642 | AI36: -1.518078327 | AJ36: -1.585313201 | AK36: -1.639634013 | AL36: -1.672192454 | AM36: -1.686316133 | AN36: -1.666153789 | AO36: -1.575831532 | AP36: -1.288680673 | AQ36: -0.8529099822 | AR36: -0.8202250004 | AS36: -0.867054522 | AT36: -0.9061570764
A37: 0.2062847018 | D37: 0.6184819341 | E37: 0.5740927458 | F37: 0.5255438089 | G37: 0.4735075533 | H37: 0.4191324413 | I37: 0.3561817706 | J37: 0.2911512852 | K37: 0.2263949662 | L37: 0.1583324969 | M37: 0.08718328178 | N37: 0.01330636721 | O37: -0.06313651055 | P37: -0.1420072317 | Q37: -0.2231257707 | R37: -0.3063196242 | S37: -0.387352556 | T37: -0.4686585963 | U37: -0.5572258234 | V37: -0.6472674608 | W37: -0.7385603786 | X37: -0.7814546824 | Y37: -0.8308381438 | Z37: -0.9238334298 | AA37: -1.017196655 | AB37: -1.110218763 | AC37: -1.202253342 | AD37: -1.206802726 | AE37: -1.299704671 | AF37: -1.398959994 | AG37: -1.486055255 | AH37: -1.572830081 | AI37: -1.656194329 | AJ37: -1.733376384 | AK37: -1.7970438 | AL37: -1.837927341 | AM37: -1.860013366 | AN37: -1.847474217 | AO37: -1.765577316 | AP37: -1.498174071 | AQ37: -0.9130429029 | AR37: -0.8563734293 | AS37: -0.8944468498 | AT37: -0.9308308959
A38: 0.1814865023 | D38: 0.6687485576 | E38: 0.6238399148 | F38: 0.5742732286 | G38: 0.5208011866 | H38: 0.4645347893 | I38: 0.3990715444 | J38: 0.3309975266 | K38: 0.2627271116 | L38: 0.1906015277 | M38: 0.1148481965 | N38: 0.03582850844 | O38: -0.04629057646 | P38: -0.131365329 | Q38: -0.2192068696 | R38: -0.3096304238 | S38: -0.3981356919 | T38: -0.487036705 | U38: -0.584225297 | V38: -0.6833450794 | W38: -0.7841534615 | X38: -0.831625998 | Y38: -0.8863607049 | Z38: -0.9896749854 | AA38: -1.093715906 | AB38: -1.197715998 | AC38: -1.3009727 | AD38: -1.306084633 | AE38: -1.410359502 | AF38: -1.522004724 | AG38: -1.620867252 | AH38: -1.719672203 | AI38: -1.815092325 | AJ38: -1.904146433 | AK38: -1.978951812 | AL38: -2.029685974 | AM38: -2.061063051 | AN38: -2.057055235 | AO38: -1.983443737 | AP38: -1.731544018 | AQ38: -0.9773061872 | AR38: -0.8994016647 | AS38: -0.9261001348 | AT38: -0.9590318799
A39: 0.1571827978 | D39: 0.7246009111 | E39: 0.6798062921 | F39: 0.6299372911 | G39: 0.5754743218 | H39: 0.5175250769 | I39: 0.4498093128 | J39: 0.3787472546 | K39: 0.3068505526 | L39: 0.2304506302 | M39: 0.1497234702 | N39: 0.06505455077 | O39: -0.0233916007 | P39: -0.1154643297 | Q39: -0.2109654397 | R39: -0.3096980453 | S39: -0.4068354964 | T39: -0.5045893788 | U39: -0.611872375 | V39: -0.7216755152 | W39: -0.8337327242 | X39: -0.8866337538 | Y39: -0.9477259517 | Z39: -1.063333988 | AA39: -1.18013823 | AB39: -1.297299385 | AC39: -1.414045811 | AD39: -1.419834971 | AE39: -1.537827015 | AF39: -1.664455056 | AG39: -1.777558327 | AH39: -1.890951633 | AI39: -2.001012802 | AJ39: -2.104496002 | AK39: -2.192825556 | AL39: -2.255452633 | AM39: -2.297922373 | AN39: -2.303749323 | AO39: -2.238579273 | AP39: -1.998046637 | AQ39: -1.042403221 | AR39: -0.9518015981 | AS39: -0.963342309 | AT39: -0.9917731881
A40: 0.1335833073 | D40: 0.7859993577 | E40: 0.7424040437 | F40: 0.6929059029 | G40: 0.6382051706 | H40: 0.5793771148 | I40: 0.5097407699 | J40: 0.435932219 | K40: 0.3605346978 | L40: 0.2796791494 | M40: 0.1936595887 | N40: 0.1028008536 | O40: 0.007294294424 | P40: -0.09270904958 | Q40: -0.1970022619 | R40: -0.3053748012 | S40: -0.4126007259 | T40: -0.5208008885 | U40: -0.6400635839 | V40: -0.7626213431 | W40: -0.888179481 | X40: -0.9476186037 | Y40: -1.016385078 | Z40: -1.146880269 | AA40: -1.279199004 | AB40: -1.412412405 | AC40: -1.545661211 | AD40: -1.552280068 | AE40: -1.687114835 | AF40: -1.832191467 | AG40: -1.962849379 | AH40: -2.094266415 | AI40: -2.222447395 | AJ40: -2.343808413 | AK40: -2.44888711 | AL40: -2.526178598 | AM40: -2.58220911 | AN40: -2.599719048 | AO40: -2.543501854 | AP40: -2.310456991 | AQ40: -1.338702202 | AR40: -1.017219424 | AS40: -1.008068085 | AT40: -1.03045249
A41: 0.1110413969 | D41: 0.8510295749 | E41: 0.810284555 | F41: 0.763015151 | G41: 0.7094492912 | H41: 0.6505211592 | I41: 0.5800824761 | J41: 0.5041746497 | K41: 0.4254471064 | L41: 0.340303421 | M41: 0.2487367392 | N41: 0.1512269527 | O41: 0.04789874703 | P41: -0.06107968837 | Q41: -0.1754848063 | R41: -0.2950971425 | S41: -0.4141995013 | T41: -0.5348354578 | U41: -0.6684630513 | V41: -0.8064244986 | W41: -0.9483898878 | X41: -1.015807152 | Y41: -1.093962669 | Z41: -1.242738605 | AA41: -1.394191742 | AB41: -1.547278762 | AC41: -1.701028705 | AD41: -1.708680153 | AE41: -1.864522815 | AF41: -2.032682419 | AG41: -2.185338497 | AH41: -2.339397907 | AI41: -2.49038744 | AJ41: -2.634285212 | AK41: -2.760480404 | AL41: -2.856202364 | AM41: -2.929167509 | AN41: -2.960942745 | AO41: -2.914622068 | AP41: -2.685275078 | AQ41: -1.76136899 | AR41: -1.100658059 | AS41: -1.062931538 | AT41: -1.076933503
A42: 0.09011629969 | D42: 0.9152957797 | E42: 0.8801754117 | F42: 0.8373077512 | G42: 0.7870342731 | H42: 0.7302925587 | I42: 0.6604477763 | J42: 0.5836653709 | K42: 0.5027583241 | L42: 0.4136464596 | M42: 0.3167827725 | N42: 0.2123310119 | O42: 0.1005556881 | P42: -0.01839710958 | Q42: -0.1443190426 | R42: -0.2769584954 | S42: -0.4100177288 | T42: -0.5454428792 | U42: -0.6963178515 | V42: -0.8529343009 | W42: -1.01491785 | X42: -1.092116117 | Y42: -1.181817293 | Z42: -1.353169322 | AA42: -1.528371096 | AB42: -1.706233263 | AC42: -1.885640025 | AD42: -1.894586205 | AE42: -2.076834679 | AF42: -2.274108887 | AG42: -2.45456481 | AH42: -2.637318134 | AI42: -2.817278147 | AJ42: -2.98985219 | AK42: -3.142933369 | AL42: -3.262075186 | AM42: -3.356465578 | AN42: -3.405988932 | AO42: -3.37100935 | AP42: -3.141433477 | AQ42: -2.240831614 | AR42: -1.207351685 | AS42: -1.13141036 | AT42: -1.133487463
A43: 0.07152389735 | D43: 0.9691941738 | E43: 0.9437246919 | F43: 0.9093714356 | G43: 0.8659585118 | H43: 0.8140702248 | I43: 0.7479879856 | J43: 0.6727421284 | K43: 0.5910204053 | L43: 0.4995542467 | M43: 0.3980200589 | N43: 0.2870598733 | O43: 0.166672349 | P43: 0.03703258187 | Q43: -0.1015730798 | R43: -0.2489282638 | S43: -0.3980267346 | T43: -0.5507216454 | U43: -0.7219719887 | V43: -0.9008590579 | W43: -1.086952686 | X43: -1.175998211 | Y43: -1.279733419 | Z43: -1.47866416 | AA43: -1.683044195 | AB43: -1.891498685 | AC43: -2.102727175 | AD43: -2.113282919 | AE43: -2.328436613 | AF43: -2.562130928 | AG43: -2.777447462 | AH43: -2.99629283 | AI43: -3.212788582 | AJ43: -3.421605587 | AK43: -3.608709097 | AL43: -3.757463932 | AM43: -3.878881931 | AN43: -3.950544596 | AO43: -3.928869963 | AP43: -3.694967508 | AQ43: -2.778793573 | AR43: -1.338225126 | AS43: -1.217500687 | AT43: -1.202490211
A44: 0.0558434017 | D44: 0.9985041022 | E44: 0.988358438 | F44: 0.9676834941 | G44: 0.9360374212 | H44: 0.8938274384 | I44: 0.8354804516 | J44: 0.7652934194 | K44: 0.6862066388 | L44: 0.59438169 | M44: 0.4903356135 | N44: 0.3739531934 | O44: 0.2456004471 | P44: 0.1054221764 | Q44: -0.04645864293 | R44: -0.20969069 | S44: -0.37653777 | T44: -0.54868716 | U44: -0.7432364225 | V44: -0.9479118586 | W44: -1.162215471 | X44: -1.265213728 | Y44: -1.385544062 | Z44: -1.617271423 | AA44: -1.856574178 | AB44: -2.101849556 | AC44: -2.35156703 | AD44: -2.364073992 | AE44: -2.619227409 | AF44: -2.897376537 | AG44: -3.155368328 | AH44: -3.418543816 | AI44: -3.680044413 | AJ44: -3.933618307 | AK44: -4.162809372 | AL44: -4.348210812 | AM44: -4.503054142 | AN44: -4.601922989 | AO44: -4.595950127 | AP44: -4.353643894 | AQ44: -3.387416363 | AR44: -1.484784365 | AS44: -1.32497859 | AT44: -1.286218405
A45: 0.04317279905 | D45: 0.9860398769 | E45: 0.9983647466 | F45: 0.9983909726 | G45: 0.9850726128 | H45: 0.9582339525 | I45: 0.9136964679 | J45: 0.8538082242 | K45: 0.7811405659 | L45: 0.693164885 | M45: 0.5892651081 | N45: 0.4701450467 | O45: 0.3356145024 | P45: 0.1857671887 | Q45: 0.0210689418 | R45: -0.1583815813 | S45: -0.3439180553 | T45: -0.5370860696 | U45: -0.7572439909 | V45: -0.990698278 | W45: -1.236872315 | X45: -1.355751872 | Y45: -1.495059252 | Z45: -1.764531374 | AA45: -2.0443151 | AB45: -2.332538366 | AC45: -2.627391577 | AD45: -2.642192841 | AE45: -2.944503069 | AF45: -3.275293827 | AG45: -3.58399415 | AH45: -3.900033712 | AI45: -4.215374947 | AJ45: -4.52264452 | AK45: -4.802447796 | AL45: -5.031981468 | AM45: -5.227113724 | AN45: -5.358707428 | AO45: -5.37123394 | AP45: -5.116834164 | AQ45: -4.071745396 | AR45: -1.631979704 | AS45: -1.455830455 | AT45: -1.387369275
A46: 0.03314150125 | D46: 0.9133464098 | E46: 0.9569514394 | F46: 0.9862046242 | G46: 0.9993520975 | H46: 0.9955785871 | I46: 0.9721530676 | J46: 0.9291131496 | K46: 0.8690595031 | L46: 0.7894886136 | M46: 0.6905996203 | N46: 0.5720151067 | O46: 0.4340879917 | P46: 0.2770305574 | Q46: 0.1006579697 | R46: -0.09441763908 | S46: -0.2988881767 | T46: -0.5140407681 | U46: -0.7615334392 | V46: -1.026271462 | W46: -1.307601929 | X46: -1.444149375 | Y46: -1.604682684 | Z46: -1.916671515 | AA46: -2.242414474 | AB46: -2.579730749 | AC46: -2.926476717 | AD46: -2.943922758 | AE46: -3.300749063 | AF46: -3.692682981 | AG46: -4.060508251 | AH46: -4.438417435 | AI46: -4.816986084 | AJ46: -5.187507629 | AK46: -5.527090073 | AL46: -5.808863163 | AM46: -6.051776886 | AN46: -6.2222085 | AO46: -6.256540298 | AP46: -5.98674345 | AQ46: -4.837393284 | AR46: -2.278501987 | AS46: -1.606292129 | AT46: -1.509105802
A47: 0.02520550042 | D47: 0.7576498985 | E47: 0.8437069058 | F47: 0.9132324457 | G47: 0.9631745815 | H47: 0.992033422 | I47: 0.9994769096 | J47: 0.9820756316 | K47: 0.9418333769 | L47: 0.8779234886 | M47: 0.7895233035 | N47: 0.6770064831 | O47: 0.54007411 | P47: 0.3785422146 | Q47: 0.1932221353 | R47: -0.01615206711 | S47: -0.2390064299 | T47: -0.4765237868 | U47: -0.752628684 | V47: -1.050797462 | W47: -1.370365381 | X47: -1.526327968 | Y47: -1.710335612 | Z47: -2.0697155 | AA47: -2.447147131 | AB47: -2.840097189 | AC47: -3.246021986 | AD47: -3.266493559 | AE47: -3.685857296 | AF47: -4.148291588 | AG47: -4.58458519 | AH47: -5.034429073 | AI47: -5.486778736 | AJ47: -5.931356907 | AK47: -6.341143131 | AL47: -6.684438705 | AM47: -6.983775139 | AN47: -7.200199127 | AO47: -7.26044035 | AP47: -6.972239017 | AQ47: -5.694204807 | AR47: -3.115278959 | AS47: -1.766190171 | AT47: -1.65092504
A48: 0.01887110062 | D48: 0.4878402054 | E48: 0.6306563616 | F48: 0.7542072535 | G48: 0.8545886874 | H48: 0.9289271235 | I48: 0.9799012542 | J48: 0.9996848702 | K48: 0.9896336794 | L48: 0.9502691627 | M48: 0.881031096 | N48: 0.781335175 | O48: 0.6512152553 | P48: 0.4909750521 | Q48: 0.2999723852 | R48: 0.07922210544 | S48: -0.1605955362 | T48: -0.4198128879 | U48: -0.7255191207 | V48: -1.059091926 | W48: -1.419845104 | X48: -1.597007632 | Y48: -1.806836486 | Z48: -2.218809128 | AA48: -2.654226303 | AB48: -3.110129833 | AC48: -3.583493471 | AD48: -3.607424259 | AE48: -4.098524094 | AF48: -4.642295361 | AG48: -5.157970428 | AH48: -5.691575527 | AI48: -6.230175972 | AJ48: -6.761640072 | AK48: -7.254071236 | AL48: -7.670032978 | AM48: -8.036231041 | AN48: -8.307391167 | AO48: -8.39878273 | AP48: -8.089303017 | AQ48: -6.656859875 | AR48: -3.947217703 | AS48: -1.989840865 | AT48: -1.804358721
A49: 0.01377020031 | D49: 0.05642230809 | E49: 0.2752307355 | F49: 0.4722375274 | G49: 0.6410850286 | H49: 0.7775974274 | I49: 0.8896800876 | J49: 0.9623560309 | K49: 0.9963126183 | L49: 0.9944761992 | M49: 0.9556055665 | N49: 0.8792867064 | O49: 0.765096426 | P49: 0.6125798821 | Q49: 0.4226101339 | R49: 0.1945417672 | S49: -0.0591459088 | T49: -0.338521421 | U49: -0.6730774641 | V49: -1.043932915 | W49: -1.44867754 | X49: -1.648863912 | Y49: -1.88690567 | Z49: -2.356991529 | AA49: -2.8573668 | AB49: -3.384488344 | AC49: -3.93477726 | AD49: -3.962669134 | AE49: -4.536233902 | AF49: -5.174132824 | AG49: -5.782186985 | AH49: -6.413731575 | AI49: -7.053617954 | AJ49: -7.687517166 | AK49: -8.277745247 | AL49: -8.780021667 | AM49: -9.225934982 | AN49: -9.562701225 | AO49: -9.691976547 | AP49: -9.358371735 | AQ49: -7.74277401 | AR49: -4.814454079 | AS49: -2.992825985 | AT49: -1.985473037
A50: 0.009645299986 | D50: -0.6049243808 | E50: -0.2847189605 | F50: 0.01023155078 | G50: 0.2722006738 | H50: 0.4945891201 | I50: 0.6908510923 | J50: 0.8383201957 | K50: 0.9358658791 | L50: 0.9894226789 | M50: 0.997582674 | N50: 0.9592001438 | O50: 0.8737722039 | P50: 0.7412908673 | Q50: 0.5610420704 | R50: 0.3339934051 | S50: 0.07194148749 | T50: -0.2254166305 | U50: -0.5856702328 | V50: -0.9914619327 | W50: -1.442293167 | X50: -1.666907549 | Y50: -1.935017109 | Z50: -2.468285322 | AA50: -3.040411472 | AB50: -3.647077799 | AC50: -4.284247398 | AD50: -4.316637039 | AE50: -4.984287739 | AF50: -5.730442524 | AG50: -6.445458889 | AH50: -7.191028118 | AI50: -7.94943428 | AJ50: -8.703753471 | AK50: -9.409453392 | AL50: -10.01410866 | AM50: -10.5549984 | AN50: -10.97046661 | AO50: -11.14609528 | AP50: -10.78607655 | AQ50: -8.956740379 | AR50: -5.742569923 | AS50: -4.028929234 | AT50: -3.05610919
A51: 0.006338300183 | D51: -1.58490324 | E51: -1.131345391 | F51: -0.7056530118 | G51: -0.3196533322 | H51: 0.01752799749 | I51: 0.3295221627 | J51: 0.5802248716 | K51: 0.7669094801 | L51: 0.9006673098 | M51: 0.9785794616 | N51: 0.9994393587 | O51: 0.96230793 | P51: 0.8664782643 | Q51: 0.7122289538 | R51: 0.4989881217 | S51: 0.2399235517 | T51: -0.06598973274 | U51: -0.4460037649 | V51: -0.8816434145 | W51: -1.373303413 | X51: -1.620845318 | Y51: -1.918687344 | Z51: -2.517067194 | AA51: -3.164075136 | AB51: -3.855183601 | AC51: -4.586277485 | AD51: -4.623568535 | AE51: -5.394322872 | AF51: -6.260093212 | AG51: -7.094365597 | AH51: -7.967960358 | AI51: -8.860334396 | AJ51: -9.751597404 | AK51: -10.5893774 | AL51: -11.31185818 | AM51: -11.96271896 | AN51: -12.47018242 | AO51: -12.70154285 | AP51: -12.31517124 | AQ51: -10.24845791 | AR51: -6.704479218 | AS51: -5.000475883 | AT51: -4.212547779
A52: 0.003761800006 | D52: -2.98123455 | E52: -2.357489347 | F52: -1.764856219 | G52: -1.217860222 | H52: -0.729391098 | I52: -0.2656325996 | J52: 0.1237997115 | K52: 0.432611376 | L52: 0.6770350933 | M52: 0.8547949791 | N52: 0.9626629353 | O52: 0.9999821782 | P52: 0.9657404423 | Q52: 0.8593608737 | R52: 0.6810928583 | S52: 0.4427098334 | T52: 0.144047156 | U52: -0.2413299531 | V52: -0.696197629 | W52: -1.217780948 | X52: -1.483999133 | Y52: -1.807047963 | Z52: -2.46145606 | AA52: -3.177958012 | AB52: -3.952364206 | AC52: -4.778728485 | AD52: -4.821037292 | AE52: -5.697768688 | AF52: -6.687300682 | AG52: -7.646598339 | AH52: -8.655844688 | AI52: -9.691509247 | AJ52: -10.73045254 | AK52: -11.71177959 | AL52: -12.56336498 | AM52: -13.33567333 | AN52: -13.94597149 | AO52: -14.24182987 | AP52: -13.83246613 | AQ52: -11.51905441 | AR52: -7.630800247 | AS52: -5.902031422 | AT52: -5.213700294
A53: 0.001863799989 | D53: -4.81882143 | E53: -3.996212244 | F53: -3.205720186 | G53: -2.467309952 | H53: -1.798076749 | I53: -1.147812486 | J53: -0.5871391296 | K53: -0.1255637258 | L53: 0.2622458339 | M53: 0.5706771016 | N53: 0.7976884842 | O53: 0.9405870438 | P53: 0.9986283779 | Q53: 0.9710573554 | R53: 0.8573998809 | S53: 0.6682485938 | T53: 0.4040334523 | U53: 0.04179641232 | V53: -0.4042442143 | W53: -0.9335176945 | X53: -1.207652569 | Y53: -1.542521119 | Z53: -2.228492975 | AA53: -2.99066925 | AB53: -3.822525501 | AC53: -4.717817783 | AD53: -4.763838768 | AE53: -5.721665859 | AF53: -6.812529564 | AG53: -7.877550602 | AH53: -9.004722595 | AI53: -10.16732502 | AJ53: -11.3392849 | AK53: -12.4518795 | AL53: -13.42339039 | AM53: -14.31019878 | AN53: -15.01968861 | AO53: -15.38179684 | AP53: -14.96237278 | AQ53: -12.44726562 | AR53: -8.293109894 | AS53: -6.56434679 | AT53: -5.959285736
A54: 0.0006386999739 | D54: -6.937588215 | E54: -5.915678501 | F54: -4.925520897 | G54: -3.990546465 | H54: -3.132183552 | I54: -2.286468506 | J54: -1.541307449 | K54: -0.9110366106 | L54: -0.3640269637 | M54: 0.09622575343 | N54: 0.4634775221 | O54: 0.7369602919 | P54: 0.9145191312 | Q54: 0.9948666096 | R54: 0.9776483774 | S54: 0.8698504567 | T54: 0.6748901606 | U54: 0.37506634 | V54: -0.02132158354 | W54: -0.5118631721 | X54: -0.7722200155 | Y54: -1.095161796 | Z54: -1.769327998 | AA54: -2.529969215 | AB54: -3.37208271 | AC54: -4.288260937 | AD54: -4.33561039 | AE54: -5.325838566 | AF54: -6.463190556 | AG54: -7.581931591 | AH54: -8.772706985 | AI54: -10.00777912 | AJ54: -11.25959587 | AK54: -12.45440006 | AL54: -13.5041132 | AM54: -14.46837521 | AN54: -15.24867821 | AO54: -15.66474342 | AP54: -15.25825882 | AQ54: -12.65970993 | AR54: -8.432855606 | AS54: -6.774185658 | AT54: -6.263269424
A55: 6.880000001e-05 | D55: -8.86306572 | E55: -7.694564819 | F55: -6.553873062 | G55: -5.46832037 | H55: -4.462739468 | I55: -3.458693027 | J55: -2.56162858 | K55: -1.789472699 | L55: -1.101384401 | M55: -0.5054495335 | N55: -0.004597343504 | O55: 0.3965660036 | P55: 0.6970226765 | Q55: 0.8955882192 | R55: 0.9908267856 | S55: 0.9853343368 | T55: 0.8862472773 | U55: 0.6810181141 | V55: 0.3735697865 | W55: -0.03582130373 | X55: -0.2609633803 | Y55: -0.5450451374 | Z55: -1.15098834 | AA55: -1.852671742 | AB55: -2.642231941 | AC55: -3.514663458 | AD55: -3.560040474 | AE55: -4.513456345 | AF55: -5.61746645 | AG55: -6.713115215 | AH55: -7.887164593 | AI55: -9.112221718 | AJ55: -10.36011505 | AK55: -11.5573101 | AL55: -12.61536026 | AM55: -13.59312916 | AN55: -14.39253616 | AO55: -14.83467007 | AP55: -14.46644974 | AQ55: -11.9504118 | AR55: -7.911246777 | AS55: -6.406577587 | AT55: -6.001247406
A56: 6.880000001e-05 | D56: -10.35479546 | E56: -9.108726501 | F56: -7.88480711 | G56: -6.711745262 | H56: -5.616201878 | I56: -4.512486935 | J56: -3.513908386 | K56: -2.641683817 | L56: -1.85231328 | M56: -1.150763392 | N56: -0.5449155569 | O56: -0.03575358167 | P56: 0.3735990524 | Q56: 0.6810261011 | R56: 0.886249125 | S56: 0.9853343368 | T56: 0.9908263087 | U56: 0.8955834508 | V56: 0.6970051527 | W56: 0.3965254426 | X56: 0.2220537364 | Y56: -0.004677103367 | Z56: -0.5055913329 | AA56: -1.101617575 | AB56: -1.789839864 | AC56: -2.562143564 | AD56: -2.602619648 | AE56: -3.459344625 | AF56: -4.46360302 | AG56: -5.469222069 | AH56: -6.555622101 | AI56: -7.697303772 | AJ56: -8.867412567 | AK56: -9.996468544 | AL56: -11.00046158 | AM56: -11.93383312 | AN56: -12.70427036 | AO56: -13.14372635 | AP56: -12.82872009 | AQ56: -10.5242815 | AR56: -6.871387005 | AS56: -5.575427055 | AT56: -5.273598671
A57: 0.0006386999739 | D57: -11.2550478 | E57: -10.00487614 | F57: -8.77086544 | G57: -7.581011295 | H57: -6.462302685 | I57: -5.325171947 | J57: -4.287687302 | K57: -3.371676922 | L57: -2.529722929 | M57: -1.76918745 | N57: -1.095089078 | O57: -0.5118316412 | P57: -0.02131076716 | Q57: 0.3750728369 | R57: 0.6748928428 | S57: 0.8698504567 | T57: 0.9776490927 | U57: 0.9948655963 | V57: 0.9145104885 | W57: 0.7369345427 | X57: 0.6212742925 | Y57: 0.4634209275 | Z57: 0.09611776471 | AA57: -0.36421296 | AB57: -0.9113379717 | AC57: -1.541741014 | AD57: -1.575115323 | AE57: -2.28702569 | AF57: -3.132932663 | AG57: -3.991342306 | AH57: -4.927059174 | AI57: -5.918093204 | AJ57: -6.941419125 | AK57: -7.935447693 | AL57: -8.82493782 | AM57: -9.657001495 | AN57: -10.35017681 | AO57: -10.7568531 | AP57: -10.50636292 | AQ57: -8.531712532 | AR57: -5.440302372 | AS57: -4.395813465 | AT57: -4.192014217
A58: 0.001863799989 | D58: -11.33514214 | E58: -10.16473484 | F58: -9.003098488 | G58: -7.87677002 | H58: -6.811727524 | I58: -5.72105217 | J58: -4.717290401 | K58: -3.822156191 | L58: -2.990434885 | M58: -2.228349686 | N58: -1.542440176 | O58: -0.9334768653 | P58: -0.4042252302 | Q58: 0.04182239622 | R58: 0.4040378332 | S58: 0.6682485938 | T58: 0.857401669 | U58: 0.97105968 | V58: 0.9986273646 | W58: 0.9405757785 | X58: 0.8844832778 | Y58: 0.7976559997 | Z58: 0.5706073642 | AA58: 0.2621175349 | AB58: -0.125780791 | AC58: -0.5874602795 | AD58: -0.61225456 | AE58: -1.148235202 | AF58: -1.798655748 | AG58: -2.467932701 | AH58: -3.206937551 | AI58: -3.998140335 | AJ58: -4.821899414 | AK58: -5.627999783 | AL58: -6.354790688 | AM58: -7.039344311 | AN58: -7.615221977 | AO58: -7.962022305 | AP58: -7.779625416 | AQ58: -6.215785503 | AR58: -3.800178528 | AS58: -3.024287462 | AT58: -2.904200077
A59: 0.003761800006 | D59: -10.72645283 | E59: -9.688925743 | F59: -8.654155731 | G59: -7.64569664 | H59: -6.686430931 | I59: -5.697093964 | J59: -4.778224468 | K59: -3.951978922 | L59: -3.177676916 | M59: -2.461253643 | N59: -1.806912661 | O59: -1.217683792 | P59: -0.6961299181 | Q59: -0.2413165122 | R59: 0.1440507621 | S59: 0.4427098334 | T59: 0.6810953021 | U59: 0.8593654633 | V59: 0.9657450914 | W59: 0.9999819994 | X59: 0.9914563298 | Y59: 0.9626502395 | Z59: 0.8547579646 | AA59: 0.6769574881 | AB59: 0.4324705899 | AC59: 0.1235812008 | AD59: 0.1066265404 | AE59: -0.2659291625 | AF59: -0.7298071384 | AG59: -1.218315482 | AH59: -1.76575923 | AI59: -2.358935595 | AJ59: -2.983564854 | AK59: -3.600653172 | AL59: -4.161317825 | AM59: -4.693297386 | AN59: -5.144980907 | AO59: -5.423631668 | AP59: -5.298640251 | AQ59: -4.125417709 | AR59: -2.337965012 | AS59: -1.792760849 | AT59: -1.731149912
A60: 0.006338300183 | D60: -9.748113632 | E60: -8.858077049 | F60: -7.966479301 | G60: -7.093572617 | H60: -6.259324074 | I60: -5.393723965 | J60: -4.585782051 | K60: -3.854809761 | L60: -3.163820982 | M60: -2.516910791 | N60: -1.918594956 | O60: -1.373257637 | P60: -0.881636858 | Q60: -0.4459987879 | R60: -0.06598564982 | S60: 0.2399235517 | T60: 0.4989909232 | U60: 0.7122349143 | V60: 0.8664864898 | W60: 0.962315321 | X60: 0.9868668318 | Y60: 0.9994407296 | Z60: 0.978566587 | AA60: 0.9006284475 | AB60: 0.7668280005 | AC60: 0.580088675 | AD60: 0.5694731474 | AE60: 0.3293274343 | AF60: 0.01724507101 | AG60: -0.3199698031 | AH60: -0.7062933445 | AI60: -1.132386327 | AJ60: -1.586598754 | AK60: -2.039861679 | AL60: -2.455790997 | AM60: -2.853731394 | AN60: -3.195136547 | AO60: -3.410307407 | AP60: -3.328122139 | AQ60: -2.477606773 | AR60: -1.202282667 | AS60: -0.8332499266 | AT60: -0.8074426055
A61: 0.009645299986 | D61: -8.700787544 | E61: -7.947512627 | F61: -7.189767361 | G61: -6.444785595 | H61: -5.729783058 | I61: -4.983771801 | J61: -4.283813 | K61: -3.646753073 | L61: -3.040192366 | M61: -2.468142986 | N61: -1.934927583 | O61: -1.442242861 | P61: -0.9914277792 | Q61: -0.585652113 | R61: -0.2254124731 | S61: 0.07194148749 | T61: 0.3339962959 | U61: 0.5610487461 | V61: 0.7413011789 | W61: 0.8737844229 | X61: 0.9194712043 | Y61: 0.9592109323 | Z61: 0.9975865483 | AA61: 0.9894112945 | AB61: 0.9358274937 | AC61: 0.8382440805 | AD61: 0.8322882652 | AE61: 0.6907322407 | AF61: 0.4944068193 | AG61: 0.2719894052 | AH61: 0.009793114848 | AI61: -0.2854454517 | AJ61: -0.6061256528 | AK61: -0.9309541583 | AL61: -1.232071042 | AM61: -1.52287817 | AN61: -1.774749875 | AO61: -1.93689692 | AP61: -1.884376049 | AQ61: -1.280398726 | AR61: -0.3900355101 | AS61: -0.1466025114 | AT61: -0.1405535191
A62: 0.01377020031 | D62: -7.68500042 | E62: -7.05198431 | F62: -6.412657738 | G62: -5.781612873 | H62: -5.173566818 | I62: -4.535788536 | J62: -3.934403896 | K62: -3.384207726 | L62: -2.857174635 | M62: -2.35686326 | N62: -1.886823893 | O62: -1.44862783 | P62: -1.043904543 | Q62: -0.6730661392 | R62: -0.3385178149 | S62: -0.0591459088 | T62: 0.1945446283 | U62: 0.422617048 | V62: 0.6125911474 | W62: 0.7651113868 | X62: 0.823061347 | Y62: 0.8793033361 | Z62: 0.9556204677 | AA62: 0.9944835901 | AB62: 0.9963043928 | AC62: 0.9623231292 | AD62: 0.9597269893 | AE62: 0.8896164298 | AF62: 0.7774888873 | AG62: 0.6409521103 | AH62: 0.471950233 | AI62: 0.274740696 | AJ62: 0.05559550226 | AK62: -0.1701060385 | AL62: -0.3826054931 | AM62: -0.5902839303 | AN62: -0.772564888 | AO62: -0.8921589255 | AP62: -0.8595831394 | AQ62: -0.4383855164 | AR62: 0.1682070047 | AS62: 0.3241672218 | AT62: 0.3206093311
A63: 0.01887110062 | D63: -6.759502411 | E63: -6.228785515 | F63: -5.690659046 | G63: -5.157479286 | H63: -4.641808987 | I63: -4.098139763 | J63: -3.583171129 | K63: -3.109885931 | L63: -2.654057741 | M63: -2.218695879 | N63: -1.806764364 | O63: -1.419801474 | P63: -1.059068918 | Q63: -0.7255089283 | R63: -0.4198094308 | S63: -0.1605955362 | T63: 0.07922485471 | U63: 0.2999792397 | V63: 0.490986675 | W63: 0.6512315869 | X63: 0.7156561017 | Y63: 0.7813553214 | Z63: 0.8810530305 | AA63: 0.9502890706 | AB63: 0.9896461368 | AC63: 0.999682188 | AD63: 0.9994366765 | AE63: 0.9798768163 | AF63: 0.9288720489 | AG63: 0.8545126915 | AH63: 0.7540311813 | AI63: 0.6303424239 | AJ63: 0.4872932136 | AK63: 0.3355679512 | AL63: 0.1901194751 | AM63: 0.04580449313 | AN63: -0.08239305764 | AO63: -0.168367222 | AP63: -0.148900345 | AQ63: 0.1376698613 | AR63: 0.5392354131 | AS63: 0.6350930929 | AT63: 0.6280072927
A64: 0.02520550042 | D64: -5.929539204 | E64: -5.485593796 | F64: -5.033646107 | G64: -4.584164619 | H64: -4.147873402 | I64: -3.685525656 | J64: -3.245743275 | K64: -2.839884758 | L64: -2.446999311 | M64: -2.069616079 | N64: -1.710272074 | O64: -1.370327115 | P64: -1.05077672 | Q64: -0.7526188493 | R64: -0.4765205979 | S64: -0.2390064299 | T64: -0.01614946686 | U64: 0.1932287216 | V64: 0.3785537481 | W64: 0.5400909781 | X64: 0.6069594622 | Y64: 0.6770284176 | Z64: 0.7895494699 | AA64: 0.8779515028 | AB64: 0.9418598413 | AC64: 0.9820939898 | AD64: 0.9834803343 | AE64: 0.9994804263 | AF64: 0.9920168519 | AG64: 0.9631403089 | AH64: 0.9131385088 | AI64: 0.8435233235 | AJ64: 0.7573118806 | AK64: 0.6618786454 | AL64: 0.5673785806 | AM64: 0.4714379907 | AN64: 0.3843232095 | AO64: 0.324668169 | AP64: 0.3356766701 | AQ64: 0.5240164995 | AR64: 0.7761495709 | AS64: 0.830946207 | AT64: 0.8238644004
A65: 0.03314150125 | D65: -5.1859622 | E65: -4.815976143 | F65: -4.437748909 | G65: -4.060147762 | H65: -3.692324162 | I65: -3.3004632 | J65: -2.926235437 | K65: -2.579546213 | L65: -2.24228549 | M65: -1.916584373 | N65: -1.604626656 | O65: -1.307568073 | P65: -1.026252627 | Q65: -0.7615245581 | R65: -0.5140379071 | S65: -0.2988881767 | T65: -0.09441521764 | U65: 0.1006642282 | V65: 0.2770417333 | W65: 0.4341047704 | X65: 0.5007852912 | Y65: 0.5720378757 | Z65: 0.6906281114 | AA65: 0.7895216942 | AB65: 0.8690951467 | AC65: 0.929145813 | AD65: 0.9316402078 | AE65: 0.9721762538 | AF65: 0.9955896139 | AG65: 0.9993480444 | AH65: 0.9861710072 | AI65: 0.956864953 | AJ65: 0.9131649137 | AK65: 0.8596866131 | AL65: 0.8037107587 | AM65: 0.7446454763 | AN65: 0.6895956993 | AO65: 0.6507474184 | AP65: 0.6564515829 | AQ65: 0.7721835971 | AR65: 0.9164803624 | AS65: 0.9434383512 | AT65: 0.9383650422
A66: 0.04317279905 | D66: -4.52133131 | E66: -4.214515209 | F66: -3.899462938 | G66: -3.583685875 | H66: -3.27498579 | I66: -2.944257259 | J66: -2.627183199 | K66: -2.332378149 | L66: -2.044202566 | M66: -1.764455199 | N66: -1.495010018 | O66: -1.236842394 | P66: -0.9906814694 | Q66: -0.7572360039 | R66: -0.537083447 | S66: -0.3439180553 | T66: -0.1583793461 | U66: 0.02107480913 | V66: 0.1857778281 | W66: 0.3356308341 | X66: 0.400244683 | Y66: 0.4701676965 | Z66: 0.5892946124 | AA66: 0.6932006478 | AB66: 0.7811819315 | AC66: 0.8538503647 | AD66: 0.8570535779 | AE66: 0.9137330055 | AF66: 0.9582644105 | AG66: 0.9850901365 | AH66: 0.9984012246 | AI66: 0.998349607 | AJ66: 0.985974431 | AK66: 0.9640301466 | AL66: 0.9370590448 | AM66: 0.9059526324 | AN66: 0.8751004934 | AO66: 0.8524227142 | AP66: 0.8549901843 | AQ66: 0.9182166457 | AR66: 0.9848280549 | AS66: 0.9934226871 | AT66: 0.9913839698
A67: 0.0558434017 | D67: -3.932500362 | E67: -3.679311514 | F67: -3.41805625 | G67: -3.155103922 | H67: -2.897112131 | I67: -2.619015455 | J67: -2.351386786 | K67: -2.101710558 | L67: -1.856476307 | M67: -1.617204785 | N67: -1.385500789 | O67: -1.162189007 | P67: -0.9478969574 | Q67: -0.74322927 | R67: -0.5486848354 | S67: -0.37653777 | T67: -0.2096886337 | U67: -0.04645319656 | V67: 0.10543219 | W67: 0.2456160635 | X67: 0.3069182634 | Y67: 0.3739753366 | Z67: 0.4903650582 | AA67: 0.5944186449 | AB67: 0.6862510443 | AC67: 0.7653413415 | AD67: 0.76895684 | AE67: 0.8355258107 | AF67: 0.8938710093 | AG67: 0.9360699654 | AH67: 0.9677249193 | AI67: 0.988394618 | AJ67: 0.9985232353 | AK67: 0.9993659854 | AL67: 0.9936301112 | AM67: 0.9831907749 | AN67: 0.9706523418 | AO67: 0.9603752494 | AP67: 0.9612566233 | AQ67: 0.9868596196 | AR67: 0.9993051291 | AS67: 0.9963048697 | AT67: 0.9976633787
A68: 0.07152389735 | D68: -3.420649529 | E68: -3.212160349 | F68: -2.995874166 | G68: -2.777220011 | H68: -2.561902761 | I68: -2.328253269 | J68: -2.102570772 | K68: -1.891377568 | L68: -1.682958722 | M68: -1.478605628 | N68: -1.279695272 | O68: -1.086929202 | P68: -0.9008457661 | Q68: -0.721965611 | R68: -0.5507194996 | S68: -0.3980267346 | T68: -0.2489263862 | U68: -0.1015680432 | V68: 0.03704192862 | W68: 0.166687116 | X68: 0.2239580303 | Y68: 0.2870810926 | Z68: 0.3980488777 | AA68: 0.4995912015 | AB68: 0.5910660625 | AC68: 0.6727930307 | AD68: 0.6765885353 | AE68: 0.7480383515 | AF68: 0.8141222 | AG68: 0.8660009503 | AH68: 0.9094337821 | AI68: 0.9437963367 | AJ68: 0.9692724943 | AK68: 0.9859502912 | AL68: 0.9951097965 | AM68: 0.9993474483 | AN68: 0.9998621345 | AO68: 0.998652041 | AP68: 0.9987564087 | AQ68: 0.9986703396 | AR68: 0.9747849107 | AS68: 0.9650010467 | AT68: 0.9696008563
A69: 0.09011629969 | D69: -2.989025354 | E69: -2.816734314 | F69: -2.636955023 | G69: -2.454366922 | H69: -2.273910046 | I69: -2.076674461 | J69: -1.885502934 | K69: -1.706126809 | L69: -1.528295636 | M69: -1.353117466 | N69: -1.181783438 | O69: -1.01489687 | P69: -0.8529224396 | Q69: -0.6963120699 | R69: -0.5454409122 | S69: -0.4100177288 | T69: -0.2769567966 | U69: -0.1443143934 | V69: -0.01838839613 | W69: 0.1005695909 | X69: 0.1535658985 | Y69: 0.2123512477 | Z69: 0.3168106079 | AA69: 0.413682729 | AB69: 0.5028039217 | AC69: 0.5837174058 | AD69: 0.5875347853 | AE69: 0.6605008841 | AF69: 0.7303492427 | AG69: 0.7870827317 | AH69: 0.8373835087 | AI69: 0.8802700639 | AJ69: 0.9154133797 | AK69: 0.9422519207 | AL69: 0.9612217546 | AM69: 0.9752674103 | AN69: 0.9846612215 | AO69: 0.9897069931 | AP69: 0.9895029664 | AQ69: 0.9725747108 | AR69: 0.9257290363 | AS69: 0.9123706222 | AT69: 0.9196784496
A70: 0.1110413969 | D70: -2.633559227 | E70: -2.48990941 | F70: -2.339078188 | G70: -2.185163975 | H70: -2.032506704 | I70: -1.864380836 | J70: -1.700906992 | K70: -1.54718411 | L70: -1.394124389 | M70: -1.242692232 | N70: -1.093932152 | O70: -0.9483709335 | P70: -0.8064137101 | Q70: -0.6684578061 | R70: -0.5348336697 | S70: -0.4141995013 | T70: -0.2950955629 | U70: -0.175480485 | V70: -0.06107154861 | W70: 0.04791184142 | X70: 0.09678142518 | Y70: 0.1512461752 | Z70: 0.248763442 | AA70: 0.3403386176 | AB70: 0.4254919887 | AC70: 0.504226625 | AD70: 0.5079657435 | AE70: 0.5801363587 | AF70: 0.6505801678 | AG70: 0.7095010281 | AH70: 0.7630987763 | AI70: 0.8103936315 | AJ70: 0.8511725068 | AK70: 0.884264946 | AL70: 0.9092230797 | AM70: 0.9293856621 | AN70: 0.9443520308 | AO70: 0.9534425139 | AP70: 0.9530852437 | AQ70: 0.9256064296 | AR70: 0.8647942543 | AS70: 0.8497125506 | AT70: 0.8590552807
A71: 0.1335833073 | D71: -2.343160391 | E71: -2.222020149 | F71: -2.093980074 | G71: -1.962692857 | H71: -1.832033634 | I71: -1.686987162 | J71: -1.545551419 | K71: -1.412326932 | L71: -1.279138088 | M71: -1.146838188 | N71: -1.016357422 | O71: -0.8881621957 | P71: -0.7626114488 | Q71: -0.6400588155 | R71: -0.5207992792 | S71: -0.4126007259 | T71: -0.3053733408 | U71: -0.1969982237 | V71: -0.09270140529 | W71: 0.007306668907 | X71: 0.05238569528 | Y71: 0.1028191596 | Z71: 0.1936852038 | AA71: 0.2797132134 | AB71: 0.360578537 | AC71: 0.4359835088 | AD71: 0.4395917654 | AE71: 0.5097947717 | AF71: 0.5794370174 | AG71: 0.6382585168 | AH71: 0.6929940581 | AI71: 0.7425216436 | AJ71: 0.7861577272 | AK71: 0.8224905729 | AL71: 0.8508788347 | AM71: 0.8746658564 | AN71: 0.8930985332 | AO71: 0.9046183228 | AP71: 0.9040868282 | AQ71: 0.8698942065 | AR71: 0.8010104299 | AS71: 0.7852094769 | AT71: 0.7959142327
A72: 0.1571827978 | D72: -2.103908777 | E72: -2.000625372 | F72: -1.890691757 | G72: -1.777415872 | H72: -1.664311409 | I72: -1.537710667 | J72: -1.413945556 | K72: -1.297221065 | L72: -1.180082321 | M72: -1.063295245 | N72: -0.9477004409 | O72: -0.8337167501 | P72: -0.7216663361 | Q72: -0.6118679047 | R72: -0.5045878291 | S72: -0.4068354964 | T72: -0.3096966743 | U72: -0.2109616399 | V72: -0.1154571027 | W72: -0.02337984927 | X72: 0.01829933934 | Y72: 0.06507202983 | Z72: 0.1497480869 | AA72: 0.2304835618 | AB72: 0.3068932593 | AC72: 0.3787976205 | AD72: 0.3822524548 | AE72: 0.4498627484 | AF72: 0.5175850987 | AG72: 0.5755283833 | AH72: 0.630027771 | AI72: 0.6799289584 | AJ72: 0.7247691154 | AK72: 0.7628701329 | AL72: 0.7929788828 | AM72: 0.8186817765 | AN72: 0.8388753533 | AO72: 0.8517395854 | AP72: 0.8509401083 | AQ72: 0.8126680851 | AR72: 0.7389262915 | AS72: 0.7228008509 | AT72: 0.7343344688
A73: 0.1814865023 | D73: -1.903607011 | E73: -1.814736247 | F73: -1.719433188 | G73: -1.620736003 | H73: -1.521872401 | I73: -1.410251975 | J73: -1.300880075 | K73: -1.197643518 | L73: -1.093664169 | M73: -0.9896390438 | N73: -0.8863369226 | O73: -0.7841385603 | P73: -0.683336556 | Q73: -0.584221065 | R73: -0.4870352745 | S73: -0.3981356919 | T73: -0.3096291125 | U73: -0.2192032933 | V73: -0.1313584596 | W73: -0.04627935961 | X73: -0.00763359433 | Y73: 0.03584527224 | Z73: 0.1148719043 | AA73: 0.1906334311 | AB73: 0.2627687156 | AC73: 0.3310468495 | AD73: 0.3343403041 | AE73: 0.3991242945 | AF73: 0.4645944536 | AG73: 0.5208553076 | AH73: 0.574364841 | AI73: 0.6239653826 | AJ73: 0.6689225435 | AK73: 0.7074071169 | AL73: 0.7381868362 | AM73: 0.764777422 | AN73: 0.7859771252 | AO73: 0.7994368672 | AP73: 0.7982572317 | AQ73: 0.7571285367 | AR73: 0.6807192564 | AS73: 0.6644484997 | AT73: 0.6763769388
A74: 0.2062847018 | D74: -1.732875347 | E74: -1.655863523 | F74: -1.572607875 | G74: -1.485932946 | H74: -1.398836732 | I74: -1.299604535 | J74: -1.202166915 | K74: -1.110151052 | L74: -1.017148256 | M74: -0.9237996936 | N74: -0.8308157921 | O74: -0.7385463715 | P74: -0.6472594142 | Q74: -0.5572218299 | R74: -0.4686572552 | S74: -0.387352556 | T74: -0.3063184023 | U74: -0.2231223583 | V74: -0.1420006752 | W74: -0.06312575191 | X74: -0.02719220147 | Y74: 0.01332250144 | Z74: 0.08720619231 | AA74: 0.1583634466 | AB74: 0.2264354974 | AC74: 0.2911995947 | AD74: 0.2943327129 | AE74: 0.356233716 | AF74: 0.4191915691 | AG74: 0.4735615253 | AH74: 0.5256357789 | AI74: 0.5742197633 | AJ74: 0.6186596751 | AK74: 0.6570388675 | AL74: 0.6877926588 | AM74: 0.7145386934 | AN74: 0.735876441 | AO74: 0.7494359016 | AP74: 0.7477685213 | AQ74: 0.7048767805 | AR74: 0.6267864704 | AS74: 0.6103672385 | AT74: 0.6223724484
A75: 0.231449604 | D75: -1.584843516 | E75: -1.517768145 | F75: -1.444612145 | G75: -1.368028045 | H75: -1.290826559 | I75: -1.202016234 | J75: -1.114643216 | K75: -1.032119751 | L75: -0.9484245777 | M75: -0.8641533852 | N75: -0.7799680829 | O75: -0.6961926818 | P75: -0.6130750179 | Q75: -0.530862093 | R75: -0.4497611523 | S75: -0.3750528395 | T75: -0.300570637 | U75: -0.2237301171 | V75: -0.1485632211 | W75: -0.07522860914 | X75: -0.0417336151 | Y75: -0.003897570539 | Z75: 0.06529774517 | AA75: 0.132199958 | AB75: 0.1964569986 | AC75: 0.2578435242 | AD75: 0.260820657 | AE75: 0.3198772669 | AF75: 0.3802806437 | AG75: 0.4325615168 | AH75: 0.4829533696 | AI75: 0.5302732587 | AJ75: 0.5737878084 | AK75: 0.6114832163 | AL75: 0.641761899 | AM75: 0.6682177782 | AN75: 0.689416647 | AO75: 0.7027272582 | AP75: 0.7004752755 | AQ75: 0.6561757922 | AR75: 0.5771845579 | AS75: 0.5605759621 | AT75: 0.5724085569
A76: 0.2568989992 | D76: -1.454565883 | E76: -1.395952225 | F76: -1.331398249 | G76: -1.263417482 | H76: -1.194666386 | I76: -1.114757538 | J76: -1.036000729 | K76: -0.961627543 | L76: -0.8859410286 | M76: -0.8094986677 | N76: -0.732921958 | O76: -0.6565131545 | P76: -0.5805028081 | Q76: -0.5051211715 | R76: -0.4305613041 | S76: -0.3616467714 | T76: -0.2929800749 | U76: -0.2217783779 | V76: -0.1519320756 | W76: -0.08358219266 | X76: -0.0522935614 | Y76: -0.01689114049 | Z76: 0.04801462591 | AA76: 0.110982269 | AB76: 0.1716660708 | AC76: 0.2298409045 | AD76: 0.2326683253 | AE76: 0.2889668047 | AF76: 0.3468224406 | AG76: 0.3969672024 | AH76: 0.445548743 | AI76: 0.4913760722 | AJ76: 0.5337123275 | AK76: 0.5704997778 | AL76: 0.6000081897 | AM76: 0.6258518696 | AN76: 0.646508038 | AO76: 0.6593214869 | AP76: 0.6564004421 | AQ76: 0.6111148 | AR76: 0.5315352678 | AS76: 0.514656961 | AT76: 0.5261264443
A77: 0.2825762033 | D77: -1.338473201 | E77: -1.287168384 | F77: -1.230043173 | G77: -1.169498086 | H77: -1.108061194 | I77: -1.03585577 | J77: -0.9645712972 | K77: -0.8972862363 | L77: -0.8285777569 | M77: -0.7589712739 | N77: -0.6890539527 | O77: -0.6191095114 | P77: -0.5493536592 | Q77: -0.4800021052 | R77: -0.4112356901 | S77: -0.3474619985 | T77: -0.2840153873 | U77: -0.2178526223 | V77: -0.152796939 | W77: -0.0889627561 | X77: -0.05968240276 | Y77: -0.02650273032 | Z77: 0.03446245939 | AA77: 0.09378449619 | AB77: 0.1511236876 | AC77: 0.2062558383 | AD77: 0.2089404017 | AE77: 0.2625888586 | AF77: 0.3179520965 | AG77: 0.3659522831 | AH77: 0.412664026 | AI77: 0.4568996727 | AJ77: 0.4979038239 | AK77: 0.53357023 | AL77: 0.5621051788 | AM77: 0.5871232152 | AN77: 0.6070738435 | AO77: 0.6192137003 | AP77: 0.6155497432 | AQ77: 0.5694071651 | AR77: 0.4894646704 | AS77: 0.4722300768 | AT77: 0.4831869304
A78: 0.3084402084 | D78: -1.23389864 | E78: -1.188986301 | F78: -1.138355136 | G78: -1.084313154 | H78: -1.029281974 | I78: -0.963819325 | J78: -0.8990883827 | K78: -0.8380370736 | L78: -0.7754758596 | M78: -0.7119028568 | N78: -0.6478758454 | O78: -0.5836626887 | P78: -0.5194661617 | Q78: -0.455489397 | R78: -0.3919024169 | S78: -0.3327299356 | T78: -0.2740312815 | U78: -0.2123901397 | V78: -0.1516768336 | W78: -0.09195955098 | X78: -0.06451771408 | Y78: -0.0333788842 | Z78: 0.02395053394 | AA78: 0.07988487184 | AB78: 0.1340900958 | AC78: 0.1863433272 | AD78: 0.1888919473 | AE78: 0.2400064319 | AF78: 0.292953223 | AG78: 0.3388349712 | AH78: 0.3836615682 | AI78: 0.4262472987 | AJ78: 0.4658255577 | AK78: 0.5002570748 | AL78: 0.5276840925 | AM78: 0.5517255664 | AN78: 0.5707980394 | AO78: 0.5821298957 | AP78: 0.5776581764 | AQ78: 0.5307816267 | AR78: 0.4505519867 | AS78: 0.4328708649 | AT78: 0.4431956112
A79: 0.3344601989 | D79: -1.13882041 | E79: -1.099561453 | F79: -1.05466783 | G79: -1.006373405 | H79: -0.9570100307 | I79: -0.8975079656 | J79: -0.8385815024 | K79: -0.7830661535 | L79: -0.7259722948 | M79: -0.6677747369 | N79: -0.6090060472 | O79: -0.5499200821 | P79: -0.4907085001 | Q79: -0.4315632582 | R79: -0.3726449013 | S79: -0.3176211417 | T79: -0.2633252144 | U79: -0.2057271004 | V79: -0.1489711851 | W79: -0.09302859008 | X79: -0.0672788322 | Y79: -0.03802314401 | Z79: 0.01593729481 | AA79: 0.06871341169 | AB79: 0.1199763864 | AC79: 0.1695048958 | AD79: 0.171924293 | AE79: 0.2206210494 | AF79: 0.2712373435 | AG79: 0.315043956 | AH79: 0.3579957783 | AI79: 0.3989094496 | AJ79: 0.4370090961 | AK79: 0.4701262116 | AL79: 0.4963512719 | AM79: 0.5193089843 | AN79: 0.5373973846 | AO79: 0.5478205085 | AP79: 0.5424836874 | AQ79: 0.4949114919 | AR79: 0.4144129753 | AS79: 0.3961967528 | AT79: 0.4057921767
A80: 0.3606118858 | D80: -1.051714182 | E80: -1.017506361 | F80: -0.9777314067 | G80: -0.9345642924 | H80: -0.8902623653 | I80: -0.8360757232 | J80: -0.7823345065 | K80: -0.7317778468 | L80: -0.6795876026 | M80: -0.6262185574 | N80: -0.5721814036 | O80: -0.5177180767 | P80: -0.4630101919 | Q80: -0.4082399309 | R80: -0.3535593748 | S80: -0.3023058176 | T80: -0.2522198856 | U80: -0.1981603205 | V80: -0.1450228989 | W80: -0.09255772084 | X80: -0.06837242097 | Y80: -0.04086189717 | Z80: 0.009964879602 | AA80: 0.05978795514 | AB80: 0.1082832739 | AC80: 0.155231148 | AD80: 0.1575276703 | AE80: 0.2039203495 | AF80: 0.2522965968 | AG80: 0.2940814793 | AH80: 0.3351854682 | AI80: 0.3744270205 | AJ80: 0.4110222459 | AK80: 0.4427770376 | AL80: 0.467735976 | AM80: 0.4895329475 | AN80: 0.5065523386 | AO80: 0.5159868002 | AP80: 0.5097330213 | AQ80: 0.4614737928 | AR80: 0.3806726635 | AS80: 0.3618351817 | AT80: 0.3706204295
A81: 0.3868759871 | D81: -0.9713109136 | E81: -0.9416570067 | F81: -0.9064878821 | G81: -0.8679329753 | H81: -0.8281880021 | I81: -0.7787781358 | J81: -0.7297048569 | K81: -0.6836243272 | L81: -0.6358655691 | M81: -0.5868663192 | N81: -0.5371183753 | O81: -0.4868529141 | P81: -0.4362429082 | Q81: -0.3854617774 | R81: -0.3346541822 | S81: -0.2868417799 | T81: -0.2413268536 | U81: -0.1898819059 | V81: -0.1400538981 | W81: -0.09080638736 | X81: -0.06807426363 | Y81: -0.04218845442 | Z81: 0.005711141042 | AA81: 0.05276284367 | AB81: 0.09864696115 | AC81: 0.1431454718 | AD81: 0.1453250051 | AE81: 0.18952021 | AF81: 0.2357450575 | AG81: 0.2755642831 | AH81: 0.3148550093 | AI81: 0.3524365127 | AJ81: 0.3875175714 | AK81: 0.4178801477 | AL81: 0.4415269792 | AM81: 0.462105453 | AN81: 0.4779908657 | AO81: 0.4863715172 | AP81: 0.4791521728 | AQ81: 0.4301885068 | AR81: 0.3490232825 | AS81: 0.3294811845 | AT81: 0.3373869061
A82: 0.4132365882 | D82: -0.8966676593 | E82: -0.8711560965 | F82: -0.8401657343 | G82: -0.8057925105 | H82: -0.7701819539 | I82: -0.7250950336 | J82: -0.6802533269 | K82: -0.6382415295 | L82: -0.5945147276 | M82: -0.5494961143 | N82: -0.5036610365 | O82: -0.4572314918 | P82: -0.4103725553 | Q82: -0.3632498384 | R82: -0.3160018325 | S82: -0.2713527083 | T82: -0.2327186167 | U82: -0.1811305434 | V82: -0.134300217 | W82: -0.08803847432 | X82: -0.06666103005 | Y82: -0.04229326919 | Z82: 0.002862824127 | AA82: 0.04730618 | AB82: 0.09072112292 | AC82: 0.1328912526 | AD82: 0.1349592656 | AE82: 0.1770580113 | AF82: 0.2212185264 | AG82: 0.2591298223 | AH82: 0.2966473103 | AI82: 0.3325896859 | AJ82: 0.3661587536 | AK82: 0.3951126039 | AL82: 0.417414397 | AM82: 0.436730504 | AN82: 0.4514298737 | AO82: 0.4587014318 | AP82: 0.4504687488 | AQ82: 0.4007642567 | AR82: 0.3191491067 | AS82: 0.298820585 | AT82: 0.3057858348
A83: 0.4396804869 | D83: -0.8269786835 | E83: -0.8052670956 | F83: -0.7780973911 | G83: -0.7475433946 | H83: -0.7157106996 | I83: -0.6745616794 | J83: -0.6335805655 | K83: -0.5952912569 | L83: -0.5552562475 | M83: -0.5138862133 | N83: -0.4716424346 | O83: -0.4287386537 | P83: -0.385333091 | Q83: -0.341584295 | R83: -0.2976256907 | S83: -0.2559001446 | T83: -0.2057861835 | U83: -0.172137633 | V83: -0.1279346049 | W83: -0.08444689214 | X83: -0.06433650851 | Y83: -0.04139231518 | Z83: 0.001183277345 | AA83: 0.0431637615 | AB83: 0.08423726261 | AC83: 0.1241889149 | AD83: 0.1261504292 | AE83: 0.1662465185 | AF83: 0.2084255517 | AG83: 0.244484961 | AH83: 0.2802705765 | AI83: 0.3145990074 | AJ83: 0.3466646671 | AK83: 0.3742010295 | AL83: 0.3951324522 | AM83: 0.4131506681 | AN83: 0.4266198874 | AO83: 0.4327331781 | AP83: 0.4234388769 | AQ83: 0.37294361 | AR83: 0.2907766402 | AS83: 0.2695807815 | AT83: 0.2755500376
A84: 0.4661962092 | D84: -0.7615516186 | E84: -0.743353188 | F84: -0.7197018862 | G84: -0.6926599145 | H84: -0.6643023491 | I84: -0.6267616749 | J84: -0.5893237591 | K84: -0.5544609427 | L84: -0.5178261995 | M84: -0.4798197746 | N84: -0.440890789 | O84: -0.4012458324 | P84: -0.3610369563 | Q84: -0.3204165995 | R84: -0.2795130312 | S84: -0.2404996306 | T84: -0.1956218481 | U84: -0.1634695232 | V84: -0.1210844889 | W84: -0.08016769588 | X84: -0.06124552712 | Y84: -0.03964088485 | Z84: 0.0004988234141 | AA84: 0.04014577717 | AB84: 0.07899194211 | AC84: 0.116823934 | AD84: 0.1186834723 | AE84: 0.156862691 | AF84: 0.197137475 | AG84: 0.2313972563 | AH84: 0.2654910982 | AI84: 0.2982316017 | AJ84: 0.3288053274 | AK84: 0.3549192548 | AL84: 0.3744586408 | AM84: 0.3911477625 | AN84: 0.403347075 | AO84: 0.4082562327 | AP84: 0.3978508711 | AQ84: 0.3465048373 | AR84: 0.2636732757 | AS84: 0.2415294945 | AT84: 0.2464504391
A85: 0.4927740991 | D85: -0.699826479 | E85: -0.6849022508 | F85: -0.6645146608 | G85: -0.6407241821 | H85: -0.6155844331 | I85: -0.5813692808 | J85: -0.5472016335 | K85: -0.5155112743 | L85: -0.4820259511 | M85: -0.4471372962 | N85: -0.4112841487 | O85: -0.3746668696 | P85: -0.3374319375 | Q85: -0.2997269332 | R85: -0.2616738975 | S85: -0.2251901627 | T85: -0.1859615296 | U85: -0.1570918262 | V85: -0.1139019132 | W85: -0.07533475012 | X85: -0.0575279519 | Y85: -0.03718723357 | Z85: 0.000645834778 | AA85: 0.03807482123 | AB85: 0.07479593903 | AC85: 0.110597305 | AD85: 0.112358965 | AE85: 0.1487001032 | AF85: 0.1871426702 | AG85: 0.2196511179 | AH85: 0.252091378 | AI85: 0.2832697928 | AJ85: 0.31236431 | AK85: 0.3370527327 | AL85: 0.3551798761 | AM85: 0.3705106676 | AN85: 0.3814021349 | AO85: 0.3850627244 | AP85: 0.3734945357 | AQ85: 0.3212275207 | AR85: 0.2376071364 | AS85: 0.2144340128 | AT85: 0.218255654
A86: 0.5194053054 | D86: -0.641327858 | E86: -0.6294802427 | F86: -0.6121429205 | G86: -0.5913840532 | H86: -0.5692440271 | I86: -0.5381111503 | J86: -0.5069792271 | K86: -0.4782432318 | L86: -0.447691232 | M86: -0.4157080352 | N86: -0.3827238679 | O86: -0.3489336967 | P86: -0.3144789934 | Q86: -0.2795037925 | R86: -0.2441229373 | S86: -0.2100162208 | T86: -0.1752557606 | U86: -0.1326033026 | V86: -0.1065839753 | W86: -0.07007373869 | X86: -0.05331182107 | Y86: -0.03416592255 | Z86: 0.0014764847 | AA86: 0.03679072857 | AB86: 0.07147830725 | AC86: 0.1053289473 | AD86: 0.1069964096 | AE86: 0.1415715814 | AF86: 0.1782488674 | AG86: 0.2090497911 | AH86: 0.2398718745 | AI86: 0.2695127428 | AJ86: 0.2971405387 | AK86: 0.3204004169 | AL86: 0.3370943964 | AM86: 0.3510373533 | AN86: 0.3605826199 | AO86: 0.362950027 | AP86: 0.3501631916 | AQ86: 0.2968948483 | AR86: 0.2123509645 | AS86: 0.1880631447 | AT86: 0.190734148
A87: 0.5460821986 | D87: -0.5855756998 | E87: -0.5766382217 | F87: -0.5621694326 | G87: -0.5442538857 | H87: -0.5249267817 | I87: -0.4966650307 | J87: -0.4683651328 | K87: -0.4423952401 | L87: -0.4145896435 | M87: -0.3853279352 | N87: -0.3550333977 | O87: -0.3238963783 | P87: -0.2920539975 | Q87: -0.2596467733 | R87: -0.2267840505 | S87: -0.1949090064 | T87: -0.1636254638 | U87: -0.1244523674 | V87: -0.09960274398 | W87: -0.0644299984 | X87: -0.0486381948 | Y87: -0.03062223457 | Z87: 0.002933597192 | AA87: 0.03622399271 | AB87: 0.06895811856 | AC87: 0.1009276435 | AD87: 0.1025041267 | AE87: 0.1353771836 | AF87: 0.1703489125 | AG87: 0.1994792223 | AH87: 0.228713125 | AI87: 0.2568367124 | AJ87: 0.2830069959 | AK87: 0.3048321903 | AL87: 0.3200684488 | AM87: 0.3325909674 | AN87: 0.3407487273 | AO87: 0.3417763114 | AP87: 0.3277107477 | AQ87: 0.2733549178 | AR87: 0.187746644 | AS87: 0.1622574031 | AT87: 0.1637245119
A88: 0.5727977157 | D88: -0.532209456 | E88: -0.5260463953 | F88: -0.5142956972 | G88: -0.4990663826 | H88: -0.4823955894 | I88: -0.456823498 | J88: -0.431180656 | K88: -0.407815963 | L88: -0.3825961351 | M88: -0.3558971882 | N88: -0.3281371295 | O88: -0.2995022237 | P88: -0.27012676 | Q88: -0.240145728 | R88: -0.2096669376 | S88: -0.1799082458 | T88: -0.1515939534 | U88: -0.1168097109 | V88: -0.09480717778 | W88: -0.0585305579 | X88: -0.04361102358 | Y88: -0.02665962465 | Z88: 0.004905394744 | AA88: 0.03625293076 | AB88: 0.06710445881 | AC88: 0.09725426137 | AD88: 0.09874260426 | AE88: 0.1299713701 | AF88: 0.1632923633 | AG88: 0.1907835156 | AH88: 0.2184551358 | AI88: 0.2450785488 | AJ88: 0.2697978616 | AK88: 0.2901793122 | AL88: 0.3039290011 | AM88: 0.3149944246 | AN88: 0.321719259 | AO88: 0.3213554323 | AP88: 0.305945605 | AQ88: 0.2504057586 | AR88: 0.163580209 | AS88: 0.1367960125 | AT88: 0.1370026618
A89: 0.5995451808 | D89: -0.4808519781 | E89: -0.4773487151 | F89: -0.4681894481 | G89: -0.4555134475 | H89: -0.4413668811 | I89: -0.4183269441 | J89: -0.3951898515 | K89: -0.3742924631 | L89: -0.3515201807 | M89: -0.327247113 | N89: -0.3018874526 | O89: -0.275624007 | P89: -0.2485898882 | Q89: -0.2209125459 | R89: -0.1927011907 | S89: -0.1649523675 | T89: -0.1393387318 | U89: -0.108116731 | V89: -0.07314769924 | W89: -0.05248264223 | X89: -0.03827366233 | Y89: -0.02231121995 | Z89: 0.007354067639 | AA89: 0.03683011234 | AB89: 0.06586016715 | AC89: 0.09424249828 | AD89: 0.09564509988 | AE89: 0.1252800822 | AF89: 0.1569986343 | AG89: 0.1828746498 | AH89: 0.2090036422 | AI89: 0.2341384739 | AJ89: 0.2574083507 | AK89: 0.2763314247 | AL89: 0.2885588109 | AM89: 0.2981239557 | AN89: 0.3033641875 | AO89: 0.3015497327 | AP89: 0.2847251594 | AQ89: 0.2278973311 | AR89: 0.1396930218 | AS89: 0.1115146801 | AT89: 0.1103994623
A90: 0.626318574 | D90: -0.4311783314 | E90: -0.4302375019 | F90: -0.4235644341 | G90: -0.4133318067 | H90: -0.4016006291 | I90: -0.3809576631 | J90: -0.3601969182 | K90: -0.3416507244 | L90: -0.3212086558 | M90: -0.2992447317 | N90: -0.2761708498 | O90: -0.2521669269 | P90: -0.2273654193 | Q90: -0.2018878311 | R90: -0.1758433729 | S90: -0.1500192881 | T90: -0.1269386858 | U90: -0.09846062213 | V90: -0.06543154269 | W90: -0.04672578722 | X90: -0.03271696344 | Y90: -0.01763145812 | Z90: 0.01022805739 | AA90: 0.03789587319 | AB90: 0.06515666842 | AC90: 0.09181515872 | AD90: 0.0931340307 | AE90: 0.1212192252 | AF90: 0.1513779163 | AG90: 0.1756552905 | AH90: 0.2002550066 | AI90: 0.223907128 | AJ90: 0.2457235605 | AK90: 0.2631671429 | AL90: 0.27382797 | AM90: 0.2818414569 | AN90: 0.2855373919 | AO90: 0.2822041214 | AP90: 0.2638866901 | AQ90: 0.2056567073 | AR90: 0.1158998087 | AS90: 0.08621865511 | AT90: 0.08371365815
A91: 0.6531124115 | D91: -0.382854104 | E91: -0.3843828142 | F91: -0.3801038563 | G91: -0.3722213507 | H91: -0.3628149927 | I91: -0.3444514275 | J91: -0.3259555399 | K91: -0.3096626699 | L91: -0.2914514542 | M91: -0.2716974318 | N91: -0.2508116961 | O91: -0.2289729714 | P91: -0.2063102275 | Q91: -0.1829446852 | R91: -0.1589818448 | S91: -0.1349999309 | T91: -0.1143461168 | U91: -0.08819369227 | V91: -0.05907748267 | W91: -0.04281296954 | X91: -0.02708637342 | Y91: -0.01263237745 | Z91: 0.01353756338 | AA91: 0.03945406526 | AB91: 0.06498889625 | AC91: 0.08995804191 | AD91: 0.09119473398 | AE91: 0.1177668646 | AF91: 0.1464015245 | AG91: 0.1690875441 | AH91: 0.1921632737 | AI91: 0.2143309116 | AJ91: 0.2346822619 | AK91: 0.2506163716 | AL91: 0.259655267 | AM91: 0.2660550773 | AN91: 0.2681372166 | AO91: 0.2632070482 | AP91: 0.24330917 | AQ91: 0.1835546196 | AR91: 0.09206023812 | AS91: 0.06075946987 | AT91: 0.05678882077
A92: 0.6799209118 | D92: -0.3356071413 | E92: -0.3395082057 | F92: -0.3375410736 | G92: -0.3319310844 | H92: -0.3247775137 | I92: -0.3085927963 | J92: -0.2922680974 | K92: -0.2781493962 | L92: -0.2620875537 | M92: -0.2444614619 | N92: -0.2256827354 | O92: -0.2059317976 | P92: -0.1853295714 | Q92: -0.1640024036 | R92: -0.1420502514 | S92: -0.1198500916 | T92: -0.1015464291 | U92: -0.07750734687 | V92: -0.05176822096 | W92: -0.0247640498 | X92: -0.02211376652 | Y92: -0.007407344878 | Z92: 0.01725595258 | AA92: 0.04147524014 | AB92: 0.0653193891 | AC92: 0.08862497658 | AD92: 0.08978062123 | AE92: 0.1148700118 | AF92: 0.1420109272 | AG92: 0.1631032825 | AH92: 0.1846521497 | AI92: 0.2053256929 | AJ92: 0.2241922021 | AK92: 0.2385767549 | AL92: 0.2459248155 | AM92: 0.2506358922 | AN92: 0.2510237098 | AO92: 0.2444048077 | AP92: 0.2228260189 | AQ92: 0.1614112854 | AR92: 0.06797628105 | AS92: 0.03492592275 | AT92: 0.02940334007
A93: 0.7067388892 | D93: -0.289165467 | E93: -0.29531461 | F93: -0.2955735922 | G93: -0.292165786 | H93: -0.2872059643 | I93: -0.2731119394 | J93: -0.2588788569 | K93: -0.2468713224 | L93: -0.2328932285 | M93: -0.2173286676 | N93: -0.2005908638 | O93: -0.1828636974 | P93: -0.164260745 | Q93: -0.1449119598 | R93: -0.1249135807 | S93: -0.1044403985 | T93: -0.08844195306 | U93: -0.06639665365 | V93: -0.04325333983 | W93: -0.01541681122 | X93: -0.01584996097 | Y93: -0.002234685468 | Z93: 0.02140714414 | AA93: 0.04398751631 | AB93: 0.06616874784 | AC93: 0.08782718331 | AD93: 0.0889024511 | AE93: 0.1125323698 | AF93: 0.1382033676 | AG93: 0.1576878279 | AH93: 0.1776966155 | AI93: 0.1968562901 | AJ93: 0.2142075151 | AK93: 0.2269891351 | AL93: 0.2325602621 | AM93: 0.2354910821 | AN93: 0.2340897769 | AO93: 0.2256737351 | AP93: 0.2022995204 | AQ93: 0.1390766799 | AR93: 0.04348322377 | AS93: 0.008536092937 | AT93: 0.001362748095
A94: 0.7335612774 | D94: -0.2433067709 | E94: -0.2515240014 | F94: -0.2539043128 | G94: -0.2526271939 | H94: -0.2498105913 | I94: -0.2377280295 | J94: -0.2255192548 | K94: -0.2155753374 | L94: -0.2036308348 | M94: -0.1900766045 | N94: -0.175329715 | O94: -0.1595750004 | P94: -0.1429258883 | Q94: -0.1255097687 | R94: -0.1074222252 | S94: -0.08863271028 | T94: -0.07492034137 | U94: -0.05479745567 | V94: -0.03384852782 | W94: -0.009564842097 | X94: 0.00350505393 | Y94: 0.001688336954 | Z94: 0.02600649558 | AA94: 0.04702889174 | AB94: 0.06756908447 | AC94: 0.08758711815 | AD94: 0.08858217299 | AE94: 0.1107688993 | AF94: 0.1349876225 | AG94: 0.1528357416 | AH94: 0.1712791026 | AI94: 0.1888930649 | AJ94: 0.2046856731 | AK94: 0.2157945335 | AL94: 0.2194807231 | AM94: 0.220519051 | AN94: 0.2172112912 | AO94: 0.2068733424 | AP94: 0.1815719604 | AQ94: 0.1163776964 | AR94: 0.01838286594 | AS94: -0.01862426475 | AT94: -0.02756322734
A95: 0.7603830099 | D95: -0.1978688985 | E95: -0.207874313 | F95: -0.2122252434 | G95: -0.2129897326 | H95: -0.2122646868 | I95: -0.2021162361 | J95: -0.1918718666 | K95: -0.1839572042 | L95: -0.1740099341 | M95: -0.1624287516 | N95: -0.1496397257 | O95: -0.135819748 | P95: -0.1210919395 | Q95: -0.1055772826 | R95: -0.08937180787 | S95: -0.07222500443 | T95: -0.06081189215 | U95: -0.04256960005 | V95: -0.02362812683 | W95: -0.002765416633 | X95: 0.009492099285 | Y95: 0.01491743233 | Z95: 0.03106086329 | AA95: 0.05067469925 | AB95: 0.06959401816 | AC95: 0.08796868473 | AD95: 0.08888315409 | AE95: 0.1096359119 | AF95: 0.1324138492 | AG95: 0.1485792994 | AH95: 0.1654168516 | AI95: 0.1814382076 | AJ95: 0.19561252 | AK95: 0.2049575746 | AL95: 0.2066227198 | AM95: 0.2056298703 | AN95: 0.2002693564 | AO95: 0.1878650188 | AP95: 0.1604844332 | AQ95: 0.09313843399 | AR95: -0.007522332016 | AS95: -0.04677949473 | AT95: -0.05761866644
A96: 0.787198782 | D96: -0.1528092772 | E96: -0.1641678065 | F96: -0.1702559292 | G96: -0.1729325205 | H96: -0.1742331535 | I96: -0.1659347266 | J96: -0.1575975567 | K96: -0.1516895592 | L96: -0.1437167525 | M96: -0.1340850741 | N96: -0.1232352555 | O96: -0.1113309115 | P96: -0.09850649536 | Q96: -0.08487790078 | R96: -0.07054129988 | S96: -0.05501267686 | T96: -0.04593982548 | U96: -0.02955996431 | V96: -0.01254223753 | W96: 0.005682045594 | X96: 0.01579954289 | Y96: 0.02871777304 | Z96: 0.03634800017 | AA96: 0.05499028414 | AB96: 0.07231633365 | AC96: 0.08903507143 | AD96: 0.08986800909 | AE96: 0.1091893762 | AF96: 0.1305327117 | AG96: 0.1449457109 | AH96: 0.1601180732 | AI96: 0.1744809747 | AJ96: 0.1869564503 | AK96: 0.1944188327 | AL96: 0.1938893199 | AM96: 0.1906912774 | AN96: 0.1830992699 | AO96: 0.1684531569 | AP96: 0.138814494 | AQ96: 0.06911285222 | AR96: -0.03451646864 | AS96: -0.0762437433 | AT96: -0.0891437307
A97: 0.8140023947 | D97: -0.108222194 | E97: -0.1202686876 | F97: -0.1277170777 | G97: -0.1320915371 | H97: -0.1353072524 | I97: -0.1287468523 | J97: -0.1222474799 | K97: -0.1183264479 | L97: -0.1123130992 | M97: -0.1046189889 | N97: -0.09569802135 | O97: -0.08570950478 | P97: -0.07478638738 | Q97: -0.0630447939 | R97: -0.05058054253 | S97: -0.03663498536 | T97: -0.02999532595 | U97: -0.01548124384 | V97: -0.0003604093799 | W97: 0.01563006267 | X97: 0.02398734726 | Y97: 0.03543536738 | Z97: 0.04085854441 | AA97: 0.06009798124 | AB97: 0.07589666545 | AC97: 0.09094052762 | AD97: 0.0916903913 | AE97: 0.1095773429 | AF97: 0.1294880807 | AG97: 0.1420462579 | AH97: 0.1554685086 | AI97: 0.168081522 | AJ97: 0.1787494719 | AK97: 0.1841724068 | AL97: 0.1812240034 | AM97: 0.1756058335 | AN97: 0.1655572504 | AO97: 0.1484533697 | AP97: 0.1163458899 | AQ97: 0.04406040162 | AR97: -0.06287855655 | AS97: -0.1073354781 | AT97: -0.1224900931
A98: 0.8407846093 | D98: -0.06444027275 | E98: -0.07621351629 | F98: -0.08443073928 | G98: -0.0901446715 | H98: -0.09507618845 | I98: -0.09008352458 | J98: -0.08531876653 | K98: -0.08335556835 | L98: -0.07928721607 | M98: -0.07353258133 | N98: -0.0665384531 | O98: -0.0584788397 | P98: -0.04947280884 | Q98: -0.03963801265 | R98: -0.02906931192 | S98: -0.01667387784 | T98: -0.01261692587 | U98: 3.179221267e-06 | V98: 0.01321291551 | W98: 0.0271265097 | X98: 0.03415213898 | Y98: 0.04328708351 | Z98: 0.05381005257 | AA98: 0.06605715305 | AB98: 0.08050623536 | AC98: 0.09385897964 | AD98: 0.09452374279 | AE98: 0.1109713167 | AF98: 0.1294516176 | AG98: 0.1400042325 | AH98: 0.1515558511 | AI98: 0.1622924358 | AJ98: 0.171005249 | AK98: 0.1741784513 | AL98: 0.1685148776 | AM98: 0.1602088958 | AN98: 0.1474086344 | AO98: 0.1275770962 | AP98: 0.09274647385 | AQ98: 0.01761430129 | AR98: -0.09303279966 | AS98: -0.1405346245 | AT98: -0.1581834257
A99: 0.867526114 | D99: -0.02206793986 | E99: -0.03226867691 | F99: -0.04036502913 | G99: -0.04682604223 | H99: -0.05310548097 | I99: -0.04939261079 | J99: -0.04617715254 | K99: -0.04609809816 | L99: -0.04393182695 | M99: -0.04011350125 | N99: -0.03505032882 | O99: -0.02893899567 | P99: -0.02188088186 | Q99: -0.01399123389 | R99: -0.00536252372 | S99: 0.005564901046 | T99: 0.006780561991 | U99: 0.01744967699 | V99: 0.02869701572 | W99: 0.04056047276 | X99: 0.04644872993 | Y99: 0.05378412828 | Z99: 0.07127410918 | AA99: 0.07260935754 | AB99: 0.08641142398 | AC99: 0.09809756279 | AD99: 0.09867545217 | AE99: 0.1136890501 | AF99: 0.1307525337 | AG99: 0.1390718669 | AH99: 0.1485799402 | AI99: 0.1572626531 | AJ99: 0.1638164818 | AK99: 0.1644509137 | AL99: 0.155669719 | AM99: 0.1443030685 | AN99: 0.1283900291 | AO99: 0.1054891795 | AP99: 0.06762564182 | AQ99: -0.01065477729 | AR99: -0.1254786402 | AS99: -0.1764135957 | AT99: -0.1968590468
A100: 0.8941727877 | D100: 0.01794102043 | E100: 0.01090347301 | F100: 0.004161866847 | G100: -0.002127879532 | H100: -0.009112328291 | I100: -0.006186559796 | J100: -0.004173478112 | K100: -0.005794924218 | L100: -0.005416783504 | M100: -0.003472208744 | N100: -0.0003371788771 | O100: 0.003810777562 | P100: 0.008883141913 | Q100: 0.01477369759 | R100: 0.02139604464 | S100: 0.03101507016 | T100: 0.02897432446 | U100: 0.03759618476 | V100: 0.04678507149 | W100: 0.0565367192 | X100: 0.06134212762 | Y100: 0.06720371544 | Z100: 0.08146823198 | AA100: 0.07808509469 | AB100: 0.09382480383 | AC100: 0.1040216982 | AD100: 0.1045134813 | AE100: 0.1181469485 | AF100: 0.1338545978 | AG100: 0.1395770162 | AH100: 0.146786198 | AI100: 0.1531604379 | AJ100: 0.157266289 | AK100: 0.1549511105 | AL100: 0.1424864084 | AM100: 0.1275486499 | AN100: 0.1080484688 | AO100: 0.08163381368 | AP100: 0.0403501913 | AQ100: -0.04143307358 | AR100: -0.1610086709 | AS100: -0.2158707231 | AT100: -0.2395062298
A101: 0.920558095 | D101: 0.05429396033 | E101: 0.05212786794 | F101: 0.04827446118 | G101: 0.04345778748 | H101: 0.0368110463 | I101: 0.03976577893 | J101: 0.04122388735 | K101: 0.03833844885 | L101: 0.03718861192 | M101: 0.03749117255 | N101: 0.03880536929 | O101: 0.04103462026 | P101: 0.0441169329 | Q101: 0.04796693474 | R101: 0.05251269415 | S101: 0.0613181591 | T101: 0.05523889884 | U101: 0.06167086586 | V101: 0.06865152717 | W101: 0.07615201175 | X101: 0.07984742522 | Y101: 0.08432774991 | Z101: 0.09464209527 | AA101: 0.1064385697 | AB101: 0.1025928706 | AC101: 0.1121605784 | AD101: 0.1125818044 | AE101: 0.1250778735 | AF101: 0.1396441758 | AG101: 0.1421389878 | AH101: 0.146656096 | AI101: 0.1503427029 | AJ101: 0.151574403 | AK101: 0.1456971914 | AL101: 0.1287298203 | AM101: 0.1095084101 | AN101: 0.08575547487 | AO101: 0.05523295701 | AP101: 0.01003643312 | AQ101: -0.07566850632 | AR101: -0.2007135004 | AS101: -0.2601556182 | AT101: -0.2875117958
A102: 0.9461776018 | D102: 0.08533257246 | E102: 0.08949042857 | F102: 0.09009922296 | G102: 0.0883243084 | H102: 0.08348740637 | I102: 0.08769525588 | J102: 0.0896878317 | K102: 0.08645896614 | L102: 0.08447829634 | M102: 0.08363774419 | N102: 0.08352134377 | O102: 0.08409166336 | P102: 0.08534176648 | Q102: 0.08722624928 | R102: 0.0897032842 | S102: 0.09907007217 | T102: 0.08750721812 | U102: 0.09157782048 | V102: 0.09615390748 | W102: 0.1011949107 | X102: 0.1036966592 | Y102: 0.1067538708 | Z102: 0.1135538816 | AA102: 0.1232375652 | AB102: 0.1107085049 | AC102: 0.1227448359 | AD102: 0.1231579483 | AE102: 0.1354321837 | AF102: 0.1496970206 | AG102: 0.1478720158 | AH102: 0.1490997821 | AI102: 0.1495505869 | AJ102: 0.1472976357 | AK102: 0.1369539201 | AL102: 0.1143606752 | AM102: 0.08986596763 | AN102: 0.06098905578 | AO102: 0.02561695874 | AP102: -0.02404598333 | AQ102: -0.1140448973 | AR102: -0.2453237474 | AS102: -0.3101384342 | AT102: -0.3418852091
A103: 0.9697887897 | D103: 0.1092725545 | E103: 0.1203631461 | F103: 0.126462087 | G103: 0.1290553063 | H103: 0.127553165 | I103: 0.1343642622 | J103: 0.1383668035 | K103: 0.1361449957 | L103: 0.1347064972 | M103: 0.1338222623 | N103: 0.1332083046 | O103: 0.1328756064 | P103: 0.1328867674 | Q103: 0.13325122 | R103: 0.1339734197 | S103: 0.1497706622 | T103: 0.1278283596 | U103: 0.129452318 | V103: 0.131456092 | W103: 0.1338031888 | X103: 0.1349905729 | Y103: 0.1364957988 | Z103: 0.1398931444 | AA103: 0.1452516615 | AB103: 0.1509579718 | AC103: 0.1337568164 | AD103: 0.1343868375 | AE103: 0.1489145309 | AF103: 0.1648712456 | AG103: 0.157809943 | AH103: 0.1548698545 | AI103: 0.1512170285 | AJ103: 0.1444699913 | AK103: 0.1280928403 | AL103: 0.09783125669 | AM103: 0.06664505601 | AN103: 0.03130045161 | AO103: -0.01004975662 | AP103: -0.06501057744 | AQ103: -0.1599118114 | AR103: -0.2986980379 | AS103: -0.3701615334 | AT103: -0.4073762
A104: 0.9895313978 | D104: 0.1252713799 | E104: 0.1426428854 | F104: 0.1541576385 | G104: 0.1615480334 | H104: 0.1643225104 | I104: 0.174748674 | J104: 0.1819510162 | K104: 0.1823301613 | L104: 0.1830581427 | M104: 0.1838466972 | N104: 0.1844082028 | O104: 0.1847587973 | P104: 0.1849984527 | Q104: 0.1851684302 | R104: 0.1853058636 | S104: 0.2195715308 | T104: 0.1806000471 | U104: 0.1806481332 | V104: 0.1807717532 | W104: 0.1809674054 | X104: 0.1810782105 | Y104: 0.1812464744 | Z104: 0.1817786843 | AA104: 0.1831897795 | AB104: 0.1861556321 | AC104: 0.1631096154 | AD104: 0.1605919302 | AE104: 0.1596161723 | AF104: 0.1759462208 | AG104: 0.1732875258 | AH104: 0.1678362787 | AI104: 0.1604127139 | AJ104: 0.1489568353 | AK104: 0.1254645139 | AL104: 0.08645012975 | AM104: 0.04811115563 | AN104: 0.005928880535 | AO104: -0.04142189771 | AP104: -0.1010482684 | AQ104: -0.1991433352 | AR104: -0.3438438475 | AS104: -0.4216523767 | AT104: -0.4644008577
A105: 1 | D105: 0.1320978999 | E105: 0.1527232975 | F105: 0.1671590805 | G105: 0.1772644371 | H105: 0.1826021522 | I105: 0.1953292936 | J105: 0.2047239691 | K105: 0.2069994807 | L105: 0.2095019668 | M105: 0.211865887 | N105: 0.2137584835 | O105: 0.2151642442 | P105: 0.2161766142 | Q105: 0.2168276161 | R105: 0.2171470672 | S105: 0.4088020921 | T105: 0.2171247005 | U105: 0.216782406 | V105: 0.2161080539 | W105: 0.215071708 | X105: 0.214487493 | Y105: 0.2136411816 | Z105: 0.2117232233 | AA105: 0.2093336731 | AB105: 0.2068062872 | AC105: 0.2045100182 | AD105: 0.2043599784 | AE105: 0.1951054484 | AF105: 0.1823667288 | AG105: 0.177055344 | AH105: 0.1669158936 | AI105: 0.1524796188 | AJ105: 0.1319029182 | AK105: 0.09368094802 | AL105: 0.03535860032 | AM105: -0.01793194935 | AN105: -0.07480990142 | AO105: -0.1350778043 | AP105: -0.2048867196 | AQ105: -0.311319828 | AR105: -0.471708566 | AS105: -0.5643370748 | AT105: -0.6193514466

Sheet BEM
C1: alpha | D1: =TRANSPOSE(plot!R15:R19) -> 5.504327229e-14 | E1: 4.465854984 | F1: 9.05300991 | G1: 19 | H1: 23
C2: cl | D2: -3.264836757e-14 | E2: 0.5346726576 | F2: 1.07995524 | G2: 2.230014438 | H2: 2.673242577
C3: cd | D3: 0 | E3: 0 | F3: 0 | G3: 0 | H3: 0
C4: cm | D4: 1.618534791e-14 | E4: -0.006854043785 | F4: -0.01371965435 | G4: -0.02717923725 | H4: -0.03175626198
A5: x | B5: y | C5: z | D5: Cp | E5: Cp | F5: Cp | G5: Cp | H5: Cp
A6: =IMREAL(C6) -> 0.9947657 | B6: =IMAGINARY(C6) -> 0.0019897 | C6: 0.9947657+0.0019897i | D6: 0.1515297793 | E6: 0.1502728282 | F6: 0.159698223 | G6: 0.2159160256 | H6: 0.25115969
A7: =IMREAL(C7) -> 0.9796601 | B7: =IMAGINARY(C7) -> 0.00407035 | C7: 0.9796601+0.00407035i | D7: 0.1592719961 | E7: 0.1479442743 | F7: 0.1470429706 | G7: 0.1821719893 | H7: 0.2098836377
A8: 0.9579832 | B8: 0.00699525 | C8: 0.9579832+0.00699525i | D8: 0.110999097 | E8: 0.09033891347 | F8: 0.08047118228 | G8: 0.09937064861 | H8: 0.1221395632
A9: 0.93336785 | B9: 0.01022785 | C9: 0.93336785+0.01022785i | D9: 0.07223655317 | E9: 0.04263126321 | F9: 0.0239990702 | G9: 0.02640777739 | H9: 0.04386433163
A10: 0.90736545 | B10: 0.0135434 | C10: 0.90736545+0.0135434i | D10: 0.04060869847 | E10: 0.002423892601 | F10: -0.02474867156 | G10: -0.03889339654 | H10: -0.02698501643
A11: 0.88084945 | B11: 0.0168228 | C11: 0.88084945+0.0168228i | D11: 0.01409548376 | E11: -0.03235410138 | F11: -0.06785974565 | G11: -0.09853292012 | H11: -0.09232719134
A12: 0.85415535 | B12: 0.02002395 | C12: 0.85415535+0.02002395i | D12: -0.008880113375 | E12: -0.06338399271 | F12: -0.1070972664 | G12: -0.1543545679 | H12: -0.1539993053
A13: 0.8273935 | B13: 0.0231349 | C13: 0.8273935+0.0231349i | D13: -0.02937352698 | E13: -0.09182493412 | F13: -0.1437116896 | G13: -0.2077433159 | H13: -0.2134130752
A14: 0.8006006 | B14: 0.0261527 | C14: 0.8006006+0.0261527i | D14: -0.04809138249 | E14: -0.1184710783 | F14: -0.1785784143 | G14: -0.2597111341 | H14: -0.2716172103
A15: 0.7737909 | B15: 0.02907655 | C15: 0.7737909+0.02907655i | D15: -0.06552999969 | E15: -0.1438925598 | F15: -0.2123388869 | G15: -0.3110299909 | H15: -0.3294240981
A16: 0.74697215 | B16: 0.0319056 | C16: 0.74697215+0.0319056i | D16: -0.08204556082 | E16: -0.1685098636 | F16: -0.2454780902 | G16: -0.3623116171 | H16: -0.3874887012
A17: 0.7201501 | B17: 0.0346383 | C17: 0.7201501+0.0346383i | D17: -0.09789903496 | E17: -0.1926424909 | F17: -0.2783763745 | G17: -0.4140634909 | H17: -0.446365077
A18: 0.6933299 | B18: 0.0372722 | C18: 0.6933299+0.0372722i | D18: -0.1132820819 | E18: -0.2165374698 | F18: -0.3113403182 | G18: -0.4667233758 | H18: -0.5065417702
A19: 0.66651665 | B19: 0.039804 | C19: 0.66651665+0.039804i | D19: -0.1283537708 | E19: -0.2404099133 | F19: -0.3446468893 | G19: -0.520709695 | H19: -0.5684939352
A20: 0.6397155 | B20: 0.0422294 | C20: 0.6397155+0.0422294i | D20: -0.1432388217 | E20: -0.2644420972 | F20: -0.3785435421 | G20: -0.5764242623 | H20: -0.632687235
A21: 0.6129319 | B21: 0.04454295 | C21: 0.6129319+0.04454295i | D21: -0.1580214431 | E21: -0.2887771882 | F21: -0.4132420583 | G21: -0.6342471353 | H21: -0.6995733766
A22: 0.58617145 | B22: 0.0467382 | C22: 0.58617145+0.0467382i | D22: -0.1727731288 | E22: -0.3135508517 | F22: -0.4489540759 | G22: -0.6945801905 | H22: -0.7696365757
A23: 0.55943995 | B23: 0.04880765 | C23: 0.55943995+0.04880765i | D23: -0.1875544712 | E23: -0.3388947217 | F23: -0.4858966253 | G23: -0.7578581538 | H23: -0.8434070727
A24: 0.53274375 | B24: 0.05074255 | C24: 0.53274375+0.05074255i | D24: -0.2024023556 | E24: -0.3649235343 | F24: -0.5242797766 | G24: -0.8245392823 | H24: -0.921453712
A25: 0.5060897 | B25: 0.05253285 | C25: 0.5060897+0.05253285i | D25: -0.2173288814 | E25: -0.3917354071 | F25: -0.564308908 | G25: -0.8951137509 | H25: -1.004395358
A26: 0.47948515 | B26: 0.0541673 | C26: 0.47948515+0.0541673i | D26: -0.2323439998 | E26: -0.4194399684 | F26: -0.6062191602 | G26: -0.9701534225 | H26: -1.092957119
A27: 0.45293835 | B27: 0.0556333 | C27: 0.45293835+0.0556333i | D27: -0.2474510392 | E27: -0.4481566361 | F27: -0.6502777038 | G27: -1.050326277 | H27: -1.187990768
A28: 0.42645855 | B28: 0.0569166 | C28: 0.42645855+0.0569166i | D28: -0.2626124911 | E28: -0.4779790142 | F28: -0.6967483122 | G28: -1.136366867 | H28: -1.290449564
A29: 0.4000563 | B29: 0.05800145 | C29: 0.4000563+0.05800145i | D29: -0.277793703 | E29: -0.5090305012 | F29: -0.745961026 | G29: -1.229181038 | H29: -1.401508097
A30: 0.37374395 | B30: 0.05887035 | C30: 0.37374395+0.05887035i | D30: -0.2929465145 | E30: -0.5414528588 | F30: -0.7983086924 | G30: -1.329868781 | H30: -1.522598659
A31: 0.34753605 | B31: 0.0595037 | C31: 0.34753605+0.0595037i | D31: -0.3079786575 | E31: -0.5753793432 | F31: -0.8542278032 | G31: -1.439734214 | H31: -1.65543713
A32: 0.3214502 | B32: 0.0598798 | C32: 0.3214502+0.0598798i | D32: -0.3227896316 | E32: -0.6109902296 | F32: -0.9142797688 | G32: -1.560438755 | H32: -1.802209751
A33: 0.2955082 | B33: 0.0599745 | C33: 0.2955082+0.0599745i | D33: -0.3372521096 | E33: -0.6485095441 | F33: -0.9791715854 | G33: -1.694099038 | H33: -1.965710273
A34: 0.2697376 | B34: 0.05976075 | C34: 0.2697376+0.05976075i | D34: -0.3511854874 | E34: -0.6881989869 | F34: -1.04978266 | G34: -1.843422371 | H34: -2.149531209
A35: 0.2441743 | B35: 0.05920835 | C35: 0.2441743+0.05920835i | D35: -0.3643669703 | E35: -0.7304089706 | F35: -1.12727536 | G35: -2.01200279 | H35: -2.358452388
A36: 0.21886715 | B36: 0.05828355 | C36: 0.21886715+0.05828355i | D36: -0.3764930504 | E36: -0.7755850882 | F36: -1.213175808 | G36: -2.204650953 | H36: -2.598899729
A37: 0.1938856 | B37: 0.0569491 | C37: 0.1938856+0.0569491i | D37: -0.3871595543 | E37: -0.8243208842 | F37: -1.309545832 | G37: -2.427963344 | H37: -2.879719452
A38: 0.16933465 | B38: 0.05516535 | C38: 0.16933465+0.05516535i | D38: -0.3958231508 | E38: -0.8774159104 | F38: -1.419209705 | G38: -2.691133985 | H38: -3.213297358
A39: 0.14538305 | B39: 0.05289425 | C39: 0.14538305+0.05289425i | D39: -0.4017095228 | E39: -0.9358803066 | F39: -1.545960576 | G39: -3.006928396 | H39: -3.616952685
A40: 0.12231235 | B40: 0.0501111 | C40: 0.12231235+0.0501111i | D40: -0.4037295418 | E40: -1.000892506 | F40: -1.69469336 | G40: -3.392631812 | H40: -4.114365211
A41: 0.10057885 | B41: 0.0468306 | C41: 0.10057885+0.0468306i | D41: -0.4004886301 | E41: -1.073626526 | F41: -1.871152447 | G41: -3.870003958 | H41: -4.735755589
A42: 0.0808201 | B42: 0.04314375 | C42: 0.0808201+0.04314375i | D42: -0.3904066979 | E42: -1.154679935 | F42: -2.080576192 | G42: -4.462068473 | H42: -5.513907599
A43: 0.06368365 | B43: 0.0392312 | C43: 0.06368365+0.0392312i | D43: -0.3719811093 | E43: -1.2432803 | F43: -2.32544672 | G43: -5.186600093 | H43: -6.47560457
A44: 0.0495081 | B44: 0.0353085 | C44: 0.0495081+0.0353085i | D44: -0.343716234 | E44: -1.336632295 | F44: -2.603813573 | G44: -6.050887465 | H44: -7.634517133
A45: 0.03815715 | B45: 0.031535 | C45: 0.03815715+0.031535i | D45: -0.3039349495 | E45: -1.43060631 | F45: -2.911026141 | G45: -7.056095681 | H45: -8.99670956
A46: 0.0291735 | B46: 0.0279723 | C46: 0.0291735+0.0279723i | D46: -0.2504495767 | E46: -1.520731109 | F46: -3.242835781 | G46: -8.207278363 | H46: -10.5741872
A47: 0.0220383 | B47: 0.02460805 | C47: 0.0220383+0.02460805i | D47: -0.1800660275 | E47: -1.60174827 | F47: -3.595696461 | G47: -9.517599047 | H47: -12.39150138
A48: 0.01632065 | B48: 0.02139735 | C48: 0.01632065+0.02139735i | D48: -0.08862778526 | E48: -1.666682084 | F48: -3.965235399 | G48: -11.00695677 | H48: -14.4849959
A49: 0.01170775 | B49: 0.0182857 | C49: 0.01170775+0.0182857i | D49: 0.02945958977 | E49: -1.703396201 | F49: -4.339382766 | G49: -12.68679356 | H49: -16.88409914
A50: 0.0079918 | B50: 0.01522125 | C50: 0.0079918+0.01522125i | D50: 0.1804916433 | E50: -1.69012434 | F50: -4.686332164 | G50: -14.5248944 | H50: -19.56469316
A51: 0.00505005 | B51: 0.0121673 | C51: 0.00505005+0.0121673i | D51: 0.3664560853 | E51: -1.596863406 | F51: -4.948329661 | G51: -16.4102031 | H51: -22.39806657
A52: 0.0028128 | B52: 0.0090939 | C52: 0.0028128+0.0090939i | D52: 0.5798180876 | E52: -1.38270081 | F52: -5.019644628 | G52: -18.05238155 | H52: -25.00651894
A53: 0.00125125 | B53: 0.00600015 | C53: 0.00125125+0.00600015i | D53: 0.7902383607 | E53: -1.023617804 | F53: -4.780329739 | G53: -18.99690828 | H53: -26.75914922
A54: 0.00035375 | B54: 0.00295475 | C54: 0.00035375+0.00295475i | D54: 0.9445232773 | E54: -0.5537443992 | F54: -4.184602879 | G54: -18.82652171 | H54: -27.0205796
A55: 6.88e-05 | B55: 0 | C55: 6.88e-05 | D55: 1 | E55: -0.05511239226 | F55: -3.308618086 | G55: -17.4458321 | H55: -25.56870821
A56: 0.00035375 | B56: -0.00295475 | C56: 0.00035375-0.00295475i | D56: 0.9445232773 | E56: 0.3964992517 | F56: -2.28251196 | G56: -15.05839614 | H56: -22.61789598
A57: 0.00125125 | B57: -0.00600015 | C57: 0.00125125-0.00600015i | D57: 0.7902383607 | E57: 0.7405876333 | F57: -1.248941617 | G57: -12.00107346 | H57: -18.58520522
A58: 0.0028128 | B58: -0.0090939 | C58: 0.0028128-0.0090939i | D58: 0.5798180876 | E58: 0.9369451666 | F58: -0.3764380736 | G58: -8.853985637 | H58: -14.25909922
A59: 0.00505005 | B59: -0.0121673 | C59: 0.00505005-0.0121673i | D59: 0.3664560853 | E59: 0.999404524 | F59: 0.2485876229 | G59: -6.114881933 | H59: -10.36899773
A60: 0.0079918 | B60: -0.01522125 | C60: 0.0079918-0.01522125i | D60: 0.1804916433 | E60: 0.9728154998 | F60: 0.6440414538 | G60: -3.965190384 | H60: -7.226718984
A61: 0.01170775 | B61: -0.0182857 | C61: 0.01170775-0.0182857i | D61: 0.02945958977 | E61: 0.8975120792 | F61: 0.8668230497 | G61: -2.373071403 | H61: -4.833530555
A62: 0.01632065 | B62: -0.02139735 | C62: 0.01632065-0.02139735i | D62: -0.08862778526 | E62: 0.7998215003 | F62: 0.9719342058 | G62: -1.22620715 | H62: -3.057153233
A63: 0.0220383 | B63: -0.02460805 | C63: 0.0220383-0.02460805i | D63: -0.1800660275 | E63: 0.694161077 | F63: 0.9999967764 | G63: -0.413329099 | H63: -1.754058585
A64: 0.0291735 | B64: -0.0279723 | C64: 0.0291735-0.0279723i | D64: -0.2504495767 | E64: 0.5878374232 | F64: 0.977859673 | G64: 0.1541045222 | H64: -0.8047347724
A65: 0.03815715 | B65: -0.031535 | C65: 0.03815715-0.031535i | D65: -0.3039349495 | E65: 0.4847266649 | F65: 0.9228720972 | G65: 0.5390249489 | H65: -0.1225591117
A66: 0.0495081 | B66: -0.0353085 | C66: 0.0495081-0.0353085i | D66: -0.343716234 | E66: 0.3873305875 | F66: 0.847021527 | G66: 0.7853682802 | H66: 0.3529744349
A67: 0.06368365 | B67: -0.0392312 | C67: 0.06368365-0.0392312i | D67: -0.3719811093 | E67: 0.2981563574 | F67: 0.7600278997 | G67: 0.9258605102 | H67: 0.6662036581
A68: 0.0808201 | B68: -0.04314375 | C68: 0.0808201-0.04314375i | D68: -0.3904066979 | E68: 0.2198388482 | F68: 0.6707809925 | G68: 0.9884908299 | H68: 0.8545341472
A69: 0.10057885 | B69: -0.0468306 | C69: 0.10057885-0.0468306i | D69: -0.4004886301 | E69: 0.1542444479 | F69: 0.586661637 | G69: 0.9990335847 | H69: 0.9532352508
A70: 0.12231235 | B70: -0.0501111 | C70: 0.12231235-0.0501111i | D70: -0.4037295418 | E70: 0.1015642171 | F70: 0.512080576 | G70: 0.9790841813 | H70: 0.9935543774
A71: =IMREAL(C71) -> 0.14538305 | B71: =IMAGINARY(C71) -> -0.05289425 | C71: 0.14538305-0.05289425i | D71: -0.4017095228 | E71: 0.06040313444 | F71: 0.4482876196 | G71: 0.9437647813 | H71: 0.999043207
A72: 0.16933465 | B72: -0.05516535 | C72: 0.16933465-0.05516535i | D72: -0.3958231508 | E72: 0.02871691338 | F72: 0.394585119 | G72: 0.9020731455 | H72: 0.9850112956
A73: 0.1938856 | B73: -0.0569491 | C73: 0.1938856-0.0569491i | D73: -0.3871595543 | E73: 0.004537126929 | F73: 0.3495689592 | G73: 0.8588158538 | H73: 0.9605583413
A74: 0.21886715 | B74: -0.05828355 | C74: 0.21886715-0.05828355i | D74: -0.3764930504 | E74: -0.01373861224 | F74: 0.3118028244 | G74: 0.8163986301 | H74: 0.9308991797
A75: 0.2441743 | B75: -0.05920835 | C75: 0.2441743-0.05920835i | D75: -0.3643669703 | E75: -0.02734367066 | F75: 0.2800417228 | G75: 0.7759540998 | H75: 0.8990006643
A76: 0.2697376 | B76: -0.05976075 | C76: 0.2697376-0.05976075i | D76: -0.3511854874 | E76: -0.03722949938 | F76: 0.2532548812 | G76: 0.7379521723 | H76: 0.8665507175
A77: 0.2955082 | B77: -0.0599745 | C77: 0.2955082-0.0599745i | D77: -0.3372521096 | E77: -0.04413152582 | F77: 0.2306043907 | G77: 0.702520252 | H77: 0.834503336
A78: 0.3214502 | B78: -0.0598798 | C78: 0.3214502-0.0598798i | D78: -0.3227896316 | E78: -0.04861732462 | F78: 0.2114150934 | G78: 0.6696121588 | H78: 0.803385115
A79: 0.34753605 | B79: -0.0595037 | C79: 0.34753605-0.0595037i | D79: -0.3079786575 | E79: -0.05114201615 | F79: 0.195131546 | G79: 0.6390926993 | H79: 0.7734673848
A80: 0.37374395 | B80: -0.05887035 | C80: 0.37374395-0.05887035i | D80: -0.2929465145 | E80: -0.05205840974 | F80: 0.1813061007 | G80: 0.6107911069 | H80: 0.7448712933
A81: 0.4000563 | B81: -0.05800145 | C81: 0.4000563-0.05800145i | D81: -0.277793703 | E81: -0.05165182483 | F81: 0.1695681922 | G81: 0.5845225142 | H81: 0.7176258805
A82: 0.42645855 | B82: -0.0569166 | C82: 0.42645855-0.0569166i | D82: -0.2626124911 | E82: -0.05016576337 | F82: 0.1596001609 | G82: 0.560097032 | H82: 0.6917014253
A83: 0.45293835 | B83: -0.0556333 | C83: 0.45293835-0.0556333i | D83: -0.2474510392 | E83: -0.04777985877 | F83: 0.1511515207 | G83: 0.5373401811 | H83: 0.6670411263
A84: 0.47948515 | B84: -0.0541673 | C84: 0.47948515-0.0541673i | D84: -0.2323439998 | E84: -0.04464038929 | F84: 0.1440125044 | G84: 0.5160884229 | H84: 0.643570104
A85: 0.5060897 | B85: -0.05253285 | C85: 0.5060897-0.05253285i | D85: -0.2173288814 | E85: -0.04087866883 | F85: 0.1379966693 | G85: 0.4961844128 | H85: 0.6211995237
A86: 0.53274375 | B86: -0.05074255 | C86: 0.53274375-0.05074255i | D86: -0.2024023556 | E86: -0.03657722854 | F86: 0.1329669473 | G86: 0.4774953158 | H86: 0.5998454846
A87: 0.55943995 | B87: -0.04880765 | C87: 0.55943995-0.04880765i | D87: -0.1875544712 | E87: -0.03180113615 | F87: 0.1288087925 | G87: 0.4599002503 | H87: 0.5794236913
A88: 0.58617145 | B88: -0.0467382 | C88: 0.58617145-0.0467382i | D88: -0.1727731288 | E88: -0.02660404332 | F88: 0.1254237881 | G88: 0.44328756 | H88: 0.5598498276
A89: 0.6129319 | B89: -0.04454295 | C89: 0.6129319-0.04454295i | D89: -0.1580214431 | E89: -0.02101024602 | F89: 0.1227437056 | G89: 0.4275641804 | H89: 0.5410485731
A90: 0.6397155 | B90: -0.0422294 | C90: 0.6397155-0.0422294i | D90: -0.1432388217 | E90: -0.01501651795 | F90: 0.1207285434 | G90: 0.4126556456 | H90: 0.5229552275
A91: 0.66651665 | B91: -0.039804 | C91: 0.66651665-0.039804i | D91: -0.1283537708 | E91: -0.008604305203 | F91: 0.1193555186 | G91: 0.3984994341 | H91: 0.5055114035
A92: 0.6933299 | B92: -0.0372722 | C92: 0.6933299-0.0372722i | D92: -0.1132820819 | E92: -0.001739174801 | F92: 0.1186187623 | G92: 0.385044428 | H92: 0.4886650219
A93: 0.7201501 | B93: -0.0346383 | C93: 0.7201501-0.0346383i | D93: -0.09789903496 | E93: 0.00565326641 | F93: 0.1185497812 | G93: 0.3722646394 | H93: 0.4723819015
A94: 0.74697215 | B94: -0.0319056 | C94: 0.74697215-0.0319056i | D94: -0.08204556082 | E94: 0.0136815359 | F94: 0.1192121724 | G94: 0.3601557947 | H94: 0.4566433171
A95: 0.7737909 | B95: -0.02907655 | C95: 0.7737909-0.02907655i | D95: -0.06552999969 | E95: 0.02248585247 | F95: 0.1206987153 | G95: 0.3487321119 | H95: 0.4414429422
A96: 0.8006006 | B96: -0.0261527 | C96: 0.8006006-0.0261527i | D96: -0.04809138249 | E96: 0.03227078463 | F96: 0.1231597013 | G96: 0.3380453124 | H96: 0.4268023272
A97: 0.8273935 | B97: -0.0231349 | C97: 0.8273935-0.0231349i | D97: -0.02937352698 | E97: 0.04332829462 | F97: 0.1268228505 | G97: 0.3281974783 | H97: 0.4127809605
A98: 0.85415535 | B98: -0.02002395 | C98: 0.85415535-0.02002395i | D98: -0.008880113375 | E98: 0.05607836348 | F98: 0.1320290489 | G98: 0.3193651548 | H98: 0.3994955363
A99: 0.88084945 | B99: -0.0168228 | C99: 0.88084945-0.0168228i | D99: 0.01409548376 | E99: 0.0711339136 | F99: 0.1392909292 | G99: 0.3118416558 | H99: 0.3871550848
A100: 0.90736545 | B100: -0.0135434 | C100: 0.90736545-0.0135434i | D100: 0.04060869847 | E100: 0.08943456473 | F100: 0.1494195106 | G100: 0.3061414144 | H100: 0.3761541793
A101: 0.93336785 | B101: -0.01022785 | C101: 0.93336785-0.01022785i | D101: 0.07223655317 | E101: 0.112431389 | F101: 0.1637171154 | G101: 0.3031953554 | H101: 0.367263357
A102: 0.9579832 | B102: -0.00699525 | C102: 0.9579832-0.00699525i | D102: 0.110999097 | E102: 0.1420607843 | F102: 0.1840022091 | G102: 0.3044701554 | H102: 0.3617781376
A103: 0.9796601 | B103: -0.00407035 | C103: 0.9796601-0.00407035i | D103: 0.1592719961 | E103: 0.1806344527 | F103: 0.2124784948 | G103: 0.311802634 | H103: 0.3613442792
A104: 0.9947657 | B104: -0.0019897 | C104: 0.9947657-0.0019897i | D104: 0.1515297793 | E104: 0.163051001 | F104: 0.1852761328 | G104: 0.2665869873 | H104: 0.3103637184

Sheet BEM_gamma
C1: alpha
C2: cl | D2: -3.264836757e-14 | E2: 0.5346726576 | F2: 1.07995524 | G2: 2.230014438 | H2: 2.673242577
C3: cd | D3: 1.618534791e-14 | E3: -0.006854043785 | F3: -0.01371965435 | G3: -0.02717923725 | H3: -0.03175626198
C4: cm | D4: -0.0489595056 | E4: -0.05054211107 | F4: -0.05210902029 | G4: -0.05365832422 | H4: -0.05518813528
A5: x | B5: y | C5: z | D5: gamma | E5: gamma | F5: gamma | G5: gamma | H5: gamma
A6: =IMREAL(C6) -> 1 | B6: =IMAGINARY(C6) -> 0.00126 | C6: 1+0.00126i | D6: -1.017107341 | E6: -1.014019316 | F6: -1.004437423 | G6: -0.9616938844 | H6: -0.936252244
A7: =IMREAL(C7) -> 0.9895314 | B7: =IMAGINARY(C7) -> 0.0027194 | C7: 0.9895314+0.0027194i | D7: -0.9107987304 | E7: -0.9144222687 | F7: -0.9123634599 | G7: -0.8878899034 | H7: -0.8704540427
A8: 0.9697888 | B8: 0.0054213 | C8: 0.9697888+0.0054213i | D8: -0.9366300561 | E8: -0.9452277241 | F8: -0.9480831274 | G8: -0.9334395907 | H8: -0.919585932
A9: 0.9461776 | B9: 0.0085692 | C9: 0.9461776+0.0085692i | D9: -0.957824889 | E9: -0.9709595345 | F9: -0.9783122224 | G9: -0.9727187145 | H9: -0.9621856131
A10: 0.9205581 | B10: 0.0118865 | C10: 0.9205581+0.0118865i | D10: -0.9750013768 | E10: -0.9923366467 | F10: -1.003868678 | G10: -1.006741052 | H10: -0.9993373275
A11: 0.8941728 | B11: 0.0152003 | C11: 0.8941728+0.0152003i | D11: -0.9891043316 | E11: -1.010364022 | F11: -1.025812883 | G11: -1.036663431 | H11: -1.032227008
A12: 0.8675261 | B12: 0.0184453 | C12: 0.8675261+0.0184453i | D12: -1.001069026 | E12: -1.02605215 | F12: -1.045226191 | G12: -1.063696535 | H12: -1.062107265
A13: 0.8407846 | B13: 0.0216026 | C13: 0.8407846+0.0216026i | D13: -1.011556528 | E13: -1.040131041 | F13: -1.062904813 | G13: -1.088762069 | H13: -1.089942646
A14: 0.8140024 | B14: 0.0246672 | C14: 0.8140024+0.0246672i | D14: -1.020974955 | E14: -1.053061588 | F14: -1.079360932 | G14: -1.112471764 | H14: -1.116379873
A15: 0.7871988 | B15: 0.0276382 | C15: 0.7871988+0.0276382i | D15: -1.02963146 | E15: -1.065192465 | F15: -1.094983666 | G15: -1.135293546 | H15: -1.141914721
A16: 0.760383 | B16: 0.0305149 | C16: 0.760383+0.0305149i | D16: -1.037720815 | E16: -1.076750896 | F16: -1.110032133 | G16: -1.15754973 | H16: -1.166892285
A17: 0.7335613 | B17: 0.0332963 | C17: 0.7335613+0.0332963i | D17: -1.045406546 | E17: -1.087928507 | F17: -1.12472561 | G17: -1.17951451 | H17: -1.191606599
A18: 0.7067389 | B18: 0.0359803 | C18: 0.7067389+0.0359803i | D18: -1.052785664 | E18: -1.098846213 | F18: -1.139208798 | G18: -1.201380781 | H18: -1.216268383
A19: 0.6799209 | B19: 0.0385641 | C19: 0.6799209+0.0385641i | D19: -1.059949822 | E19: -1.109618641 | F19: -1.153619199 | G19: -1.22333243 | H19: -1.241078691
A20: 0.6531124 | B20: 0.0410439 | C20: 0.6531124+0.0410439i | D20: -1.066964479 | E20: -1.120333299 | F20: -1.16806641 | G20: -1.245524365 | H20: -1.26620941
A21: 0.6263186 | B21: 0.0434149 | C21: 0.6263186+0.0434149i | D21: -1.07388625 | E21: -1.131069286 | F21: -1.182652127 | G21: -1.268104855 | H21: -1.291826358
A22: 0.5995452 | B22: 0.045671 | C22: 0.5995452+0.045671i | D22: -1.08073778 | E22: -1.141871275 | F22: -1.197443363 | G22: -1.291187691 | H22: -1.318061245
A23: 0.5727977 | B23: 0.0478054 | C23: 0.5727977+0.0478054i | D23: -1.087564722 | E23: -1.152810161 | F23: -1.212536495 | G23: -1.31492217 | H23: -1.345083472
A24: 0.5460822 | B24: 0.0498099 | C24: 0.5460822+0.0498099i | D24: -1.094379593 | E24: -1.163924394 | F24: -1.227996362 | G24: -1.339428712 | H24: -1.373034877
A25: 0.5194053 | B25: 0.0516752 | C25: 0.5194053+0.0516752i | D25: -1.101204454 | E25: -1.175265745 | F25: -1.243904925 | G25: -1.36485268 | H25: -1.402085192
A26: 0.4927741 | B26: 0.0533905 | C26: 0.4927741+0.0533905i | D26: -1.108026999 | E26: -1.186853352 | F26: -1.260313495 | G26: -1.391313753 | H26: -1.432380686
A27: 0.4661962 | B27: 0.0549441 | C27: 0.4661962+0.0549441i | D27: -1.114869979 | E27: -1.198748864 | F27: -1.277323287 | G27: -1.418996376 | H27: -1.464137847
A28: 0.4396805 | B28: 0.0563225 | C28: 0.4396805+0.0563225i | D28: -1.121717059 | E28: -1.210978415 | F28: -1.295003889 | G28: -1.448062466 | H28: -1.4975545
A29: 0.4132366 | B29: 0.0575107 | C29: 0.4132366+0.0575107i | D29: -1.128549737 | E29: -1.223573632 | F29: -1.313438213 | G29: -1.478703888 | H29: -1.532864877
A30: 0.386876 | B30: 0.0584922 | C30: 0.386876+0.0584922i | D30: -1.135359801 | E30: -1.23658731 | F30: -1.332741384 | G30: -1.511167862 | H30: -1.570367435
A31: 0.3606119 | B31: 0.0592485 | C31: 0.3606119+0.0592485i | D31: -1.142119381 | E31: -1.250064058 | F31: -1.353032171 | G31: -1.545730727 | H31: -1.610399799
A32: 0.3344602 | B32: 0.0597589 | C32: 0.3344602+0.0597589i | D32: -1.148778793 | E32: -1.264041325 | F32: -1.37443728 | G32: -1.582709193 | H32: -1.653352712
A33: 0.3084402 | B33: 0.0600007 | C33: 0.3084402+0.0600007i | D33: -1.155310083 | E33: -1.278602626 | F33: -1.39715419 | G33: -1.622542552 | H33: -1.699759382
A34: 0.2825762 | B34: 0.0599483 | C34: 0.2825762+0.0599483i | D34: -1.161644397 | E34: -1.293816263 | F34: -1.421391645 | G34: -1.665738298 | H34: -1.750243629
A35: 0.256899 | B35: 0.0595732 | C35: 0.256899+0.0595732i | D35: -1.167710196 | E35: -1.309787992 | F35: -1.447436832 | G35: -1.712969188 | H35: -1.805628192
A36: 0.2314496 | B36: 0.0588435 | C36: 0.2314496+0.0588435i | D36: -1.173411734 | E36: -1.326652579 | F36: -1.475660425 | G36: -1.765107289 | H36: -1.8669802
A37: 0.2062847 | B37: 0.0577236 | C37: 0.2062847+0.0577236i | D37: -1.178615314 | E37: -1.344580337 | F37: -1.50654391 | G37: -1.823295615 | H37: -1.935700088
A38: 0.1814865 | B38: 0.0561746 | C38: 0.1814865+0.0561746i | D38: -1.183151339 | E38: -1.363811093 | F38: -1.54074612 | G38: -1.889083538 | H38: -2.013683674
A39: 0.1571828 | B39: 0.0541561 | C39: 0.1571828+0.0541561i | D39: -1.186783024 | E39: -1.38466016 | F39: -1.579147437 | G39: -1.964552588 | H39: -2.103479845
A40: 0.1335833 | B40: 0.0516324 | C40: 0.1335833+0.0516324i | D40: -1.189152815 | E40: -1.407499141 | F40: -1.622866034 | G40: -2.052408895 | H40: -2.208412975
A41: 0.1110414 | B41: 0.0485898 | C41: 0.1110414+0.0485898i | D41: -1.189737928 | E41: -1.432705172 | F41: -1.673200976 | G41: -2.155914264 | H41: -2.332509738
A42: 0.0901163 | B42: 0.0450714 | C42: 0.0901163+0.0450714i | D42: -1.187835956 | E42: -1.460503712 | F42: -1.731329312 | G42: -2.278275214 | H42: -2.479768942
A43: 0.0715239 | B43: 0.0412161 | C43: 0.0715239+0.0412161i | D43: -1.1825765 | E43: -1.490600433 | F43: -1.797550258 | G43: -2.421066379 | H43: -2.652266876
A44: 0.0558434 | B44: 0.0372463 | C44: 0.0558434+0.0372463i | D44: -1.173197272 | E44: -1.522138183 | F44: -1.870914647 | G44: -2.583160685 | H44: -2.84881421
A45: 0.0431728 | B45: 0.0333707 | C45: 0.0431728+0.0333707i | D45: -1.158947947 | E45: -1.553778052 | F45: -1.949487493 | G45: -2.761378172 | H45: -3.065755276
A46: 0.0331415 | B46: 0.0296993 | C46: 0.0331415+0.0296993i | D46: -1.139072917 | E46: -1.584409775 | F46: -2.031801283 | G46: -2.953511926 | H46: -3.300603339
A47: 0.0252055 | B47: 0.0262453 | C47: 0.0252055+0.0262453i | D47: -1.112174254 | E47: -1.61281138 | F47: -2.116822491 | G47: -3.158958127 | H47: -3.552933246
A48: 0.0188711 | B48: 0.0229708 | C48: 0.0188711+0.0229708i | D48: -1.076018034 | E48: -1.637448047 | F48: -2.203744055 | G48: -3.378499295 | H48: -3.824162779
A49: 0.0137702 | B49: 0.0198239 | C49: 0.0137702+0.0198239i | D49: -1.027379013 | E49: -1.656137434 | F49: -2.291468597 | G49: -3.613405528 | H49: -4.116507294
A50: 0.0096453 | B50: 0.0167475 | C50: 0.0096453+0.0167475i | D50: -0.9609144094 | E50: -1.664344991 | F50: -2.376320371 | G50: -3.861936672 | H50: -4.429023089
A51: 0.0063383 | B51: 0.013695 | C51: 0.0063383+0.013695i | D51: -0.8687189873 | E51: -1.653404063 | F51: -2.448905452 | G51: -4.113334189 | H51: -4.750492071
A52: 0.0037618 | B52: 0.0106396 | C52: 0.0037618+0.0106396i | D52: -0.7425766577 | E52: -1.612663697 | F52: -2.496139355 | G52: -4.349544685 | H52: -5.061007815
A53: 0.0018638 | B53: 0.0075482 | C53: 0.0018638+0.0075482i | D53: -0.5720263514 | E53: -1.522790503 | F53: -2.489698113 | G53: -4.52344739 | H53: -5.306259652
A54: 0.0006387 | B54: 0.0044521 | C54: 0.0006387+0.0044521i | D54: -0.3581276189 | E54: -1.37194603 | F54: -2.404570513 | G54: -4.58212859 | H54: -5.422516088
A55: 6.88e-05 | B55: 0.0014574 | C55: 0.0000688+0.0014574i | D55: -0.1204633843 | E55: -1.164931244 | F55: -2.230344564 | G55: -4.482546755 | H55: -5.353924907
A56: 6.88e-05 | B56: -0.0014574 | C56: 0.0000688-0.0014574i | D56: 0.1204633843 | E56: -0.9247359503 | F56: -1.992418975 | G56: -4.25474602 | H56: -5.132150647
A57: 0.0006387 | B57: -0.0044521 | C57: 0.0006387-0.0044521i | D57: 0.3581276189 | E57: -0.6578654047 | F57: -1.697237534 | G57: -3.904895958 | H57: -4.763199665
A58: 0.0018638 | B58: -0.0075482 | C58: 0.0018638-0.0075482i | D58: 0.5720263514 | E58: -0.3822112432 | F58: -1.359896663 | G58: -3.441724308 | H58: -4.253153587
A59: 0.0037618 | B59: -0.0106396 | C59: 0.0037618-0.0106396i | D59: 0.7425766577 | E59: -0.1320194348 | F59: -1.02948632 | G59: -2.945304638 | H59: -3.69391698
A60: 0.0063383 | B60: -0.013695 | C60: 0.0063383-0.013695i | D60: 0.8687189873 | E60: 0.07875889991 | F60: -0.7331104208 | G60: -2.47055431 | H60: -3.151171982
A61: 0.0096453 | B61: -0.0167475 | C61: 0.0096453-0.0167475i | D61: 0.9609144094 | E61: 0.2516489901 | F61: -0.4784314183 | G61: -2.044811825 | H61: -2.659970334
A62: 0.0137702 | B62: -0.0198239 | C62: 0.0137702-0.0198239i | D62: 1.027379013 | E62: 0.3923821705 | F62: -0.2623063108 | G62: -1.670593646 | H62: -2.225092558
A63: 0.0188711 | B63: -0.0229708 | C63: 0.0188711-0.0229708i | D63: 1.076018034 | E63: 0.5080542552 | F63: -0.07851550099 | G63: -1.343709217 | H63: -1.843203133
A64: 0.0252055 | B64: -0.0262453 | C64: 0.0252055-0.0262453i | D64: 1.112174254 | E64: 0.6047838146 | F64: 0.07981771911 | G64: -1.055795295 | H64: -1.505409649
A65: 0.0331415 | B65: -0.0296993 | C65: 0.0331415-0.0296993i | D65: 1.139072917 | E65: 0.6868194115 | F65: 0.2179661092 | G65: -0.7994827223 | H65: -1.203559043
A66: 0.0431728 | B66: -0.0333707 | C66: 0.0431728-0.0333707i | D66: 1.158947947 | E66: 0.7570805115 | F66: 0.3395348016 | G66: -0.5697645474 | H66: -0.9321208554
A67: 0.0558434 | B67: -0.0372463 | C67: 0.0558434-0.0372463i | D67: 1.173197272 | E67: 0.8171325052 | F67: 0.4462512948 | G67: -0.364601058 | H67: -0.6889466444
A68: 0.0715239 | B68: -0.0412161 | C68: 0.0715239-0.0412161i | D68: 1.1825765 | E68: 0.8673717588 | F68: 0.5381404689 | G68: -0.1847702839 | H68: -0.4751320607
A69: 0.0901163 | B69: -0.0450714 | C69: 0.0901163-0.0450714i | D69: 1.187835956 | E69: 0.9079554547 | F69: 0.6147492939 | G69: -0.03203329261 | H69: -0.2929514171
A70: 0.1110414 | B70: -0.0485898 | C70: 0.1110414-0.0485898i | D70: 1.189737928 | E70: 0.93954639 | F70: 0.676634189 | G70: 0.09392435808 | H70: -0.1421906641
A71: =IMREAL(C71) -> 0.1335833 | B71: =IMAGINARY(C71) -> -0.0516324 | C71: 0.1335833-0.0516324i | D71: 1.189152815 | E71: 0.9635857492 | F71: 0.7258134841 | G71: 0.1963232569 | H71: -0.01917109929
A72: 0.1571828 | B72: -0.0541561 | C72: 0.1571828-0.0541561i | D72: 1.186783024 | E72: 0.9816995363 | F72: 0.7648515373 | G72: 0.2796981996 | H72: 0.08139922157
A73: 0.1814865 | B73: -0.0561746 | C73: 0.1814865-0.0561746i | D73: 1.183151339 | E73: 0.9953072857 | F73: 0.7960799626 | G73: 0.3482995988 | H73: 0.1645094254
A74: 0.2062847 | B74: -0.0577236 | C74: 0.2062847-0.0577236i | D74: 1.178615314 | E74: 1.005493536 | F74: 0.8213231333 | G74: 0.4055097309 | H74: 0.2341421466
A75: 0.2314496 | B75: -0.0588435 | C75: 0.2314496-0.0588435i | D75: 1.173411734 | E75: 1.013045731 | F75: 0.8419290983 | G75: 0.4538578937 | H75: 0.2932821926
A76: 0.256899 | B76: -0.0595732 | C76: 0.256899-0.0595732i | D76: 1.167710196 | E76: 1.018541863 | F76: 0.8588916614 | G76: 0.4952141753 | H76: 0.3441376141
A77: 0.2825762 | B77: -0.0599483 | C77: 0.2825762-0.0599483i | D77: 1.161644397 | E77: 1.022418826 | F77: 0.8729563704 | G77: 0.5309744127 | H77: 0.3883549815
A78: 0.3084402 | B78: -0.0600007 | C78: 0.3084402-0.0600007i | D78: 1.155310083 | E78: 1.025002297 | F78: 0.884683007 | G78: 0.5621917353 | H78: 0.4271776948
A79: 0.3344602 | B79: -0.0597589 | C79: 0.3344602-0.0597589i | D79: 1.148778793 | E79: 1.026540679 | F79: 0.8945000569 | G79: 0.5896741836 | H79: 0.4615601969
A80: 0.3606119 | B80: -0.0592485 | C80: 0.3606119-0.0592485i | D80: 1.142119381 | E80: 1.027239558 | F80: 0.9027522512 | G80: 0.6140594529 | H80: 0.4922530666
A81: 0.386876 | B81: -0.0584922 | C81: 0.386876-0.0584922i | D81: 1.135359801 | E81: 1.027238192 | F81: 0.9096922853 | G81: 0.635839703 | H81: 0.5198409802
A82: 0.4132366 | B82: -0.0575107 | C82: 0.4132366-0.0575107i | D82: 1.128549737 | E82: 1.026673093 | F82: 0.9155449904 | G82: 0.6554255908 | H82: 0.5448061435
A83: 0.4396805 | B83: -0.0563225 | C83: 0.4396805-0.0563225i | D83: 1.121717059 | E83: 1.025644444 | F83: 0.9204841858 | G83: 0.6731461662 | H83: 0.5675374942
A84: 0.4661962 | B84: -0.0549441 | C84: 0.4661962-0.0549441i | D84: 1.114869979 | E84: 1.024221412 | F84: 0.9246412135 | G84: 0.689264174 | H84: 0.5883486068
A85: 0.4927741 | B85: -0.0533905 | C85: 0.4927741-0.0533905i | D85: 1.108026999 | E85: 1.022472516 | F85: 0.9281355291 | G85: 0.7040064675 | H85: 0.6075077752
A86: 0.5194053 | B86: -0.0516752 | C86: 0.5194053-0.0516752i | D86: 1.101204454 | E86: 1.02045646 | F86: 0.931068983 | G86: 0.7175658531 | H86: 0.6252428968
A87: 0.5460822 | B87: -0.0498099 | C87: 0.5460822-0.0498099i | D87: 1.094379593 | E87: 1.018189531 | F87: 0.9334978561 | G87: 0.7300837556 | H87: 0.6417285767
A88: 0.5727977 | B88: -0.0478054 | C88: 0.5727977-0.0478054i | D88: 1.087564722 | E88: 1.015715403 | F88: 0.9354977649 | G88: 0.7417031235 | H88: 0.6571337384
A89: 0.5995452 | B89: -0.045671 | C89: 0.5995452-0.045671i | D89: 1.08073778 | E89: 1.01304186 | F89: 0.9371070967 | G89: 0.7525276027 | H89: 0.6715874997
A90: 0.6263186 | B90: -0.0434149 | C90: 0.6263186-0.0434149i | D90: 1.07388625 | E90: 1.010182391 | F90: 0.9383659673 | G90: 0.7626539387 | H90: 0.6852086517
A91: 0.6531124 | B91: -0.0410439 | C91: 0.6531124-0.0410439i | D91: 1.066964479 | E91: 1.007116868 | F91: 0.9392805912 | G91: 0.772145105 | H91: 0.6980825533
A92: 0.6799209 | B92: -0.0385641 | C92: 0.6799209-0.0385641i | D92: 1.059949822 | E92: 1.003844804 | F92: 0.9398732469 | G92: 0.7810720608 | H92: 0.7102992191
A93: 0.7067389 | B93: -0.0359803 | C93: 0.7067389-0.0359803i | D93: 1.052785664 | E93: 1.000332419 | F93: 0.9401338167 | G93: 0.7894760215 | H93: 0.7219202433
A94: 0.7335613 | B94: -0.0332963 | C94: 0.7335613-0.0332963i | D94: 1.045406546 | E94: 0.9965366958 | F94: 0.9400426095 | G94: 0.7973881058 | H94: 0.7329969989
A95: 0.760383 | B95: -0.0305149 | C95: 0.760383-0.0305149i | D95: 1.037720815 | E95: 0.9923895151 | F95: 0.9395561055 | G95: 0.8048188836 | H95: 0.7435618088
A96: 0.7871988 | B96: -0.0276382 | C96: 0.7871988-0.0276382i | D96: 1.02963146 | E96: 0.9878183552 | F96: 0.9386273962 | G96: 0.8117777967 | H96: 0.7536467905
A97: 0.8140024 | B97: -0.0246672 | C97: 0.8140024-0.0246672i | D97: 1.020974955 | E97: 0.9826887867 | F97: 0.937152786 | G97: 0.8182298068 | H97: 0.7632449296
A98: 0.8407846 | B98: -0.0216026 | C98: 0.8407846-0.0216026i | D98: 1.011556528 | E98: 0.9768396691 | F98: 0.9350066976 | G98: 0.8241289048 | H98: 0.7723427406
A99: 0.8675261 | B99: -0.0184453 | C99: 0.8675261-0.0184453i | D99: 1.001069026 | E99: 0.9700072378 | F99: 0.9319715968 | G99: 0.8293621839 | H99: 0.7808705285
A100: 0.8941728 | B100: -0.0152003 | C100: 0.8941728-0.0152003i | D100: 0.9891043316 | E100: 0.9618386288 | F100: 0.9277536014 | G100: 0.8337696059 | H100: 0.7887236671
A101: 0.9205581 | B101: -0.0118865 | C101: 0.9205581-0.0118865i | D101: 0.9750013768 | E101: 0.9517457306 | F101: 0.9218432525 | G101: 0.837022774 | H101: 0.7956496715
A102: 0.9461776 | B102: -0.0085692 | C102: 0.9461776-0.0085692i | D102: 0.957824889 | E102: 0.9388741658 | F102: 0.913474661 | G102: 0.8385637349 | H102: 0.801179305
A103: 0.9697888 | B103: -0.0054213 | C103: 0.9697888-0.0054213i | D103: 0.9366300561 | E103: 0.9223450091 | F103: 0.9018421304 | G103: 0.8377626423 | H103: 0.8047590931
A104: 0.9895314 | B104: -0.0027194 | C104: 0.9895314-0.0027194i | D104: 0.9107987304 | E104: 0.9016446653 | F104: 0.8865426986 | G104: 0.8344643331 | H104: 0.8063352611
C105: 1-0.00126i | D105: 1.017107341 | E105: 1.014019316 | F105: 1.004437423 | G105: 0.9616938844 | H105: 0.936252244

Sheet Streamline
C1: alpha | D1: 23
A5: x | B5: y | C5: z | D5: x | E5: y
A6: =IMREAL(C6) -> 0.9408709613 | B6: =IMAGINARY(C6) -> -0.2918885103 | C6: 0.940870961311226-0.291888510251605i
A7: =IMREAL(C7) -> 0.9318047972 | B7: =IMAGINARY(C7) -> -0.2864547176 | C7: 0.931804797211292-0.286454717576773i
A8: 0.9146873545 | B8: -0.2762535571 | C8: 0.914687354527587-0.276253557135918i
A9: 0.8941831129 | B9: -0.2641302691 | C9: 0.894183112851122-0.264130269086749i
A10: 0.8718964111 | B10: -0.2510663422 | C10: 0.871896411130634-0.25106634219006i | D10: 0.1329167184 | E10: -0.008019688574
A11: 0.8489034192 | B11: -0.2377064152 | C11: 0.848903419234423-0.237706415162162i | D11: 0.1328891857 | E11: -0.008005507091
A12: 0.8256429251 | B12: -0.2243076818 | C12: 0.82564292506788-0.224307681751193i | D12: 0.1328617607 | E12: -0.007991393894
A13: 0.8022608999 | B13: -0.2109526353 | C13: 0.802260899921261-0.210952635304892i | D13: 0.1328344374 | E13: -0.00797734591
A14: 0.7788051895 | B14: -0.1976670169 | C14: 0.778805189451495-0.197667016901576i | D14: 0.1328072098 | E14: -0.007963360086
A15: 0.7552932077 | B15: -0.1844591961 | C15: 0.755293207744239-0.184459196106394i | D15: 0.1327800719 | E15: -0.007949433384
A16: 0.7317331499 | B16: -0.171333412 | C16: 0.731733149932354-0.171333411999125i | D16: 0.1327530178 | E16: -0.00793556278
A17: 0.7081304245 | B17: -0.1582930467 | C17: 0.708130424465289-0.158293046690731i | D17: 0.1327260415 | E17: -0.007921745262
A18: 0.6844889974 | B18: -0.145342065 | C18: 0.684488997432911-0.145342065043274i | D18: 0.132699137 | E18: -0.007907977828
A19: 0.6608124694 | B19: -0.1324850372 | C19: 0.660812469362814-0.132485037199099i | D19: 0.1326722984 | E19: -0.007894257484
A20: 0.6371040501 | B20: -0.1197274538 | C20: 0.637104050051462-0.119727453805403i | D20: 0.1326455196 | E20: -0.007880581237
A21: 0.6133666506 | B21: -0.1070757651 | C21: 0.613366650614676-0.107075765087351i | D21: 0.1326187946 | E21: -0.007866946101
A22: 0.5896031345 | B22: -0.09453781329 | C22: 0.589603134470237-0.0945378132919822i | D22: 0.1325921174 | E22: -0.007853349085
A23: 0.5658159074 | B23: -0.08212200687 | C23: 0.565815907423166-0.0821220068735065i | D23: 0.1325654819 | E23: -0.0078397872
A24: 0.5420073806 | B24: -0.06983827743 | C24: 0.542007380557814-0.0698382774316059i | D24: 0.132538882 | E24: -0.007826257448
A25: 0.5181799954 | B25: -0.05769776449 | C25: 0.51817999540672-0.0576977644868656i | D25: 0.1325123115 | E25: -0.007812756824
A26: 0.4943360677 | B26: -0.04571318368 | C26: 0.494336067658155-0.0457131836827151i | D26: 0.1324857643 | E26: -0.007799282314
A27: 0.4704780216 | B27: -0.03389827448 | C27: 0.470478021594802-0.0338982744825164i | D27: 0.132459234 | E27: -0.007785830888
A28: 0.4466087748 | B28: -0.02226894121 | C28: 0.446608774839623-0.0222689412088345i | D28: 0.1324327143 | E28: -0.007772399501
A29: 0.4227313033 | B29: -0.01084274245 | C29: 0.422731303272283-0.0108427424533048i | D29: 0.1324061989 | E29: -0.007758985089
A30: 0.3988497456 | B30: 0.000360640046 | C30: 0.398849745634976+0.000360640046013085i | D30: 0.1323796813 | E30: -0.007745584566
A31: 0.3749690241 | B31: 0.0113190193 | C31: 0.374969024065893+0.0113190192984343i | D31: 0.1323531548 | E31: -0.007732194818
A32: 0.3510956865 | B32: 0.02200712823 | C32: 0.351095686457841+0.0220071282285493i | D32: 0.1323266129 | E32: -0.007718812705
A33: 0.327238629 | B33: 0.03239653027 | C33: 0.327238628957878+0.032396530265405i | D33: 0.1323000488 | E33: -0.007705435054
A34: 0.3034102171 | B34: 0.04245416572 | C34: 0.303410217117051+0.0424541657183307i | D34: 0.1322734556 | E34: -0.007692058658
A35: 0.2796276666 | B35: 0.05214176568 | C35: 0.279627666647686+0.0521417656802454i | D35: 0.1322468263 | E35: -0.007678680267
A36: 0.2559162539 | B36: 0.06141394607 | C36: 0.255916253925774+0.0614139460700561i | D36: 0.1322201539 | E36: -0.007665296591
A37: 0.2323142615 | B37: 0.07021578246 | C37: 0.232314261548334+0.0702157824599944i | D37: 0.132193431 | E37: -0.007651904293
A38: 0.2088821556 | B38: 0.07847934911 | C38: 0.20888215557342+0.0784793491124992i | D38: 0.1321666503 | E38: -0.007638499983
A39: 0.185721791 | B39: 0.08611752219 | C39: 0.185721790983712+0.0861175221932702i | D39: 0.1321398041 | E39: -0.007625080218
A40: 0.1630122485 | B40: 0.09301550336 | C40: 0.163012248545693+0.0930155033613949i | D40: 0.1321128848 | E40: -0.007611641494
A41: 0.1410734817 | B41: 0.09902259732 | C41: 0.141073481658112+0.0990225973195729i | D41: 0.1320858844 | E41: -0.00759818024
A42: 0.1204370771 | B42: 0.103959981 | C42: 0.120437077146658+0.103959980979937i | D42: 0.1320587947 | E42: -0.007584692818
A43: 0.101816297 | B43: 0.1076757881 | C43: 0.101816296989664+0.107675788051745i | D43: 0.1320316075 | E43: -0.007571175514
A44: 0.0858311962 | B44: 0.1101484273 | C44: 0.085831196201226+0.110148427344786i | D44: 0.1320043141 | E44: -0.007557624534
A45: 0.07265352984 | B45: 0.1115317166 | C45: 0.072653529843498+0.111531716571382i | D45: 0.1319769058 | E45: -0.007544035997
A46: 0.06198513924 | B46: 0.1120717162 | C46: 0.061985139241925+0.112071716221631i | D46: 0.1319493733 | E46: -0.007530405927
A47: 0.05333042741 | B47: 0.1119931347 | C47: 0.053330427407125+0.111993134693497i | D47: 0.1319217075 | E47: -0.007516730253
A48: 0.04622013238 | B48: 0.1114539888 | C48: 0.046220132383178+0.11145398881117i | D48: 0.1318938985 | E48: -0.007503004795
A49: 0.04029513739 | B49: 0.1105503325 | C49: 0.040295137387959+0.110550332501151i | D49: 0.1318659365 | E49: -0.007489225259
A50: 0.03529610167 | B50: 0.1093302182 | C50: 0.035296101674269+0.109330218201895i | D50: 0.131837811 | E50: -0.00747538723
A51: 0.03105928535 | B51: 0.107812525 | C51: 0.031059285354188+0.107812524978646i | D51: 0.1318095115 | E51: -0.007461486164
A52: 0.02749376471 | B52: 0.1060067332 | C52: 0.027493764709282+0.10600673320196i | D52: 0.1317810266 | E52: -0.007447517378
A53: 0.02453874029 | B53: 0.1039026922 | C53: 0.024538740286817+0.10390269217987i | D53: 0.1317523451 | E53: -0.007433476039
A54: 0.02220128714 | B54: 0.1015314018 | C54: 0.022201287143937+0.101531401808608i | D54: 0.1317234548 | E54: -0.007419357157
A55: 0.02050656892 | B55: 0.09899744359 | C55: 0.020506568917468+0.0989974435940998i | D55: 0.1316943433 | E55: -0.007405155573
A56: 0.01936766582 | B56: 0.09631435605 | C56: 0.019367665824147+0.0963143560472566i | D56: 0.1316649976 | E56: -0.007390865947
A57: 0.01872213903 | B57: 0.09333504249 | C57: 0.018722139029643+0.0933350424924966i | D57: 0.1316354042 | E57: -0.007376482744
A58: 0.01864010688 | B58: 0.09000638271 | C58: 0.018640106878692+0.0900063827102102i | D58: 0.131605549 | E58: -0.007362000226
A59: 0.01917931888 | B59: 0.08641912632 | C59: 0.019179318879933+0.0864191263243747i | D59: 0.1315754171 | E59: -0.007347412429
A60: 0.02035715974 | B60: 0.08259989704 | C60: 0.020357159744867+0.0825998970425835i | D60: 0.1315449931 | E60: -0.007332713158
A61: 0.02220856253 | B61: 0.07849790814 | C61: 0.022208562525521+0.0784979081355059i | D61: 0.1315142608 | E61: -0.007317895963
A62: 0.02480350775 | B62: 0.07405434017 | C62: 0.024803507751842+0.0740543401724394i | D62: 0.1314832031 | E62: -0.007302954121
A63: 0.02826931917 | B63: 0.06916452304 | C63: 0.028269319170575+0.069164523035799i | D63: 0.1314518021 | E63: -0.007287880622
A64: 0.03282071603 | B64: 0.06367528263 | C64: 0.032820716034046+0.0636752826328666i | D64: 0.131420039 | E64: -0.007272668145
A65: 0.03877625723 | B65: 0.05739501663 | C65: 0.038776257233243+0.0573950166333509i | D65: 0.1313878941 | E65: -0.007257309034
A66: 0.0465755873 | B66: 0.05009593395 | C66: 0.046575587304545+0.0500959339451712i | D66: 0.1313553462 | E66: -0.007241795276
A67: 0.05672461854 | B67: 0.0415776275 | C67: 0.056724618539126+0.0415776274984948i | D67: 0.1313223734 | E67: -0.007226118475
A68: 0.06960747046 | B68: 0.03179654787 | C68: 0.06960747045981+0.0317965478709832i | D68: 0.1312889522 | E68: -0.007210269819
A69: 0.08521547918 | B69: 0.02098309608 | C69: 0.085215479177475+0.0209830960761441i | D69: 0.1312550578 | E69: -0.007194240055
A70: 0.1031023869 | B70: 0.009568303863 | C70: 0.103102386883976+0.00956830386300611i | D70: 0.131220664 | E70: -0.00717801945
A71: =IMREAL(C71) -> 0.1226634767 | B71: =IMAGINARY(C71) -> -0.002040246229 | C71: 0.122663476708474-0.00204024622940062i | D71: 0.1311857426 | E71: -0.007161597754
A72: 0.1434008428 | B72: -0.01358438359 | C72: 0.143400842848556-0.0135843835948411i | D72: 0.131150264 | E72: -0.007144964164
A73: 0.1649838259 | B73: -0.02493863477 | C73: 0.164983825872553-0.0249386347689996i | D73: 0.1311141965 | E73: -0.007128107275
A74: 0.1872054468 | B74: -0.03605392546 | C74: 0.187205446811407-0.0360539254575001i | D74: 0.131077506 | E74: -0.007111015033
A75: 0.2099322796 | B75: -0.04691750862 | C75: 0.209932279607257-0.0469175086182012i | D75: 0.1310401563 | E75: -0.007093674682
A76: 0.2330734593 | B76: -0.05753307379 | C76: 0.233073459320251-0.0575330737911404i | D76: 0.1310021085 | E76: -0.007076072707
A77: 0.2565628833 | B77: -0.06791123649 | C77: 0.256562883297024-0.0679112364941152i | D77: 0.1309633209 | E77: -0.007058194768
A78: 0.2803503465 | B78: -0.07806534086 | C78: 0.280350346515585-0.0780653408556826i | D78: 0.1309237483 | E78: -0.007040025632
A79: 0.3043963616 | B79: -0.08800958675 | C79: 0.304396361589286-0.0880095867454087i | D79: 0.1308833425 | E79: -0.007021549092
A80: 0.3286685575 | B80: -0.09775804432 | C80: 0.328668557533299-0.0977580443211195i | D80: 0.130842051 | E80: -0.007002747887
A81: 0.353140299 | B81: -0.1073240679 | C81: 0.353140299007336-0.107324067932209i | D81: 0.130799817 | E81: -0.006983603605
A82: 0.3777888618 | B82: -0.1167204994 | C82: 0.377788861849867-0.116720499404199i | D82: 0.130756579 | E82: -0.00696409658
A83: 0.4025948669 | B83: -0.1259592104 | C83: 0.402594866870948-0.125959210425985i | D83: 0.13071227 | E83: -0.006944205779
A84: 0.4275412812 | B84: -0.1350508959 | C84: 0.427541281201147-0.135050895919669i | D84: 0.1306668168 | E84: -0.006923908677
A85: 0.452613407 | B85: -0.1440056124 | C85: 0.452613407026941-0.14400561243922i | D85: 0.1306201394 | E85: -0.006903181119
A86: 0.477797777 | B86: -0.1528323093 | C86: 0.477797776984902-0.152832309293117i | D86: 0.1305721501 | E86: -0.006881997168
A87: 0.5030828237 | B87: -0.1615387868 | C87: 0.503082823683938-0.161538786831567i | D87: 0.1305227523 | E87: -0.006860328941
A88: 0.5284577916 | B88: -0.1701322123 | C88: 0.528457791643404-0.170132212315977i | D88: 0.1304718393 | E88: -0.006838146426
A89: 0.5539129717 | B89: -0.1786185676 | C89: 0.55391297173177-0.178618567616035i | D89: 0.130419293 | E89: -0.006815417289
A90: 0.5794395449 | B90: -0.1870030174 | C90: 0.579439544874178-0.187003017411656i | D90: 0.130364982 | E90: -0.006792106662
A91: 0.6050297913 | B91: -0.1952896721 | C91: 0.60502979132226-0.195289672114636i | D91: 0.1303087596 | E91: -0.00676817692
A92: 0.6306760807 | B92: -0.2034819196 | C92: 0.630676080738468-0.203481919637149i | D92: 0.1302504614 | E92: -0.006743587454
A93: 0.656371751 | B93: -0.2115821466 | C93: 0.656371750988146-0.211582146600624i | D93: 0.1301899022 | E93: -0.006718294438
A94: 0.6821106227 | B94: -0.2195918582 | C94: 0.682110622718254-0.219591858194748i | D94: 0.1301268723 | E94: -0.006692250612
A95: 0.7078869073 | B95: -0.2275116391 | C95: 0.707886907306879-0.227511639104357i | D95: 0.1300611335 | E95: -0.006665405105
A96: 0.7336949976 | B96: -0.2353413906 | C96: 0.733694997593414-0.235341390587772i | D96: 0.1299924129 | E96: -0.006637703325
A97: 0.7595287037 | B97: -0.2430795715 | C97: 0.759528703666154-0.24307957154374i | D97: 0.1299203965 | E97: -0.006609086984
A98: 0.7853792834 | B98: -0.2507232316 | C98: 0.785379283368656-0.250723231599275i | D98: 0.1298447201 | E98: -0.006579494358
A99: 0.8112286193 | B99: -0.2582656581 | C99: 0.811228619299234-0.258265658097966i | D99: 0.1297649589 | E99: -0.006548860929
A100: 0.8370249585 | B100: -0.265690315 | C100: 0.837024958489672-0.265690315010028i | D100: 0.1296806121 | E100: -0.006517120683
A101: 0.86260756 | B101: -0.2729495041 | C101: 0.862607560013059-0.272949504071185i | D101: 0.1295910855 | E101: -0.006484208484
A102: 0.8874866065 | B102: -0.2799062495 | C102: 0.887486606478621-0.279906249467158i | D102: 0.1294956659 | E102: -0.006450064262
A103: 0.9104508132 | B103: -0.2862342231 | C103: 0.910450813193829-0.286234223059961i | D103: 0.1293934886 | E103: -0.006414640268
A104: 0.9296796887 | B104: -0.2914611594 | C104: 0.929679688749664-0.29146115937373i | D104: 0.129283492 | E104: -0.006377913582
A105: 0.9398863189 | B105: -0.2942081825 | C105: 0.939886318867434-0.294208182482305i | D105: 0.1291643562 | E105: -0.006339907823
D106: 0.1290344158 | E106: -0.006300731333
D107: 0.1288915375 | E107: -0.006260645672
D108: 0.1287329451 | E108: -0.006220191541
D109: 0.1285549751 | E109: -0.00618042696
D110: 0.1283527527 | E110: -0.006143390832
D111: 0.1281198471 | E111: -0.006113024079
D112: 0.1278482457 | E112: -0.006096983137
D113: 0.1275299618 | E113: -0.006109844528
D114: 0.1271638996 | E114: -0.006176388435
D115: 0.1267708462 | E115: -0.006324910607
D116: 0.126395474 | E116: -0.006557214936
D117: 0.1260671331 | E117: -0.006837757437
D118: 0.1257829894 | E118: -0.007133329019
D119: 0.1255308 | E119: -0.007429403888
D120: 0.1253006757 | E120: -0.007721616539
D121: 0.1250859568 | E121: -0.008009305035
D122: 0.1248821942 | E122: -0.008293009635
D123: 0.1246863221 | E123: -0.008573606045
D124: 0.1244961466 | E124: -0.008852009378
D125: 0.1243100403 | E125: -0.009129077801
D126: 0.1241267552 | E126: -0.009405587627
D127: 0.1239453063 | E127: -0.009682233805
D128: 0.1237648949 | E128: -0.009959638683
D129: 0.1235848584 | E129: -0.01023836261
D130: 0.1234046349 | E130: -0.01051891404
D131: 0.1232237385 | E131: -0.0108017584
D132: 0.1230417413 | E132: -0.01108732563
D133: 0.1228582605 | E133: -0.01137601643
D134: 0.1226729482 | E134: -0.01166820751
D135: 0.1224854841 | E135: -0.01196425594
D136: 0.1222955692 | E136: -0.01226450275
D137: 0.1221029216 | E137: -0.01256927596
D138: 0.1219072724 | E138: -0.01287889316
D139: 0.1217083628 | E139: -0.01319366366
D140: 0.1215059418 | E140: -0.01351389033
D141: 0.1212997639 | E141: -0.01383987118
D142: 0.1210895873 | E142: -0.0141719008
D143: 0.1208751726 | E143: -0.01451027145
D144: 0.1206562817 | E144: -0.01485527423
D145: 0.120432676 | E145: -0.01520719994
D146: 0.120204116 | E146: -0.01556633994
D147: 0.1199703601 | E147: -0.01593298689
D148: 0.119731164 | E148: -0.01630743546
D149: 0.1194862798 | E149: -0.01668998292
D150: 0.1192354551 | E150: -0.01708092974
D151: 0.1189784326 | E151: -0.0174805801
D152: 0.1187149495 | E152: -0.01788924242
D153: 0.1184447365 | E153: -0.0183072298
D154: 0.1181675176 | E154: -0.01873486048
D155: 0.1178830093 | E155: -0.01917245828
D156: 0.1175909201 | E156: -0.019620353
D157: 0.1172909497 | E157: -0.02007888082
D158: 0.1169827885 | E158: -0.02054838469
D159: 0.1166661173 | E159: -0.02102921471
D160: 0.1163406061 | E160: -0.02152172852
D161: 0.116005914 | E161: -0.02202629166
D162: 0.1156616881 | E162: -0.02254327792
D163: 0.1153075631 | E163: -0.02307306977
D164: 0.1149431607 | E164: -0.02361605868
D165: 0.1145680886 | E165: -0.0241726455
D166: 0.1141819396 | E166: -0.02474324085
D167: 0.1137842914 | E167: -0.02532826553
D168: 0.1133747054 | E168: -0.02592815083
D169: 0.1129527257 | E169: -0.026543339
D170: 0.1125178784 | E170: -0.02717428364
D171: 0.1120696707 | E171: -0.02782145006
D172: 0.1116075897 | E172: -0.02848531578
D173: 0.1111311017 | E173: -0.0291663709
D174: 0.1106396504 | E174: -0.02986511857
D175: 0.1101326565 | E175: -0.03058207547
D176: 0.1096095162 | E176: -0.03131777223
D177: 0.1090695996 | E177: -0.03207275397
D178: 0.1085122495 | E178: -0.03284758078
D179: 0.1079367803 | E179: -0.03364282823
D180: 0.1073424758 | E180: -0.03445908795
D181: 0.1067285881 | E181: -0.03529696816
D182: 0.1060943356 | E182: -0.03615709424
D183: 0.105438901 | E183: -0.03704010938
D184: 0.1047614299 | E184: -0.03794667519
D185: 0.104061028 | E185: -0.03887747234
D186: 0.1033367594 | E186: -0.03983320129
D187: 0.1025876439 | E187: -0.04081458294
D188: 0.1018126548 | E188: -0.04182235948
D189: 0.1010107159 | E189: -0.04285729507
D190: 0.100180699 | E190: -0.04392017673
D191: 0.09932142022 | E191: -0.0450118152
D192: 0.09843163751 | E192: -0.04613304582
D193: 0.09751004659 | E193: -0.04728472951
D194: 0.09655527743 | E194: -0.04846775379
D195: 0.0955658902 | E195: -0.04968303379
D196: 0.094540371 | E196: -0.05093151343
D197: 0.09347712723 | E197: -0.05221416658
D198: 0.09237448266 | E198: -0.05353199833
D199: 0.09123067213 | E199: -0.05488604631
D200: 0.09004383581 | E200: -0.05627738212
D201: 0.08881201309 | E201: -0.05770711279
D202: 0.0875331359 | E202: -0.05917638248
D203: 0.08620502161 | E203: -0.06068637408
... 8623 more rows

Sheet グラフ管理
D2: plot | E2: plot | F2: plot | G2: plot | H2: Streamline
D3: 1 | E3: 2 | F3: 3 | G3: 4 | H3: 1
D4: グラフ 8 | E4: グラフ 4 | F4: グラフ 5 | G4: Chart 6 | H4: Chart 3
D5: 24.83970905 | E5: 4.575733299 | F5: 7.84411961 | G5: 12.41985237 | H5: 113.5947803
D6: 24.83970474 | E6: 16.34191164 | F6: 16.34191164 | G6: 15.2835783 | H6: 101.0006137
D7: 10 | E7: 10 | F7: 10 | G7: 10 | H7: 10
D8: FALSE | E8: FALSE | F8: FALSE | G8: FALSE | H8: FALSE
D13: 23.91784722 | E13: 3.655908333 | F13: 6.703233333 | G13: 11.10734167 | H13: 109.3789972
D14: 24.4805 | E14: 15.99166667 | F14: 15.23729444 | G14: 13.43466667 | H14: 99.54004167
D15: 0.3198222222 | E15: 0.3188 | F15: 0.3275944444 | G15: 0.2469444444 | H15: 1.966788889
D16: 0.006427777778 | E16: -0.1411111111 | F16: 0.49775 | G16: 0.7833444444 | H16: 0.4587972222
D17: FALSE | E17: FALSE | F17: Cp | G17: cl | H17: FALSE
D18: 2 | E18: 0.1 | F18: 2 | G18: 2 | H18: 2
D19: -2 | E19: -0.1 | F19: -8 | G19: -1.5 | H19: -2
D20: 0.2 | E20: 0.1 | F20: 1 | G20: 0.5 | H20: 0.2
D21: FALSE | E21: 0.02 | F21: FALSE | G21: FALSE | H21: FALSE
D22: 0.0_ | E22: 0.0_ | F22: 0_ | G22: #,##0.0_ | H22: 0.0_
D23: FALSE | E23: FALSE | F23: x | G23: α [deg] | H23: FALSE
D24: 2 | E24: 1 | F24: 1 | G24: 30 | H24: 2
D25: -2 | E25: 0 | F25: 0 | G25: -20 | H25: -2
D26: 0.2 | E26: 0.1 | F26: 0.1 | G26: 5 | H26: 0.2
D27: FALSE | E27: 0.02 | F27: FALSE | G27: FALSE | H27: FALSE
D28: 0.0_ | E28: 0.0_ | F28: 0_ | G28: #,##0.0_ | H28: 0.0_
D29: FALSE | E29: FALSE | F29: TRUE | G29: FALSE | H29: FALSE
F30: 1.340555556
F31: 2.043644444
F32: 1.104241667
F33: 12.97711389
F34: -1
F35: -1
D36: 5 | E36: 1 | F36: 2 | G36: 6 | H36: 2
E37: dat!$A$1 | F37: "Upper" | G37: polar!$C$10
D38: plot!$G$3:$G$300 | E38: dat!$A$2:$A$101 | F38: dat!$A$2:$A$52 | G38: polar!$B$12:$B$60 | H38: Streamline!$A$5:$A$217
D39: plot!$H$3:$H$300 | E39: dat!$B$2:$B$101 | F39: plot!$E$3:$E$53 | G39: polar!$C$12:$C$60 | H39: Streamline!$B$5:$B$104
A40: 0 | F40: "Lower" | G40: polar!$D$10
A41: =ADDRESS(5,4+2*A40)&":"&ADDRESS(999,4+2*A40) -> $D$5:$D$999 | D41: plot!$B$3:$B$101 | F41: dat!$A$52:$A$101 | G41: polar!$B$12:$B$60 | H41: Streamline!$D$5:$D$999
A42: =ADDRESS(5,5+2*A40)&":"&ADDRESS(999,5+2*A40) -> $E$5:$E$999 | D42: plot!$C$3:$C$101 | F42: plot!$E$53:$E$102 | G42: polar!$D$12:$D$60 | H42: Streamline!$E$5:$E$999
A43: =A40+1 -> 1 | G43: polar!$F$10
A44: =ADDRESS(5,4+2*A43)&":"&ADDRESS(999,4+2*A43) -> $F$5:$F$999 | D44: plot!$I$3:$I$300 | G44: polar!$B$12:$B$60
A45: =ADDRESS(5,5+2*A43)&":"&ADDRESS(999,5+2*A43) -> $G$5:$G$999 | D45: plot!$J$3:$J$300 | G45: polar!$F$12:$F$60
D46: plot!$L$1 | G46: plot!$Q$11
D47: plot!$L$3:$L$300 | G47: plot!$R$2
D48: plot!$M$3:$M$300 | G48: plot!$R$11
D49: plot!$N$1 | G49: plot!$Q$12
D50: plot!$N$3:$N$300 | G50: plot!$R$2
D51: plot!$O$3:$O$300 | G51: plot!$R$12
G52: plot!$Q$13
G53: plot!$R$2
G54: plot!$R$13
